Workbook

Sheet Settings (hidden)
A1: Version Number | B1: Lock Workbooks: | C1: BETA
A2: 9.42 | B2: Yes | C2: No
A3: =CONCATENATE(A2," M | © 2022") -> 9.42 M | © 2022
A5: View Options | B5: 1 | C5: 1
A6: Input View | C6: Show Periods
A7: Print View | C7: Show Dates
A9: Summary Chart Data | C9: 1 | D9: 2 | E9: 3 | F9: 4 | G9: 5 | H9: 6 | I9: 7 | J9: 8 | K9: 9 | L9: 10 | N9: Amortizing Rate Structure | R9: Loan Costs Amortization
A10: Net Operating Income | C10: ='Sources & Uses'!D11 -> 888625.808 | D10: ='Sources & Uses'!E11 -> 916934.5822 | E10: ='Sources & Uses'!F11 -> 946092.6197 | F10: ='Sources & Uses'!G11 -> 976125.3983 | G10: ='Sources & Uses'!H11 -> 1007059.16 | H10: ='Sources & Uses'!I11 -> 1038920.935 | I10: ='Sources & Uses'!J11 -> 1071738.563 | J10: ='Sources & Uses'!K11 -> 1105540.72 | K10: ='Sources & Uses'!L11 -> 1140356.942 | L10: ='Sources & Uses'!M11 -> 1176217.65 | N10: Year | O10: Step | P10: Rate | R10: Year | S10: Start | T10: End | U10: I/O | V10: Amortizing | W10: Total
A11: Debt Serivce | C11: =IF('Cash Flows'!F$90=0,NA(),'Cash Flows'!F$90) -> 594236.1029 | D11: =IF('Cash Flows'!G$90=0,NA(),'Cash Flows'!G$90) -> 594236.1029 | E11: =IF('Cash Flows'!H$90=0,NA(),'Cash Flows'!H$90) -> 594236.1029 | F11: =IF('Cash Flows'!I$90=0,NA(),'Cash Flows'!I$90) -> 594236.1029 | G11: =IF('Cash Flows'!J$90=0,NA(),'Cash Flows'!J$90) -> 594236.1029 | H11: =IF('Cash Flows'!K$90=0,NA(),'Cash Flows'!K$90) -> 594236.1029 | I11: =IF('Cash Flows'!L$90=0,NA(),'Cash Flows'!L$90) -> 594236.1029 | J11: =IF('Cash Flows'!M$90=0,NA(),'Cash Flows'!M$90) -> 594236.1029 | K11: =IF('Cash Flows'!N$90=0,NA(),'Cash Flows'!N$90) -> 594236.1029 | L11: =IF('Cash Flows'!O$90=0,NA(),'Cash Flows'!O$90) -> 594236.1029 | N11: 1 | O11: 0 | P11: =Loan_Amor_Rate+O11 -> 0.045 | R11: 1 | S11: 1 | T11: 12 | U11: =IF($R11>Hold,0,IF(Loan_IO_Term<$S11,0,IF(Loan_IO_Term>=$T11,(Loan_IO_Fee*Loan_Amount*12)/Loan_IO_Term,(Loan_IO_Term-S11+1)*((Loan_IO_Fee*Loan_Amount)/Loan_IO_Term)))) -> 0 | V11: =IF(OR(R11>Hold,Loan_IO_Term>=T11),0,IF(T11-Loan_IO_Term<12,((Loan_Amount_Amortizing*Loan_Amor_Fee)/Loan_Amor_Term)*(T11-Loan_IO_Term),IF(T11<=SUM(Loan_IO_Term,Loan_Amor_Term),(Loan_Amount_Amortizing*Loan_Amor_Fee*12)/Loan_Amor_Term,IF(AND(SUM(Loan_IO_Term,Loan_Amor_Term)>=S11,SUM(Loan_IO_Term,Loan_Amor_Term)<T11),((Loan_Amount_Amortizing*Loan_Amor_Fee)/Loan_Amor_Term)*(SUM(Loan_IO_Term,Loan_Amor_Term)-S11+1),0)))) -> 0 | W11: =SUM(U11:V11) -> 0
A12: Cash Flow After Taxes | C12: ='Return Detail'!F83 -> 129496.4051 | D12: ='Return Detail'!G83 -> 149327.557 | E12: ='Return Detail'!H83 -> 165628.7366 | F12: ='Return Detail'!I83 -> 182376.6865 | G12: ='Return Detail'!J83 -> 199582.8681 | H12: ='Return Detail'!K83 -> 217258.9974 | I12: ='Return Detail'!L83 -> 235417.0488 | J12: ='Return Detail'!M83 -> 254069.2582 | K12: ='Return Detail'!N83 -> 273228.1265 | L12: ='Return Detail'!O83 -> 842361.5321 | N12: 2 | O12: =IF(MOD(N11,Loan_Amor_RateGrowthPeriod)=0,Loan_Amor_RateGrowth,0) -> 0 | P12: =P11+O12 -> 0.045 | R12: 2 | S12: =T11+1 -> 13 | T12: =T11+12 -> 24 | U12: 0 | V12: 9773.2605 | W12: =SUM(U12:V12) -> 9773.2605
A13: Return on Asset | C13: =IF(C$9>Hold,NA(),'Return Detail'!F9/Acquisition_Unlevered) -> 0.06819314353 | D13: =IF(D$9>Hold,NA(),'Return Detail'!G9/Acquisition_Unlevered) -> 0.07036555883 | E13: =IF(E$9>Hold,NA(),'Return Detail'!H9/Acquisition_Unlevered) -> 0.07260314659 | F13: =IF(F$9>Hold,NA(),'Return Detail'!I9/Acquisition_Unlevered) -> 0.07490786199 | G13: =IF(G$9>Hold,NA(),'Return Detail'!J9/Acquisition_Unlevered) -> 0.07728171885 | H13: =IF(H$9>Hold,NA(),'Return Detail'!K9/Acquisition_Unlevered) -> 0.07972679141 | I13: =IF(I$9>Hold,NA(),'Return Detail'!L9/Acquisition_Unlevered) -> 0.08224521615 | J13: =IF(J$9>Hold,NA(),'Return Detail'!M9/Acquisition_Unlevered) -> 0.08483919363 | K13: =IF(K$9>Hold,NA(),'Return Detail'!N9/Acquisition_Unlevered) -> 0.08751099044 | L13: =IF(L$9>Hold,NA(),'Return Detail'!O9/Acquisition_Unlevered) -> 0.1324699405 | N13: 3 | O13: 0 | P13: 0.045 | R13: 3 | S13: =T12+1 -> 25 | T13: =T12+12 -> 36 | U13: 0 | V13: 9773.2605 | W13: 9773.2605
A14: Before Tax Cash on Cash | C14: =IF(C$9>Hold,NA(),'Return Detail'!F80/Equity_Amount) -> 0.08773384715 | D14: =IF(D$9>Hold,NA(),'Return Detail'!G80/Equity_Amount) -> 0.09617041144 | E14: =IF(E$9>Hold,NA(),'Return Detail'!H80/Equity_Amount) -> 0.1048600727 | F14: =IF(F$9>Hold,NA(),'Return Detail'!I80/Equity_Amount) -> 0.1138104237 | G14: =IF(G$9>Hold,NA(),'Return Detail'!J80/Equity_Amount) -> 0.1230292853 | H14: =IF(H$9>Hold,NA(),'Return Detail'!K80/Equity_Amount) -> 0.1325247127 | I14: =IF(I$9>Hold,NA(),'Return Detail'!L80/Equity_Amount) -> 0.142305003 | J14: =IF(J$9>Hold,NA(),'Return Detail'!M80/Equity_Amount) -> 0.1523787019 | K14: =IF(K$9>Hold,NA(),'Return Detail'!N80/Equity_Amount) -> 0.1627546119 | L14: =IF(L$9>Hold,NA(),'Return Detail'!O80/Equity_Amount) -> 0.3373524764 | N14: 4 | O14: 0 | P14: 0.045 | R14: 4 | S14: =T13+1 -> 37 | T14: =T13+12 -> 48 | U14: 0 | V14: 9773.2605 | W14: 9773.2605
A15: After Tax Cash on Cash | C15: =IF(C$9>Hold,NA(),'Return Detail'!F83/Equity_Amount) -> 0.03859244266 | D15: =IF(D$9>Hold,NA(),'Return Detail'!G83/Equity_Amount) -> 0.04450251091 | E15: =IF(E$9>Hold,NA(),'Return Detail'!H83/Equity_Amount) -> 0.0493605789 | F15: =IF(F$9>Hold,NA(),'Return Detail'!I83/Equity_Amount) -> 0.0543517931 | G15: =IF(G$9>Hold,NA(),'Return Detail'!J83/Equity_Amount) -> 0.05947956923 | H15: =IF(H$9>Hold,NA(),'Return Detail'!K83/Equity_Amount) -> 0.06474739892 | I15: =IF(I$9>Hold,NA(),'Return Detail'!L83/Equity_Amount) -> 0.07015885075 | J15: =IF(J$9>Hold,NA(),'Return Detail'!M83/Equity_Amount) -> 0.07571757125 | K15: =IF(K$9>Hold,NA(),'Return Detail'!N83/Equity_Amount) -> 0.08142728594 | L15: =IF(L$9>Hold,NA(),'Return Detail'!O83/Equity_Amount) -> 0.2510400895 | N15: 5 | O15: 0 | P15: 0.045 | R15: 5 | S15: 49 | T15: 60 | U15: 0 | V15: 9773.2605 | W15: 9773.2605
A16: Pre Tax | C16: =IF(C9>Hold,NA(),'Cash Flows'!F93) -> 0.7510889165 | D16: =IF(D9>Hold,NA(),'Cash Flows'!G93) -> 0.7412353843 | E16: =IF(E9>Hold,NA(),'Cash Flows'!H93) -> 0.7316688481 | F16: =IF(F9>Hold,NA(),'Cash Flows'!I93) -> 0.7223809489 | G16: =IF(G9>Hold,NA(),'Cash Flows'!J93) -> 0.713363571 | H16: =IF(H9>Hold,NA(),'Cash Flows'!K93) -> 0.7046088352 | I16: =IF(I9>Hold,NA(),'Cash Flows'!L93) -> 0.6961090917 | J16: =IF(J9>Hold,NA(),'Cash Flows'!M93) -> 0.6878569136 | K16: =IF(K9>Hold,NA(),'Cash Flows'!N93) -> 0.6798450902 | L16: =IF(L9>Hold,NA(),'Cash Flows'!O93) -> 0.6720666208 | N16: 6 | O16: =IF(MOD(N15,Loan_Amor_RateGrowthPeriod)=0,Loan_Amor_RateGrowth,0) -> 0 | P16: =P15+O16 -> 0.045 | R16: 6 | S16: =T15+1 -> 61 | T16: =T15+12 -> 72 | U16: 0 | V16: 9773.2605 | W16: 9773.2605
A17: After Tax | C17: =IF(C9>Hold,NA(),IFERROR(SUM('Cash Flows'!F129,'Cash Flows'!F99,'Cash Flows'!F90,'Cash Flows'!F55)/SUM('Cash Flows'!F33,'Cash Flows'!F24,'Cash Flows'!F98),NA())) -> 0.6572134975 | D17: =IF(D9>Hold,NA(),IFERROR(SUM('Cash Flows'!G129,'Cash Flows'!G99,'Cash Flows'!G90,'Cash Flows'!G55)/SUM('Cash Flows'!G33,'Cash Flows'!G24,'Cash Flows'!G98),NA())) -> 0.6454083795 | E17: =IF(E9>Hold,NA(),IFERROR(SUM('Cash Flows'!H129,'Cash Flows'!H99,'Cash Flows'!H90,'Cash Flows'!H55)/SUM('Cash Flows'!H33,'Cash Flows'!H24,'Cash Flows'!H98),NA())) -> 0.6317335538 | F17: =IF(F9>Hold,NA(),IFERROR(SUM('Cash Flows'!I129,'Cash Flows'!I99,'Cash Flows'!I90,'Cash Flows'!I55)/SUM('Cash Flows'!I33,'Cash Flows'!I24,'Cash Flows'!I98),NA())) -> 0.6184350038 | G17: =IF(G9>Hold,NA(),IFERROR(SUM('Cash Flows'!J129,'Cash Flows'!J99,'Cash Flows'!J90,'Cash Flows'!J55)/SUM('Cash Flows'!J33,'Cash Flows'!J24,'Cash Flows'!J98),NA())) -> 0.6055014293 | H17: =IF(H9>Hold,NA(),IFERROR(SUM('Cash Flows'!K129,'Cash Flows'!K99,'Cash Flows'!K90,'Cash Flows'!K55)/SUM('Cash Flows'!K33,'Cash Flows'!K24,'Cash Flows'!K98),NA())) -> 0.592921854 | I17: =IF(I9>Hold,NA(),IFERROR(SUM('Cash Flows'!L129,'Cash Flows'!L99,'Cash Flows'!L90,'Cash Flows'!L55)/SUM('Cash Flows'!L33,'Cash Flows'!L24,'Cash Flows'!L98),NA())) -> 0.5806856157 | J17: =IF(J9>Hold,NA(),IFERROR(SUM('Cash Flows'!M129,'Cash Flows'!M99,'Cash Flows'!M90,'Cash Flows'!M55)/SUM('Cash Flows'!M33,'Cash Flows'!M24,'Cash Flows'!M98),NA())) -> 0.5687823575 | K17: =IF(K9>Hold,NA(),IFERROR(SUM('Cash Flows'!N129,'Cash Flows'!N99,'Cash Flows'!N90,'Cash Flows'!N55)/SUM('Cash Flows'!N33,'Cash Flows'!N24,'Cash Flows'!N98),NA())) -> 0.5572020186 | L17: =IF(L9>Hold,NA(),IFERROR(SUM('Cash Flows'!O129,'Cash Flows'!O99,'Cash Flows'!O90,'Cash Flows'!O55)/SUM('Cash Flows'!O33,'Cash Flows'!O24,'Cash Flows'!O98),NA())) -> 0.545697074 | N17: 7 | O17: 0 | P17: 0.045 | R17: 7 | S17: 73 | T17: 84 | U17: 0 | V17: 9773.2605 | W17: 9773.2605
A18: Debt Service Coverage Ratio | C18: =C10/C11 -> 1.495408649 | D18: 1.543047583 | E18: 1.592115684 | F18: 1.642655829 | G18: 1.694712178 | H18: 1.748330217 | I18: 1.803556798 | J18: 1.860440176 | K18: 1.919030056 | L18: 1.979377631 | N18: 8 | O18: 0 | P18: 0.045 | R18: 8 | S18: 85 | T18: 96 | U18: 0 | V18: 9773.2605 | W18: 9773.2605
A19: LTV | C19: =IF(C9>Hold,NA(),IFERROR('Cash Flows'!F95/'Cash Flows'!F71,NA())) -> 0.04212443007 | D19: =IF(D9>Hold,NA(),IFERROR('Cash Flows'!G95/'Cash Flows'!G71,NA())) -> 0.04082617905 | E19: =IF(E9>Hold,NA(),IFERROR('Cash Flows'!H95/'Cash Flows'!H71,NA())) -> 0.03957006626 | F19: =IF(F9>Hold,NA(),IFERROR('Cash Flows'!I95/'Cash Flows'!I71,NA())) -> 0.03835459546 | G19: =IF(G9>Hold,NA(),IFERROR('Cash Flows'!J95/'Cash Flows'!J71,NA())) -> 0.03717833127 | H19: =IF(H9>Hold,NA(),IFERROR('Cash Flows'!K95/'Cash Flows'!K71,NA())) -> 0.03603989631 | I19: =IF(I9>Hold,NA(),IFERROR('Cash Flows'!L95/'Cash Flows'!L71,NA())) -> 0.03493796836 | J19: =IF(J9>Hold,NA(),IFERROR('Cash Flows'!M95/'Cash Flows'!M71,NA())) -> 0.03387127774 | K19: =IF(K9>Hold,NA(),IFERROR('Cash Flows'!N95/'Cash Flows'!N71,NA())) -> 0.03283860491 | L19: =IF(L9>Hold,NA(),IFERROR('Cash Flows'!O95/'Cash Flows'!O71,NA())) -> 0.03183877808 | N19: 9 | O19: 0 | P19: 0.045 | R19: 9 | S19: 97 | T19: 108 | U19: 0 | V19: 9773.2605 | W19: 9773.2605
A20: Debt Yield | C20: =IF(C9>Hold,NA(),IFERROR('Cash Flows'!F67/'Cash Flows'!F95,NA())) -> 1.495408649 | D20: =IF(D9>Hold,NA(),IFERROR('Cash Flows'!G67/'Cash Flows'!G95,NA())) -> 1.543047583 | E20: =IF(E9>Hold,NA(),IFERROR('Cash Flows'!H67/'Cash Flows'!H95,NA())) -> 1.592115684 | F20: =IF(F9>Hold,NA(),IFERROR('Cash Flows'!I67/'Cash Flows'!I95,NA())) -> 1.642655829 | G20: =IF(G9>Hold,NA(),IFERROR('Cash Flows'!J67/'Cash Flows'!J95,NA())) -> 1.694712178 | H20: =IF(H9>Hold,NA(),IFERROR('Cash Flows'!K67/'Cash Flows'!K95,NA())) -> 1.748330217 | I20: =IF(I9>Hold,NA(),IFERROR('Cash Flows'!L67/'Cash Flows'!L95,NA())) -> 1.803556798 | J20: =IF(J9>Hold,NA(),IFERROR('Cash Flows'!M67/'Cash Flows'!M95,NA())) -> 1.860440176 | K20: =IF(K9>Hold,NA(),IFERROR('Cash Flows'!N67/'Cash Flows'!N95,NA())) -> 1.919030056 | L20: =IF(L9>Hold,NA(),IFERROR('Cash Flows'!O67/'Cash Flows'!O95,NA())) -> 1.979377631 | N20: 10 | O20: 0 | P20: 0.045 | R20: 10 | S20: 109 | T20: 120 | U20: 0 | V20: 9773.2605 | W20: 9773.2605
A23: Project Level | B23: Unleveraged | C23: ='Return Detail'!$C$17 -> 0.1087543429
B24: Leveraged | C24: ='Return Detail'!$C$42 -> 0.2105487731
B25: Leveraged After Tax | C25: ='Return Detail'!$C$91 -> 0.1599011558
A26: Individual Level | B26: JV Partner | C26: =#REF! -> 
B27: Developer | C27: =#REF! -> 
A30: I/O Loan Sizing
A31: Loan IO Term | B31: =Loan_IO_Term -> 12
A32: At Maturity | B32: =Loan_IO_AtMaturity -> Amortize Loan Balance
A33: ="NOI in Year "&Loan_IO_Year -> NOI in Year 2 | B33: =HLOOKUP(Loan_IO_Year,$C$9:$L$10,2,FALSE) -> 916934.5822
A34: DSCR | B34: =Loan_IO_DSCR -> 1.25
A35: Max DS based on NOI | B35: =B33/B34 -> 733547.6658
A36: Max Loan Based on DSCR | B36: =PV(Loan_Amor_Rate/12,Loan_Amortization,-B35/12) -> 12064484.79
A37: ="Value based on "&Loan_IO_Cap*100&"% Cap" -> Value based on 6.5% Cap | B37: =IFERROR((B33/Loan_IO_Cap),0) -> 14106685.88
A38: ="Max Loan based on "&Loan_IO_LTV*100&"% LTV" -> Max Loan based on 75% LTV | B38: =B37*Loan_IO_LTV -> 10580014.41
A39: Amortizing Loan Amount (Rounded) | B39: =ROUND(MIN(B36,B38),-3) -> 10580000
B49: Project Level IRR Sensitivity
E50: 1 | F50: 2 | G50: 3 | H50: 4 | I50: 5 | J50: 6 | K50: 7 | L50: 8 | M50: 9 | N50: 10 | O50: 11
B51: Net Operating Income | E51: ='Cash Flows'!F67 -> 888625.808 | F51: ='Cash Flows'!G67 -> 916934.5822 | G51: ='Cash Flows'!H67 -> 946092.6197 | H51: ='Cash Flows'!I67 -> 976125.3983 | I51: ='Cash Flows'!J67 -> 1007059.16 | J51: ='Cash Flows'!K67 -> 1038920.935 | K51: ='Cash Flows'!L67 -> 1071738.563 | L51: ='Cash Flows'!M67 -> 1105540.72 | M51: ='Cash Flows'!N67 -> 1140356.942 | N51: ='Cash Flows'!O67 -> 1176217.65 | O51: ='Cash Flows'!P67 -> 1213154.179
B52: Refinance Proceeds | E52: ='Cash Flows'!F98 -> 0 | F52: ='Cash Flows'!G98 -> 0 | G52: ='Cash Flows'!H98 -> 0 | H52: ='Cash Flows'!I98 -> 0 | I52: ='Cash Flows'!J98 -> 0 | J52: ='Cash Flows'!K98 -> 0 | K52: ='Cash Flows'!L98 -> 0 | L52: ='Cash Flows'!M98 -> 0 | M52: ='Cash Flows'!N98 -> 0 | N52: ='Cash Flows'!O98 -> 0 | O52: ='Cash Flows'!P98 -> 0
B53: Less: Debt Service | E53: =SUM(IF('Loan Amortization'!$B$51:$B$170>((E$50-1)*12),IF('Loan Amortization'!$B$51:$B$170<=((E$50*12)),'Loan Amortization'!$I$51:$I$170,0),0))*-1 -> -594236.1029 | F53: =SUM(IF('Loan Amortization'!$B$51:$B$170>((F$50-1)*12),IF('Loan Amortization'!$B$51:$B$170<=((F$50*12)),'Loan Amortization'!$I$51:$I$170,0),0))*-1 -> -594236.1029 | G53: =SUM(IF('Loan Amortization'!$B$51:$B$170>((G$50-1)*12),IF('Loan Amortization'!$B$51:$B$170<=((G$50*12)),'Loan Amortization'!$I$51:$I$170,0),0))*-1 -> -594236.1029 | H53: =SUM(IF('Loan Amortization'!$B$51:$B$170>((H$50-1)*12),IF('Loan Amortization'!$B$51:$B$170<=((H$50*12)),'Loan Amortization'!$I$51:$I$170,0),0))*-1 -> -594236.1029 | I53: =SUM(IF('Loan Amortization'!$B$51:$B$170>((I$50-1)*12),IF('Loan Amortization'!$B$51:$B$170<=((I$50*12)),'Loan Amortization'!$I$51:$I$170,0),0))*-1 -> -594236.1029 | J53: =SUM(IF('Loan Amortization'!$B$51:$B$170>((J$50-1)*12),IF('Loan Amortization'!$B$51:$B$170<=((J$50*12)),'Loan Amortization'!$I$51:$I$170,0),0))*-1 -> -594236.1029 | K53: =SUM(IF('Loan Amortization'!$B$51:$B$170>((K$50-1)*12),IF('Loan Amortization'!$B$51:$B$170<=((K$50*12)),'Loan Amortization'!$I$51:$I$170,0),0))*-1 -> -594236.1029 | L53: =SUM(IF('Loan Amortization'!$B$51:$B$170>((L$50-1)*12),IF('Loan Amortization'!$B$51:$B$170<=((L$50*12)),'Loan Amortization'!$I$51:$I$170,0),0))*-1 -> -594236.1029 | M53: =SUM(IF('Loan Amortization'!$B$51:$B$170>((M$50-1)*12),IF('Loan Amortization'!$B$51:$B$170<=((M$50*12)),'Loan Amortization'!$I$51:$I$170,0),0))*-1 -> -594236.1029 | N53: =SUM(IF('Loan Amortization'!$B$51:$B$170>((N$50-1)*12),IF('Loan Amortization'!$B$51:$B$170<=((N$50*12)),'Loan Amortization'!$I$51:$I$170,0),0))*-1 -> -594236.1029 | O53: =SUM(IF('Loan Amortization'!$B$51:$B$170>((O$50-1)*12),IF('Loan Amortization'!$B$51:$B$170<=((O$50*12)),'Loan Amortization'!$I$51:$I$170,0),0))*-1 -> 0
B54: Add: Interest Paid from Budget | E54: ='Cash Flows'!F89*-1 -> 0 | F54: ='Cash Flows'!G89*-1 -> 0 | G54: ='Cash Flows'!H89*-1 -> 0 | H54: ='Cash Flows'!I89*-1 -> 0 | I54: ='Cash Flows'!J89*-1 -> 0 | J54: ='Cash Flows'!K89*-1 -> 0 | K54: ='Cash Flows'!L89*-1 -> 0 | L54: ='Cash Flows'!M89*-1 -> 0 | M54: ='Cash Flows'!N89*-1 -> 0 | N54: ='Cash Flows'!O89*-1 -> 0 | O54: ='Cash Flows'!P89*-1 -> 0
B55: Cash Flow After Debt Service | E55: =SUM(E51:E54) -> 294389.7051 | F55: =SUM(F51:F54) -> 322698.4793 | G55: 351856.5168 | H55: 381889.2954 | I55: 412823.0573 | J55: 444684.8321 | K55: 477502.4602 | L55: 511304.6171 | M55: 546120.8387 | N55: 581981.5469 | O55: 1213154.179
B56: Less: Mortgage Origination Fee | E56: ='Return Detail'!F28 -> 0 | F56: ='Return Detail'!G28 -> 0 | G56: ='Return Detail'!H28 -> 0 | H56: ='Return Detail'!I28 -> 0 | I56: ='Return Detail'!J28 -> 0 | J56: ='Return Detail'!K28 -> 0 | K56: ='Return Detail'!L28 -> 0 | L56: ='Return Detail'!M28 -> 0 | M56: ='Return Detail'!N28 -> 0 | N56: ='Return Detail'!O28 -> 0 | O56: ='Return Detail'!P28 -> 0
B57: Less: Capital Expenses | E57: =-'Cash Flows'!F112 -> 0 | F57: =-'Cash Flows'!G112 -> 0 | G57: =-'Cash Flows'!H112 -> 0 | H57: =-'Cash Flows'!I112 -> 0 | I57: =-'Cash Flows'!J112 -> 0 | J57: =-'Cash Flows'!K112 -> 0 | K57: =-'Cash Flows'!L112 -> 0 | L57: =-'Cash Flows'!M112 -> 0 | M57: =-'Cash Flows'!N112 -> 0 | N57: =-'Cash Flows'!O112 -> 0 | O57: =-'Cash Flows'!P112 -> 0
B58: Other Non-Regular Income | E58: ='Cash Flows'!F119 -> 0 | F58: ='Cash Flows'!G119 -> 0 | G58: ='Cash Flows'!H119 -> 0 | H58: ='Cash Flows'!I119 -> 0 | I58: ='Cash Flows'!J119 -> 0 | J58: ='Cash Flows'!K119 -> 0 | K58: ='Cash Flows'!L119 -> 0 | L58: ='Cash Flows'!M119 -> 0 | M58: ='Cash Flows'!N119 -> 0 | N58: ='Cash Flows'!O119 -> 550000 | O58: ='Cash Flows'!P115 -> 0
B59: Distributable Cash Flow | E59: =SUM(E55:E58) -> 294389.7051 | F59: =SUM(F55:F58) -> 322698.4793 | G59: 351856.5168 | H59: 381889.2954 | I59: 412823.0573 | J59: 444684.8321 | K59: 477502.4602 | L59: 511304.6171 | M59: 546120.8387 | N59: 1131981.547 | O59: 1213154.179
B61: Reversion Cash Flow | E61: =IF(Disposition="Cap Rate",'Cash Flows'!G59/Exit_Rate,FV(Exit_Rate,E50,0,-Acquisition_Gross)) -> 14952839.73 | F61: =IF(Disposition="Cap Rate",'Cash Flows'!H59/Exit_Rate,FV(Exit_Rate,F50,0,-Acquisition_Gross)) -> 15401424.92 | G61: =IF(Disposition="Cap Rate",'Cash Flows'!I59/Exit_Rate,FV(Exit_Rate,G50,0,-Acquisition_Gross)) -> 15863467.67 | H61: =IF(Disposition="Cap Rate",'Cash Flows'!J59/Exit_Rate,FV(Exit_Rate,H50,0,-Acquisition_Gross)) -> 16339371.7 | I61: =IF(Disposition="Cap Rate",'Cash Flows'!K59/Exit_Rate,FV(Exit_Rate,I50,0,-Acquisition_Gross)) -> 16829552.85 | J61: =IF(Disposition="Cap Rate",'Cash Flows'!L59/Exit_Rate,FV(Exit_Rate,J50,0,-Acquisition_Gross)) -> 17334439.43 | K61: =IF(Disposition="Cap Rate",'Cash Flows'!M59/Exit_Rate,FV(Exit_Rate,K50,0,-Acquisition_Gross)) -> 17854472.62 | L61: =IF(Disposition="Cap Rate",'Cash Flows'!N59/Exit_Rate,FV(Exit_Rate,L50,0,-Acquisition_Gross)) -> 18390106.79 | M61: =IF(Disposition="Cap Rate",'Cash Flows'!O59/Exit_Rate,FV(Exit_Rate,M50,0,-Acquisition_Gross)) -> 18941810 | N61: =IF(Disposition="Cap Rate",'Cash Flows'!P59/Exit_Rate,FV(Exit_Rate,N50,0,-Acquisition_Gross)) -> 19510064.3
B62: Less: Cost of Sale | E62: =E61*Sale_Cost*-1 -> -74764.19863 | F62: -77007.12459 | G62: -79317.33833 | H62: -81696.85848 | I62: -84147.76423 | J62: -86672.19716 | K62: -89272.36308 | L62: -91950.53397 | M62: -94709.04999 | N62: -97550.32149
B63: Less: Mortgage Exit Fee | E63: =E64*Loan_Exit_Fee -> 0 | F63: 0 | G63: 0 | H63: 0 | I63: 0 | J63: 0 | K63: 0 | L63: 0 | M63: 0 | N63: 0
B64: Less: Mortgage Balance | E64: =-VLOOKUP(E50*12,Amortization_Schedule_Monthly,8,FALSE) -> -49519.67524 | F64: -49519.67524 | G64: -49519.67524 | H64: -49519.67524 | I64: -49519.67524 | J64: -49519.67524 | K64: -49519.67524 | L64: -49519.67524 | M64: -49519.67524 | N64: -49519.67524
B65: Return of Reserve Funds | E65: ='Cash Flows'!F160 -> 55000 | F65: ='Cash Flows'!G160 -> 110000 | G65: ='Cash Flows'!H160 -> 165000 | H65: ='Cash Flows'!I160 -> 220000 | I65: ='Cash Flows'!J160 -> 275000 | J65: ='Cash Flows'!K160 -> 330000 | K65: ='Cash Flows'!L160 -> 385000 | L65: ='Cash Flows'!M160 -> 440000 | M65: ='Cash Flows'!N160 -> 495000 | N65: ='Cash Flows'!O160 -> 550000
B66: Reversion Balance | D66: =-Equity_Amount -> -3355486.105 | E66: =SUM(E61:E65) -> 14883555.85 | F66: =SUM(F61:F65) -> 15384898.12 | G66: 15899630.65 | H66: 16428155.16 | I66: 16970885.41 | J66: 17528247.56 | K66: 18100680.58 | L66: 18688636.58 | M66: 19292581.27 | N66: 19912994.3
Q68: IRR | V68: NPV | AA68: Average Cash on Cash
C69: Periods | D69: 0 | E69: 1 | F69: 2 | G69: 3 | H69: 4 | I69: 5 | J69: 6 | K69: 7 | L69: 8 | M69: 9 | N69: 10 | Q69: Period | R69: Project Level | S69: Developer | T69: JV Partner | V69: Period | W69: ="Project Level at "&ROUND(Equity_Rate*100,1)&"%" -> Project Level at 10% | X69: ="Developer at "&ROUND(Equity_Rate*100,1)&"%" -> Developer at 10% | Y69: ="JV Partner at "&ROUND(Equity_Rate_JV*100,1)&"%" -> JV Partner at 0% | AA69: Period | AB69: Project Level | AC69: Developer | AD69: JV Partner
C70: 1 | D70: =-Equity_Amount -> -3355486.105 | E70: =IF($C70<E$50,0,IF($C70=E$50,SUM(E$59,E$66),E$59)) -> 15177945.56 | F70: =IF($C70<F$50,0,IF($C70=F$50,SUM(F$59,F$66),F$59)) -> 0 | G70: 0 | H70: 0 | I70: 0 | J70: 0 | K70: 0 | L70: 0 | M70: 0 | N70: 0 | Q70: 1 | R70: =IFERROR(IRR(D70:N70),"-") -> 3.523322429 | S70: =O107 -> 0 | T70: =O106 -> 0 | V70: 1 | W70: =SUM(D70,NPV(Equity_Rate,E70:N70)) -> 10442646.22 | X70: =P107 -> 0 | Y70: =P106 -> 0 | AA70: 1 | AB70: =IFERROR((SUM(E70:N70)/AA70)/Equity_Amount,NA()) -> 4.523322429 | AC70: =Q107 -> 0 | AD70: =Q106 -> 0
C71: 2 | D71: -3355486.105 | E71: =IF($C71<E$50,0,IF($C71=E$50,SUM(E$59,E$66),E$59)) -> 294389.7051 | F71: 15707596.6 | G71: 0 | H71: 0 | I71: 0 | J71: 0 | K71: 0 | L71: 0 | M71: 0 | N71: 0 | Q71: 2 | R71: 1.207912447 | S71: =O133 -> 0 | T71: =O132 -> 0 | V71: 2 | W71: 9893625.691 | X71: =P133 -> 0 | Y71: =P132 -> 0 | AA71: 2 | AB71: 2.384451284 | AC71: =Q133 -> 0 | AD71: =Q132 -> 0
C72: 3 | D72: -3355486.105 | E72: 294389.7051 | F72: 322698.4793 | G72: 16251487.17 | H72: 0 | I72: 0 | J72: 0 | K72: 0 | L72: 0 | M72: 0 | N72: 0 | Q72: 3 | R72: 0.7409433608 | S72: =O160 -> 0 | T72: =O159 -> 0 | V72: 3 | W72: 9388816.705 | X72: =P160 -> 0 | Y72: =P159 -> 0 | AA72: 3 | AB72: 1.675720976 | AC72: =Q160 -> 0 | AD72: =Q159 -> 0
C73: 4 | D73: -3355486.105 | E73: 294389.7051 | F73: 322698.4793 | G73: 351856.5168 | H73: 16810044.46 | I73: 0 | J73: 0 | K73: 0 | L73: 0 | M73: 0 | N73: 0 | Q73: 4 | R73: 0.5469608908 | S73: =O186 -> 0 | T73: =O185 -> 0 | V73: 4 | W73: 8924675.416 | X73: =P186 -> 0 | Y73: =P185 -> 0 | AA73: 4 | AB73: 1.324620979 | AC73: =Q186 -> 0 | AD73: =Q185 -> 0
C74: 5 | D74: -3355486.105 | E74: 294389.7051 | F74: 322698.4793 | G74: 351856.5168 | H74: 381889.2954 | I74: 17383708.46 | J74: 0 | K74: 0 | L74: 0 | M74: 0 | N74: 0 | Q74: 5 | R74: 0.4417792892 | S74: =O212 -> 0 | T74: =O211 -> 0 | V74: 5 | W74: 8497939.653 | X74: =P212 -> 0 | Y74: =P211 -> 0 | AA74: 5 | AB74: 1.11665147 | AC74: =Q212 -> 0 | AD74: =Q211 -> 0
C75: 6 | D75: -3355486.105 | E75: 294389.7051 | F75: 322698.4793 | G75: 351856.5168 | H75: 381889.2954 | I75: 412823.0573 | J75: 17972932.39 | K75: 0 | L75: 0 | M75: 0 | N75: 0 | Q75: 6 | R75: 0.3761641025 | S75: =O238 -> 0 | T75: =O237 -> 0 | V75: 6 | W75: 8105606.815 | X75: =P238 -> 0 | Y75: =P237 -> 0 | AA75: 6 | AB75: 0.9803144675 | AC75: =Q238 -> 0 | AD75: =Q237 -> 0
C76: 7 | D76: -3355486.105 | E76: 294389.7051 | F76: 322698.4793 | G76: 351856.5168 | H76: 381889.2954 | I76: 412823.0573 | J76: 444684.8321 | K76: 18578183.04 | L76: 0 | M76: 0 | N76: 0 | Q76: 7 | R76: 0.3315340057 | S76: =O264 -> 0 | T76: =O263 -> 0 | V76: 7 | W76: 7744913.475 | X76: =P264 -> 0 | Y76: =P263 -> 0 | AA76: 7 | AB76: 0.8849697086 | AC76: =Q264 -> 0 | AD76: =Q263 -> 0
C77: 8 | D77: -3355486.105 | E77: 294389.7051 | F77: 322698.4793 | G77: 351856.5168 | H77: 381889.2954 | I77: 412823.0573 | J77: 444684.8321 | K77: 477502.4602 | L77: 19199941.2 | M77: 0 | N77: 0 | Q77: 8 | R77: 0.299348198 | S77: =O290 -> 0 | T77: =O289 -> 0 | V77: 8 | W77: 7413316.562 | X77: =P290 -> 0 | Y77: =P289 -> 0 | AA77: 8 | AB77: 0.8152986208 | AC77: =Q290 -> 0 | AD77: =Q289 -> 0
C78: 9 | D78: -3355486.105 | E78: 294389.7051 | F78: 322698.4793 | G78: 351856.5168 | H78: 381889.2954 | I78: 412823.0573 | J78: 444684.8321 | K78: 477502.4602 | L78: 511304.6171 | M78: 19838702.11 | N78: 0 | Q78: 9 | R78: 0.2751393608 | S78: =O316 -> 0 | T78: =O315 -> 0 | V78: 9 | W78: 7108475.986 | X78: =P316 -> 0 | Y78: =P315 -> 0 | AA78: 9 | AB78: 0.7627923133 | AC78: =Q316 -> 0 | AD78: =Q315 -> 0
C79: 10 | D79: -3355486.105 | E79: 294389.7051 | F79: 322698.4793 | G79: 351856.5168 | H79: 381889.2954 | I79: 412823.0573 | J79: 444684.8321 | K79: 477502.4602 | L79: 511304.6171 | M79: 546120.8387 | N79: 21044975.85 | Q79: 10 | R79: 0.2590292577 | S79: =O342 -> 0 | T79: =O341 -> 0 | V79: 10 | W79: 7040287.43 | X79: =P342 -> 0 | Y79: =P341 -> 0 | AA79: 10 | AB79: 0.7387378423 | AC79: =Q342 -> 0 | AD79: =Q341 -> 0

Sheet Intro

Sheet Assumptions
B2: =$D$7 -> New Multifamily Project
B4: Project Assumptions
B6: Property Information | F6: Acquisition Assumptions
B7: Property Name | D7: New Multifamily Project | F7: Project Type | H7: Acquisition
B8: Location | F8: =IF(Project_Type="Acquisition","Acquisition Cost","Land Cost") -> Acquisition Cost | H8: 12000000
B9: Property Use | D9: Multifamily | F9: =IF(Project_Type="Acquisition","Other Costs","Hard Costs") -> Other Costs | H9: 1031014
B10: Units | D10: =SUM(Unit_Mix[Number of Units]) -> 200 | F10: =IF(Project_Type="Acquisition","-","Soft Costs") -> - | H10: 0
B11: Analysis Year Begin | D11: 2022-01-01 | F11: =IF(Project_Type="Acquisition","Acquisition Cost","Development Cost") -> Acquisition Cost | H11: =SUM(H8:H10) -> 13031014
B12: Annual Inflation Rate | D12: 0.03 | F12: Due Diligence/Closing Costs | G12: 0 | H12: =Acquisition_Gross*G12 -> 0
B13: Unit of Measure | D13: Square Feet | F13: Reserve Account Initial Deposits
B14: Currency | D14: Dollar | F14: Operating Reserve Account | H14: 0
F15: Cap Ex Reserve Account | H15: 0
F16: Replacement Reserves Account | H16: 0
F17: =IF(Project_Type="Acquisition","Unleveraged Acquisition Cost","Unleveraged Development Cost") -> Unleveraged Acquisition Cost | H17: =SUM(H11:H16) -> 13031014
F18: Initial Loan Origination Fee | G18: =IF(Loan_IO_Approval="Yes",Loan_IO_Fee,Loan_Amor_Fee) -> 0.01 | H18: =Loan_Fee_Rate*Loan_Amount -> 97732.605
F19: =IF(Project_Type="Acquisition","Leveraged Acquisition Cost","Leveraged Development Cost") -> Leveraged Acquisition Cost | H19: =SUM(H17:H18) -> 13128746.61
B22: Initial Capital Structure | F22: Tax Assumptions
B23: =IF(Project_Type="Acquisition","Debt: (LTV)","Debt: (LTC)") -> Debt: (LTV) | C23: 0.75 | D23: =C23*Acquisition_Unlevered -> 9773260.5 | F23: Ordinary Income Marginal Tax Rate | H23: 0.35
B24: Equity | D24: =Acquisition_Levered-Loan_Amount -> 3355486.105 | F24: Capital Gains Tax Rate | H24: 0.2
B25: Total | D25: =SUM(D23:D24) -> 13128746.61 | F25: Cost Recovery Recapture Tax Rate | H25: 0.25
B27: Desired Equity Return (Discount Rate) | D27: 0.1 | F27: Cost Recovery Assumptions
B28: Developer | C28: 0.1 | D28: =Equity_Amount*Contribution_Developer -> 335548.6105 | F28: Assessed Value of Land | H28: =1-Assessed_Value_Prop -> 0.9208799868
B29: JV Partner | C29: =1-C28 -> 0.9 | D29: =Equity_Amount*Contribution_JV -> 3019937.495 | F29: Assessed Value of Improvements | H29: =IFERROR(1-(H8/Acquisition_Gross),0) -> 0.07912001322
B30: Total Equity | C30: =SUM(C28:C29) -> 1 | D30: =SUM(D28:D29) -> 3355486.105 | F30: Cost Recovery Method | H30: Straight Line
B31: =IF(Contribution_Developer<1,"Please refer to the Equity Investor Returns worksheet for waterfall information.","") -> Please refer to the Equity Investor Returns worksheet for waterfall information. | F31: Useful Life | H31: 27.5
F32: C.R. 1st & Last Years (11.5 months) | H32: =ROUND(H33/12*11.5,5) -> 0.03485
F33: C.R. Interim Years (12 Months) | H33: =ROUND(1/Useful_Life,5) -> 0.03636
B36: Debt Structure Assumptions
B37: =IF(Project_Type="New Construction","Development Loan","Interest Only Loan") -> Interest Only Loan | F37: Amortizing Debt Service
B38: Will there be an Interest Only Period? | D38: No | F38: Amortization Type | H38: American
B39: Loan Amount | D39: =Loan_Amount -> 9773260.5 | F39: Amortizing Loan Amount | H39: =IF(OR(Loan_IO_Approval="no",Loan_IO_AtMaturity="Amortize Loan Balance"),Loan_Amount,Settings!$B$39) -> 9773260.5
B40: Interest Expense | D40: Included in Budget | F40: Term (Months) | H40: 120
B41: Interest Amount Included in Budget | D41: 100000 | F41: Amortization (Months) | H41: 360
B42: Term (Months) | D42: 12 | F42: Start Rate | H42: 0.045
B43: Rate | D43: 0.05 | F43: Origination Fee | H43: 0.01
B44: Origination Fee | D44: 0 | F44: Initial Interest Only Period | G44: No | H44: 0
B45: Funding Status | D45: Fund Up | F45: Exit Fee | H45: 0
B46: Fully Funded by Month: | D46: =Loan_IO_Term -> 12 | F46: Rate Type | H46: Fixed
B47: Action at Maturity: | D47: Amortize Loan Balance | F47: Grow Rate | G47: 0 | H47: 1
B48: Minimum DSCR | D48: 1.25
B49: Maximum LTV | D49: 0.75
B50: Based on Cap Rate of | C50: =Exit_Rate -> 0.065 | D50: =ROUND(Loan_IO_Term/12,0)+1 -> 2
B51: =IFERROR(IF(Settings!B38=MIN(Settings!B36,Settings!B38),"Loan is limited based on LTV.","Loan is limited based on DSCR."),"") -> Loan is limited based on LTV.
B53: Sale Assumptions
B54: Year of Sale | D54: 10
B55: Terminal Value Calculation Method | D55: Cap Rate | F55: www.realpropmetrics.com
B56: Cost of Sale | D56: 0.005 | F56: ="Version: "&Version -> Version: 9.42 M | © 2022
B57: =IF(Disposition="Cap Rate","Exit Cap Rate",IF(Disposition="Annual Growth Rate","Annual Growth Rate","Sale Price")) -> Exit Cap Rate | D57: 0.065 | F57: =TODAY() -> 2022-02-23

Sheet Unit Mix
B3: =Project_Name -> New Multifamily Project
B5: Unit Mix
B8: Unit Type | C8: Beds | D8: Baths | E8: Number of Units | F8: % | G8: Unit SF | H8: Total SF | I8: Monthly Rental Rate | J8: $ PSF | K8: Total Monthly Rent
B9: Eff | C9: 1 | D9: 1 | E9: 16 | F9: =Unit_Mix[[#This Row],[Number of Units]]/SUM(Unit_Mix[Number of Units]) -> 0.08 | G9: 523 | H9: =Unit_Mix[[#This Row],[Unit SF]]*Unit_Mix[[#This Row],[Number of Units]] -> 8368 | I9: 510 | J9: =IFERROR(Unit_Mix[[#This Row],[Monthly Rental Rate]]/Unit_Mix[[#This Row],[Unit SF]],"-") -> 0.9751434034 | K9: =Unit_Mix[[#This Row],[Monthly Rental Rate]]*Unit_Mix[[#This Row],[Number of Units]] -> 8160
B10: A | C10: 1 | D10: 1 | E10: 40 | F10: =Unit_Mix[[#This Row],[Number of Units]]/SUM(Unit_Mix[Number of Units]) -> 0.2 | G10: 620 | H10: =Unit_Mix[[#This Row],[Unit SF]]*Unit_Mix[[#This Row],[Number of Units]] -> 24800 | I10: 610 | J10: =IFERROR(Unit_Mix[[#This Row],[Monthly Rental Rate]]/Unit_Mix[[#This Row],[Unit SF]],"-") -> 0.9838709677 | K10: =Unit_Mix[[#This Row],[Monthly Rental Rate]]*Unit_Mix[[#This Row],[Number of Units]] -> 24400
B11: B | C11: 2 | D11: 1 | E11: 32 | F11: =Unit_Mix[[#This Row],[Number of Units]]/SUM(Unit_Mix[Number of Units]) -> 0.16 | G11: 696 | H11: =Unit_Mix[[#This Row],[Unit SF]]*Unit_Mix[[#This Row],[Number of Units]] -> 22272 | I11: 699 | J11: =IFERROR(Unit_Mix[[#This Row],[Monthly Rental Rate]]/Unit_Mix[[#This Row],[Unit SF]],"-") -> 1.004310345 | K11: =Unit_Mix[[#This Row],[Monthly Rental Rate]]*Unit_Mix[[#This Row],[Number of Units]] -> 22368
B12: C | C12: 2 | D12: 1 | E12: 64 | F12: =Unit_Mix[[#This Row],[Number of Units]]/SUM(Unit_Mix[Number of Units]) -> 0.32 | G12: 732 | H12: =Unit_Mix[[#This Row],[Unit SF]]*Unit_Mix[[#This Row],[Number of Units]] -> 46848 | I12: 759 | J12: =IFERROR(Unit_Mix[[#This Row],[Monthly Rental Rate]]/Unit_Mix[[#This Row],[Unit SF]],"-") -> 1.036885246 | K12: =Unit_Mix[[#This Row],[Monthly Rental Rate]]*Unit_Mix[[#This Row],[Number of Units]] -> 48576
B13: D | C13: 2 | D13: 1 | E13: 48 | F13: =Unit_Mix[[#This Row],[Number of Units]]/SUM(Unit_Mix[Number of Units]) -> 0.24 | G13: 812 | H13: =Unit_Mix[[#This Row],[Unit SF]]*Unit_Mix[[#This Row],[Number of Units]] -> 38976 | I13: 789 | J13: =IFERROR(Unit_Mix[[#This Row],[Monthly Rental Rate]]/Unit_Mix[[#This Row],[Unit SF]],"-") -> 0.9716748768 | K13: =Unit_Mix[[#This Row],[Monthly Rental Rate]]*Unit_Mix[[#This Row],[Number of Units]] -> 37872
B14: Total | E14: =SUBTOTAL(109,Unit_Mix[Number of Units]) -> 200 | F14: =SUBTOTAL(109,Unit_Mix[%]) -> 1 | G14: =IFERROR(SUMPRODUCT(Unit_Mix[Number of Units],Unit_Mix[Unit SF])/Unit_Mix[[#Totals],[Number of Units]],0) -> 706.32 | H14: =SUBTOTAL(109,Unit_Mix[Total SF]) -> 141264 | I14: =IFERROR(Unit_Mix[[#Totals],[Total Monthly Rent]]/Unit_Mix[[#Totals],[Number of Units]],0) -> 706.88 | J14: =IFERROR(Unit_Mix[[#Totals],[Total Monthly Rent]]/Unit_Mix[[#Totals],[Total SF]],"-") -> 1.000792842 | K14: =SUBTOTAL(109,Unit_Mix[Total Monthly Rent]) -> 141376
B18: www.realpropmetrics.com
B19: ="Version: "&Version -> Version: 9.42 M | © 2022
B20: =TODAY() -> 2022-02-23

Sheet Lease Up Schedule
B3: Lease-Up Schedule
B5: Total Units | D5: =SF_Total -> 200
B6: Beginning Occupancy | D6: 0.93
B7: Stabilized Occupancy | D7: 0.95
B8: Stabilized Units | D8: =ROUND(D5*D7,0) -> 190
B9: Begin Occupying in Month | D9: 1
B10: Units Pre-Leased | D10: 0
B11: Units Leased per Month | D11: 10
B13: ="Project leases in "&COUNTIF($E$38:$E$157,">0")&" months." -> Project leases in 1 months.
B14: ="Stabilization is achieved in month "&MATCH(D8,$F$38:$F$157,0)&"." -> Stabilization is achieved in month 1.
B16: Annual Summary
B17: Period | C17: Dates | D17: Leased Units (BOY) | E17: Leased in Period | F17: Leased Units (EOY) | G17: Average Occupancy | H17: Average Vacancy
B18: 1 | C18: =RPMDateSpan(B18,1) -> Jan 22 - Dec 22 | D18: =VLOOKUP(((B18-1)*12)+1,$B$37:$H$157,3,FALSE) -> 186 | E18: =SUM(OFFSET($E$38:$E$49,(B18-1)*12,0)) -> 4 | F18: =MAX(OFFSET($F$38:$F$49,(B18-1)*12,0)) -> 190 | G18: =AVERAGE(OFFSET($G$38:$G$49,(B18-1)*12,0)) -> 0.95 | H18: =1-G18 -> 0.05
B19: 2 | C19: =RPMDateSpan(B19,1) -> Jan 23 - Dec 23 | D19: =VLOOKUP(((B19-1)*12)+1,$B$37:$H$157,3,FALSE) -> 190 | E19: 0 | F19: 190 | G19: 0.95 | H19: =1-G19 -> 0.05
B20: 3 | C20: Jan 24 - Dec 24 | D20: 190 | E20: 0 | F20: 190 | G20: 0.95 | H20: 0.05
B21: 4 | C21: Jan 25 - Dec 25 | D21: 190 | E21: 0 | F21: 190 | G21: 0.95 | H21: 0.05
B22: 5 | C22: Jan 26 - Dec 26 | D22: 190 | E22: 0 | F22: 190 | G22: 0.95 | H22: 0.05
B23: 6 | C23: Jan 27 - Dec 27 | D23: 190 | E23: 0 | F23: 190 | G23: 0.95 | H23: 0.05
B24: 7 | C24: Jan 28 - Dec 28 | D24: 190 | E24: 0 | F24: 190 | G24: 0.95 | H24: 0.05
B25: 8 | C25: Jan 29 - Dec 29 | D25: 190 | E25: 0 | F25: 190 | G25: 0.95 | H25: 0.05
B26: 9 | C26: Jan 30 - Dec 30 | D26: 190 | E26: 0 | F26: 190 | G26: 0.95 | H26: 0.05
B27: 10 | C27: Jan 31 - Dec 31 | D27: 190 | E27: 0 | F27: 190 | G27: 0.95 | H27: 0.05
G33: www.realpropmetrics.com
G34: ="Version: "&Version -> Version: 9.42 M | © 2022
G35: =TODAY() -> 2022-02-23
B37: Month | C37: Date | D37: Begin | E37: Leased in Period | F37: End | G37: Occupancy | H37: Vacancy
B38: 1 | C38: =RPMDateSpan(B38,3) -> Jan 2022 | D38: =ROUND(D5*D6,0) -> 186 | E38: =IF(B38<$D$9,0,MIN($D$11,$D$8-D38))+IF(B38=$D$9,$D$10,0) -> 4 | F38: =SUM(D38:E38) -> 190 | G38: =F38/Size_Total -> 0.95 | H38: =1-G38 -> 0.05
B39: 2 | C39: =RPMDateSpan(B39,3) -> Feb 2022 | D39: =F38 -> 190 | E39: 0 | F39: =SUM(D39:E39) -> 190 | G39: 0.95 | H39: =1-G39 -> 0.05
B40: 3 | C40: Mar 2022 | D40: =F39 -> 190 | E40: 0 | F40: 190 | G40: 0.95 | H40: 0.05
B41: 4 | C41: Apr 2022 | D41: 190 | E41: 0 | F41: 190 | G41: 0.95 | H41: 0.05
B42: 5 | C42: May 2022 | D42: 190 | E42: 0 | F42: 190 | G42: 0.95 | H42: 0.05
B43: 6 | C43: Jun 2022 | D43: 190 | E43: 0 | F43: 190 | G43: 0.95 | H43: 0.05
B44: 7 | C44: Jul 2022 | D44: 190 | E44: 0 | F44: 190 | G44: 0.95 | H44: 0.05
B45: 8 | C45: Aug 2022 | D45: 190 | E45: 0 | F45: 190 | G45: 0.95 | H45: 0.05
B46: 9 | C46: Sep 2022 | D46: 190 | E46: 0 | F46: 190 | G46: 0.95 | H46: 0.05
B47: 10 | C47: Oct 2022 | D47: 190 | E47: 0 | F47: 190 | G47: 0.95 | H47: 0.05
B48: 11 | C48: Nov 2022 | D48: 190 | E48: 0 | F48: 190 | G48: 0.95 | H48: 0.05
B49: 12 | C49: Dec 2022 | D49: 190 | E49: 0 | F49: 190 | G49: 0.95 | H49: 0.05
B50: 13 | C50: Jan 2023 | D50: 190 | E50: 0 | F50: 190 | G50: 0.95 | H50: 0.05
B51: 14 | C51: Feb 2023 | D51: 190 | E51: 0 | F51: 190 | G51: 0.95 | H51: 0.05
B52: 15 | C52: Mar 2023 | D52: 190 | E52: 0 | F52: 190 | G52: 0.95 | H52: 0.05
B53: 16 | C53: Apr 2023 | D53: 190 | E53: 0 | F53: 190 | G53: 0.95 | H53: 0.05
B54: 17 | C54: May 2023 | D54: 190 | E54: 0 | F54: 190 | G54: 0.95 | H54: 0.05
B55: 18 | C55: Jun 2023 | D55: 190 | E55: 0 | F55: 190 | G55: 0.95 | H55: 0.05
B56: 19 | C56: Jul 2023 | D56: 190 | E56: 0 | F56: 190 | G56: 0.95 | H56: 0.05
B57: 20 | C57: Aug 2023 | D57: 190 | E57: 0 | F57: 190 | G57: 0.95 | H57: 0.05
B58: 21 | C58: Sep 2023 | D58: 190 | E58: 0 | F58: 190 | G58: 0.95 | H58: 0.05
B59: 22 | C59: Oct 2023 | D59: 190 | E59: 0 | F59: 190 | G59: 0.95 | H59: 0.05
B60: 23 | C60: Nov 2023 | D60: 190 | E60: 0 | F60: 190 | G60: 0.95 | H60: 0.05
B61: 24 | C61: Dec 2023 | D61: 190 | E61: 0 | F61: 190 | G61: 0.95 | H61: 0.05
B62: 25 | C62: Jan 2024 | D62: 190 | E62: 0 | F62: 190 | G62: 0.95 | H62: 0.05
B63: 26 | C63: Feb 2024 | D63: 190 | E63: 0 | F63: 190 | G63: 0.95 | H63: 0.05
B64: 27 | C64: Mar 2024 | D64: 190 | E64: 0 | F64: 190 | G64: 0.95 | H64: 0.05
B65: 28 | C65: Apr 2024 | D65: 190 | E65: 0 | F65: 190 | G65: 0.95 | H65: 0.05
B66: 29 | C66: May 2024 | D66: 190 | E66: 0 | F66: 190 | G66: 0.95 | H66: 0.05
B67: 30 | C67: Jun 2024 | D67: 190 | E67: 0 | F67: 190 | G67: 0.95 | H67: 0.05
B68: 31 | C68: Jul 2024 | D68: 190 | E68: 0 | F68: 190 | G68: 0.95 | H68: 0.05
B69: 32 | C69: Aug 2024 | D69: 190 | E69: 0 | F69: 190 | G69: 0.95 | H69: 0.05
B70: 33 | C70: Sep 2024 | D70: 190 | E70: =IF(B70<$D$9,0,MIN($D$11,$D$8-D70))+IF(B70=$D$9,$D$10,0) -> 0 | F70: 190 | G70: =F70/Size_Total -> 0.95 | H70: 0.05
B71: 34 | C71: Oct 2024 | D71: 190 | E71: 0 | F71: 190 | G71: 0.95 | H71: 0.05
B72: 35 | C72: Nov 2024 | D72: 190 | E72: 0 | F72: 190 | G72: 0.95 | H72: 0.05
B73: 36 | C73: Dec 2024 | D73: 190 | E73: 0 | F73: 190 | G73: 0.95 | H73: 0.05
B74: 37 | C74: Jan 2025 | D74: 190 | E74: 0 | F74: 190 | G74: 0.95 | H74: 0.05
B75: 38 | C75: Feb 2025 | D75: 190 | E75: 0 | F75: 190 | G75: 0.95 | H75: 0.05
B76: 39 | C76: Mar 2025 | D76: 190 | E76: 0 | F76: 190 | G76: 0.95 | H76: 0.05
B77: 40 | C77: Apr 2025 | D77: 190 | E77: 0 | F77: 190 | G77: 0.95 | H77: 0.05
B78: 41 | C78: May 2025 | D78: 190 | E78: 0 | F78: 190 | G78: 0.95 | H78: 0.05
B79: 42 | C79: Jun 2025 | D79: 190 | E79: 0 | F79: 190 | G79: 0.95 | H79: 0.05
B80: 43 | C80: Jul 2025 | D80: 190 | E80: 0 | F80: 190 | G80: 0.95 | H80: 0.05
B81: 44 | C81: Aug 2025 | D81: 190 | E81: 0 | F81: 190 | G81: 0.95 | H81: 0.05
B82: 45 | C82: Sep 2025 | D82: 190 | E82: 0 | F82: 190 | G82: 0.95 | H82: 0.05
B83: 46 | C83: Oct 2025 | D83: 190 | E83: 0 | F83: 190 | G83: 0.95 | H83: 0.05
B84: 47 | C84: Nov 2025 | D84: 190 | E84: 0 | F84: 190 | G84: 0.95 | H84: 0.05
B85: 48 | C85: Dec 2025 | D85: 190 | E85: 0 | F85: 190 | G85: 0.95 | H85: 0.05
B86: 49 | C86: Jan 2026 | D86: 190 | E86: 0 | F86: 190 | G86: 0.95 | H86: 0.05
B87: 50 | C87: Feb 2026 | D87: 190 | E87: 0 | F87: 190 | G87: 0.95 | H87: 0.05
B88: 51 | C88: Mar 2026 | D88: 190 | E88: 0 | F88: 190 | G88: 0.95 | H88: 0.05
B89: 52 | C89: Apr 2026 | D89: 190 | E89: 0 | F89: 190 | G89: 0.95 | H89: 0.05
B90: 53 | C90: May 2026 | D90: 190 | E90: 0 | F90: 190 | G90: 0.95 | H90: 0.05
B91: 54 | C91: Jun 2026 | D91: 190 | E91: 0 | F91: 190 | G91: 0.95 | H91: 0.05
B92: 55 | C92: Jul 2026 | D92: 190 | E92: 0 | F92: 190 | G92: 0.95 | H92: 0.05
B93: 56 | C93: Aug 2026 | D93: 190 | E93: 0 | F93: 190 | G93: 0.95 | H93: 0.05
B94: 57 | C94: Sep 2026 | D94: 190 | E94: 0 | F94: 190 | G94: 0.95 | H94: 0.05
B95: 58 | C95: Oct 2026 | D95: 190 | E95: 0 | F95: 190 | G95: 0.95 | H95: 0.05
B96: 59 | C96: Nov 2026 | D96: 190 | E96: 0 | F96: 190 | G96: 0.95 | H96: 0.05
B97: 60 | C97: Dec 2026 | D97: 190 | E97: 0 | F97: 190 | G97: 0.95 | H97: 0.05
B98: 61 | C98: Jan 2027 | D98: 190 | E98: 0 | F98: 190 | G98: 0.95 | H98: 0.05
B99: 62 | C99: Feb 2027 | D99: 190 | E99: 0 | F99: 190 | G99: 0.95 | H99: 0.05
B100: 63 | C100: Mar 2027 | D100: 190 | E100: 0 | F100: 190 | G100: 0.95 | H100: 0.05
B101: 64 | C101: Apr 2027 | D101: 190 | E101: 0 | F101: 190 | G101: 0.95 | H101: 0.05
B102: 65 | C102: May 2027 | D102: 190 | E102: =IF(B102<$D$9,0,MIN($D$11,$D$8-D102))+IF(B102=$D$9,$D$10,0) -> 0 | F102: 190 | G102: =F102/Size_Total -> 0.95 | H102: 0.05
B103: 66 | C103: =RPMDateSpan(B103,3) -> Jun 2027 | D103: 190 | E103: 0 | F103: =SUM(D103:E103) -> 190 | G103: 0.95 | H103: =1-G103 -> 0.05
B104: 67 | C104: Jul 2027 | D104: =F103 -> 190 | E104: 0 | F104: 190 | G104: 0.95 | H104: 0.05
B105: 68 | C105: Aug 2027 | D105: 190 | E105: 0 | F105: 190 | G105: 0.95 | H105: 0.05
B106: 69 | C106: Sep 2027 | D106: 190 | E106: 0 | F106: 190 | G106: 0.95 | H106: 0.05
B107: 70 | C107: Oct 2027 | D107: 190 | E107: 0 | F107: 190 | G107: 0.95 | H107: 0.05
B108: 71 | C108: Nov 2027 | D108: 190 | E108: 0 | F108: 190 | G108: 0.95 | H108: 0.05
B109: 72 | C109: Dec 2027 | D109: 190 | E109: 0 | F109: 190 | G109: 0.95 | H109: 0.05
B110: 73 | C110: Jan 2028 | D110: 190 | E110: 0 | F110: 190 | G110: 0.95 | H110: 0.05
B111: 74 | C111: Feb 2028 | D111: 190 | E111: 0 | F111: 190 | G111: 0.95 | H111: 0.05
B112: 75 | C112: Mar 2028 | D112: 190 | E112: 0 | F112: 190 | G112: 0.95 | H112: 0.05
B113: 76 | C113: Apr 2028 | D113: 190 | E113: 0 | F113: 190 | G113: 0.95 | H113: 0.05
B114: 77 | C114: May 2028 | D114: 190 | E114: 0 | F114: 190 | G114: 0.95 | H114: 0.05
B115: 78 | C115: Jun 2028 | D115: 190 | E115: 0 | F115: 190 | G115: 0.95 | H115: 0.05
B116: 79 | C116: Jul 2028 | D116: 190 | E116: 0 | F116: 190 | G116: 0.95 | H116: 0.05
B117: 80 | C117: Aug 2028 | D117: 190 | E117: 0 | F117: 190 | G117: 0.95 | H117: 0.05
B118: 81 | C118: Sep 2028 | D118: 190 | E118: 0 | F118: 190 | G118: 0.95 | H118: 0.05
B119: 82 | C119: Oct 2028 | D119: 190 | E119: 0 | F119: 190 | G119: 0.95 | H119: 0.05
B120: 83 | C120: Nov 2028 | D120: 190 | E120: 0 | F120: 190 | G120: 0.95 | H120: 0.05
B121: 84 | C121: Dec 2028 | D121: 190 | E121: 0 | F121: 190 | G121: 0.95 | H121: 0.05
B122: 85 | C122: Jan 2029 | D122: 190 | E122: 0 | F122: 190 | G122: 0.95 | H122: 0.05
B123: 86 | C123: Feb 2029 | D123: 190 | E123: 0 | F123: 190 | G123: 0.95 | H123: 0.05
B124: 87 | C124: Mar 2029 | D124: 190 | E124: 0 | F124: 190 | G124: 0.95 | H124: 0.05
B125: 88 | C125: Apr 2029 | D125: 190 | E125: 0 | F125: 190 | G125: 0.95 | H125: 0.05
B126: 89 | C126: May 2029 | D126: 190 | E126: 0 | F126: 190 | G126: 0.95 | H126: 0.05
B127: 90 | C127: Jun 2029 | D127: 190 | E127: 0 | F127: 190 | G127: 0.95 | H127: 0.05
B128: 91 | C128: Jul 2029 | D128: 190 | E128: 0 | F128: 190 | G128: 0.95 | H128: 0.05
B129: 92 | C129: Aug 2029 | D129: 190 | E129: 0 | F129: 190 | G129: 0.95 | H129: 0.05
B130: 93 | C130: Sep 2029 | D130: 190 | E130: 0 | F130: 190 | G130: 0.95 | H130: 0.05
B131: 94 | C131: Oct 2029 | D131: 190 | E131: 0 | F131: 190 | G131: 0.95 | H131: 0.05
B132: 95 | C132: Nov 2029 | D132: 190 | E132: 0 | F132: 190 | G132: 0.95 | H132: 0.05
B133: 96 | C133: Dec 2029 | D133: 190 | E133: 0 | F133: 190 | G133: 0.95 | H133: 0.05
B134: 97 | C134: Jan 2030 | D134: 190 | E134: =IF(B134<$D$9,0,MIN($D$11,$D$8-D134))+IF(B134=$D$9,$D$10,0) -> 0 | F134: 190 | G134: =F134/Size_Total -> 0.95 | H134: 0.05
B135: 98 | C135: Feb 2030 | D135: 190 | E135: 0 | F135: 190 | G135: 0.95 | H135: 0.05
B136: 99 | C136: Mar 2030 | D136: 190 | E136: 0 | F136: 190 | G136: 0.95 | H136: 0.05
B137: 100 | C137: Apr 2030 | D137: 190 | E137: 0 | F137: 190 | G137: 0.95 | H137: 0.05
B138: 101 | C138: May 2030 | D138: 190 | E138: 0 | F138: 190 | G138: 0.95 | H138: 0.05
B139: 102 | C139: Jun 2030 | D139: 190 | E139: 0 | F139: 190 | G139: 0.95 | H139: 0.05
B140: 103 | C140: Jul 2030 | D140: 190 | E140: 0 | F140: 190 | G140: 0.95 | H140: 0.05
B141: 104 | C141: Aug 2030 | D141: 190 | E141: 0 | F141: 190 | G141: 0.95 | H141: 0.05
B142: 105 | C142: Sep 2030 | D142: 190 | E142: 0 | F142: 190 | G142: 0.95 | H142: 0.05
B143: 106 | C143: Oct 2030 | D143: 190 | E143: 0 | F143: 190 | G143: 0.95 | H143: 0.05
B144: 107 | C144: Nov 2030 | D144: 190 | E144: 0 | F144: 190 | G144: 0.95 | H144: 0.05
B145: 108 | C145: Dec 2030 | D145: 190 | E145: 0 | F145: 190 | G145: 0.95 | H145: 0.05
B146: 109 | C146: Jan 2031 | D146: 190 | E146: 0 | F146: 190 | G146: 0.95 | H146: 0.05
B147: 110 | C147: Feb 2031 | D147: 190 | E147: 0 | F147: 190 | G147: 0.95 | H147: 0.05
B148: 111 | C148: Mar 2031 | D148: 190 | E148: 0 | F148: 190 | G148: 0.95 | H148: 0.05
B149: 112 | C149: Apr 2031 | D149: 190 | E149: 0 | F149: 190 | G149: 0.95 | H149: 0.05
B150: 113 | C150: May 2031 | D150: 190 | E150: 0 | F150: 190 | G150: 0.95 | H150: 0.05
B151: 114 | C151: Jun 2031 | D151: 190 | E151: 0 | F151: 190 | G151: 0.95 | H151: 0.05
B152: 115 | C152: Jul 2031 | D152: 190 | E152: 0 | F152: 190 | G152: 0.95 | H152: 0.05
B153: 116 | C153: Aug 2031 | D153: 190 | E153: 0 | F153: 190 | G153: 0.95 | H153: 0.05
B154: 117 | C154: Sep 2031 | D154: 190 | E154: 0 | F154: 190 | G154: 0.95 | H154: 0.05
B155: 118 | C155: Oct 2031 | D155: 190 | E155: 0 | F155: 190 | G155: 0.95 | H155: 0.05
B156: 119 | C156: Nov 2031 | D156: 190 | E156: 0 | F156: 190 | G156: 0.95 | H156: 0.05
B157: 120 | C157: Dec 2031 | D157: 190 | E157: 0 | F157: 190 | G157: 0.95 | H157: 0.05

Sheet Cash Flows
B5: Schedule of Prospective Cash Flows
B7: Period | F7: 1 | G7: 2 | H7: 3 | I7: 4 | J7: 5 | K7: 6 | L7: 7 | M7: 8 | N7: 9 | O7: 10 | P7: 11
F8: =RPMDateSpan(F7,1) -> Jan 22 - Dec 22 | G8: =RPMDateSpan(G7,1) -> Jan 23 - Dec 23 | H8: Jan 24 - Dec 24 | I8: Jan 25 - Dec 25 | J8: Jan 26 - Dec 26 | K8: Jan 27 - Dec 27 | L8: Jan 28 - Dec 28 | M8: Jan 29 - Dec 29 | N8: Jan 30 - Dec 30 | O8: Jan 31 - Dec 31 | P8: Jan 32 - Dec 32
B10: Operating Income | E10: Inflation | G10: =Inflation -> 0.03 | H10: =G10 -> 0.03 | I10: =H10 -> 0.03 | J10: =I10 -> 0.03 | K10: 0.03 | L10: 0.03 | M10: 0.03 | N10: 0.03 | O10: 0.03 | P10: 0.03
B12: Base Rental Revenue | F12: =SUM(Unit_Mix[Total Monthly Rent])*12 -> 1696512 | G12: =IFERROR(RPMGrow($E12,F12,G$10),"Please Enable Macros") -> 1747407.36 | H12: =IFERROR(RPMGrow($E12,G12,H$10),"Please Enable Macros") -> 1799829.581 | I12: =IFERROR(RPMGrow($E12,H12,I$10),"Please Enable Macros") -> 1853824.468 | J12: =IFERROR(RPMGrow($E12,I12,J$10),"Please Enable Macros") -> 1909439.202 | K12: =IFERROR(RPMGrow($E12,J12,K$10),"Please Enable Macros") -> 1966722.378 | L12: =IFERROR(RPMGrow($E12,K12,L$10),"Please Enable Macros") -> 2025724.05 | M12: =IFERROR(RPMGrow($E12,L12,M$10),"Please Enable Macros") -> 2086495.771 | N12: =IFERROR(RPMGrow($E12,M12,N$10),"Please Enable Macros") -> 2149090.644 | O12: =IFERROR(RPMGrow($E12,N12,O$10),"Please Enable Macros") -> 2213563.364 | P12: =IFERROR(RPMGrow($E12,O12,P$10),"Please Enable Macros") -> 2279970.265
B13: Rental $/Month | F13: =F12/12 -> 141376 | G13: =G12/12 -> 145617.28 | H13: 149985.7984 | I13: 154485.3724 | J13: 159119.9335 | K13: 163893.5315 | L13: 168810.3375 | M13: 173874.6476 | N13: 179090.887 | O13: 184463.6136 | P13: 189997.522
B14: Monthly $ PSF | F14: =F12/Unit_Mix[[#Totals],[Total SF]]/12 -> 1.000792842 | G14: =G12/Unit_Mix[[#Totals],[Total SF]]/12 -> 1.030816627 | H14: =H12/Unit_Mix[[#Totals],[Total SF]]/12 -> 1.061741126 | I14: =I12/Unit_Mix[[#Totals],[Total SF]]/12 -> 1.09359336 | J14: =J12/Unit_Mix[[#Totals],[Total SF]]/12 -> 1.12640116 | K14: =K12/Unit_Mix[[#Totals],[Total SF]]/12 -> 1.160193195 | L14: =L12/Unit_Mix[[#Totals],[Total SF]]/12 -> 1.194998991 | M14: =M12/Unit_Mix[[#Totals],[Total SF]]/12 -> 1.230848961 | N14: =N12/Unit_Mix[[#Totals],[Total SF]]/12 -> 1.26777443 | O14: =O12/Unit_Mix[[#Totals],[Total SF]]/12 -> 1.305807663 | P14: =P12/Unit_Mix[[#Totals],[Total SF]]/12 -> 1.344981892
B16: Other Potential Gross Revenue
B17: Less: Concessions | F17: 0 | G17: =IFERROR(RPMGrow($E17,F17,G$10),"Please Enable Macros") -> 0 | H17: =IFERROR(RPMGrow($E17,G17,H$10),"Please Enable Macros") -> 0 | I17: =IFERROR(RPMGrow($E17,H17,I$10),"Please Enable Macros") -> 0 | J17: =IFERROR(RPMGrow($E17,I17,J$10),"Please Enable Macros") -> 0 | K17: =IFERROR(RPMGrow($E17,J17,K$10),"Please Enable Macros") -> 0 | L17: =IFERROR(RPMGrow($E17,K17,L$10),"Please Enable Macros") -> 0 | M17: =IFERROR(RPMGrow($E17,L17,M$10),"Please Enable Macros") -> 0 | N17: =IFERROR(RPMGrow($E17,M17,N$10),"Please Enable Macros") -> 0 | O17: =IFERROR(RPMGrow($E17,N17,O$10),"Please Enable Macros") -> 0 | P17: =IFERROR(RPMGrow($E17,O17,P$10),"Please Enable Macros") -> 0
B18: Storage Income | F18: 60000 | G18: =IFERROR(RPMGrow($E18,F18,G$10),"Please Enable Macros") -> 61800 | H18: =IFERROR(RPMGrow($E18,G18,H$10),"Please Enable Macros") -> 63654 | I18: =IFERROR(RPMGrow($E18,H18,I$10),"Please Enable Macros") -> 65563.62 | J18: =IFERROR(RPMGrow($E18,I18,J$10),"Please Enable Macros") -> 67530.5286 | K18: =IFERROR(RPMGrow($E18,J18,K$10),"Please Enable Macros") -> 69556.44446 | L18: =IFERROR(RPMGrow($E18,K18,L$10),"Please Enable Macros") -> 71643.13779 | M18: =IFERROR(RPMGrow($E18,L18,M$10),"Please Enable Macros") -> 73792.43193 | N18: =IFERROR(RPMGrow($E18,M18,N$10),"Please Enable Macros") -> 76006.20488 | O18: =IFERROR(RPMGrow($E18,N18,O$10),"Please Enable Macros") -> 78286.39103 | P18: =IFERROR(RPMGrow($E18,O18,P$10),"Please Enable Macros") -> 80634.98276
B19: Laundry Income | F19: 0 | G19: =IFERROR(RPMGrow($E19,F19,G$10),"Please Enable Macros") -> 0 | H19: =IFERROR(RPMGrow($E19,G19,H$10),"Please Enable Macros") -> 0 | I19: =IFERROR(RPMGrow($E19,H19,I$10),"Please Enable Macros") -> 0 | J19: =IFERROR(RPMGrow($E19,I19,J$10),"Please Enable Macros") -> 0 | K19: =IFERROR(RPMGrow($E19,J19,K$10),"Please Enable Macros") -> 0 | L19: =IFERROR(RPMGrow($E19,K19,L$10),"Please Enable Macros") -> 0 | M19: =IFERROR(RPMGrow($E19,L19,M$10),"Please Enable Macros") -> 0 | N19: =IFERROR(RPMGrow($E19,M19,N$10),"Please Enable Macros") -> 0 | O19: =IFERROR(RPMGrow($E19,N19,O$10),"Please Enable Macros") -> 0 | P19: =IFERROR(RPMGrow($E19,O19,P$10),"Please Enable Macros") -> 0
B20: Miscellaneous | F20: 0 | G20: =IFERROR(RPMGrow($E20,F20,G$10),"Please Enable Macros") -> 0 | H20: =IFERROR(RPMGrow($E20,G20,H$10),"Please Enable Macros") -> 0 | I20: =IFERROR(RPMGrow($E20,H20,I$10),"Please Enable Macros") -> 0 | J20: =IFERROR(RPMGrow($E20,I20,J$10),"Please Enable Macros") -> 0 | K20: =IFERROR(RPMGrow($E20,J20,K$10),"Please Enable Macros") -> 0 | L20: =IFERROR(RPMGrow($E20,K20,L$10),"Please Enable Macros") -> 0 | M20: =IFERROR(RPMGrow($E20,L20,M$10),"Please Enable Macros") -> 0 | N20: =IFERROR(RPMGrow($E20,M20,N$10),"Please Enable Macros") -> 0 | O20: =IFERROR(RPMGrow($E20,N20,O$10),"Please Enable Macros") -> 0 | P20: =IFERROR(RPMGrow($E20,O20,P$10),"Please Enable Macros") -> 0
B21: User Defined Income | F21: 0 | G21: =IFERROR(RPMGrow($E21,F21,G$10),"Please Enable Macros") -> 0 | H21: =IFERROR(RPMGrow($E21,G21,H$10),"Please Enable Macros") -> 0 | I21: =IFERROR(RPMGrow($E21,H21,I$10),"Please Enable Macros") -> 0 | J21: =IFERROR(RPMGrow($E21,I21,J$10),"Please Enable Macros") -> 0 | K21: =IFERROR(RPMGrow($E21,J21,K$10),"Please Enable Macros") -> 0 | L21: =IFERROR(RPMGrow($E21,K21,L$10),"Please Enable Macros") -> 0 | M21: =IFERROR(RPMGrow($E21,L21,M$10),"Please Enable Macros") -> 0 | N21: =IFERROR(RPMGrow($E21,M21,N$10),"Please Enable Macros") -> 0 | O21: =IFERROR(RPMGrow($E21,N21,O$10),"Please Enable Macros") -> 0 | P21: =IFERROR(RPMGrow($E21,O21,P$10),"Please Enable Macros") -> 0
B22: Total Other Potential Gross Revenue | F22: =SUM(F17:F21) -> 60000 | G22: =SUM(G17:G21) -> 61800 | H22: 63654 | I22: 65563.62 | J22: 67530.5286 | K22: 69556.44446 | L22: 71643.13779 | M22: 73792.43193 | N22: 76006.20488 | O22: 78286.39103 | P22: 80634.98276
B24: Total Potential Gross Revenue | F24: =SUM(F12,F22) -> 1756512 | G24: =SUM(G12,G22) -> 1809207.36 | H24: 1863483.581 | I24: 1919388.088 | J24: 1976969.731 | K24: 2036278.823 | L24: 2097367.187 | M24: 2160288.203 | N24: 2225096.849 | O24: 2291849.755 | P24: 2360605.247
B26: General Vacancy Rate | F26: =VLOOKUP(F$7,'Lease Up Schedule'!$B$17:$H$27,7,FALSE) -> 0.05 | G26: =VLOOKUP(G$7,'Lease Up Schedule'!$B$17:$H$27,7,FALSE) -> 0.05 | H26: =VLOOKUP(H$7,'Lease Up Schedule'!$B$17:$H$27,7,FALSE) -> 0.05 | I26: =VLOOKUP(I$7,'Lease Up Schedule'!$B$17:$H$27,7,FALSE) -> 0.05 | J26: =VLOOKUP(J$7,'Lease Up Schedule'!$B$17:$H$27,7,FALSE) -> 0.05 | K26: =VLOOKUP(K$7,'Lease Up Schedule'!$B$17:$H$27,7,FALSE) -> 0.05 | L26: =VLOOKUP(L$7,'Lease Up Schedule'!$B$17:$H$27,7,FALSE) -> 0.05 | M26: =VLOOKUP(M$7,'Lease Up Schedule'!$B$17:$H$27,7,FALSE) -> 0.05 | N26: =VLOOKUP(N$7,'Lease Up Schedule'!$B$17:$H$27,7,FALSE) -> 0.05 | O26: =VLOOKUP(O$7,'Lease Up Schedule'!$B$17:$H$27,7,FALSE) -> 0.05 | P26: =O26 -> 0.05
B27: Vacancy & Collection Loss | F27: =-F24*F26 -> -87825.6 | G27: =-G24*G26 -> -90460.368 | H27: -93174.17904 | I27: -95969.40441 | J27: -98848.48654 | K27: -101813.9411 | L27: -104868.3594 | M27: -108014.4102 | N27: -111254.8425 | O27: -114592.4877 | P27: -118030.2624
B29: Other Income
B30: Miscellaneous | F30: 0 | G30: =IFERROR(RPMGrow($E30,F30,G$10),"Please Enable Macros") -> 0 | H30: =IFERROR(RPMGrow($E30,G30,H$10),"Please Enable Macros") -> 0 | I30: =IFERROR(RPMGrow($E30,H30,I$10),"Please Enable Macros") -> 0 | J30: =IFERROR(RPMGrow($E30,I30,J$10),"Please Enable Macros") -> 0 | K30: =IFERROR(RPMGrow($E30,J30,K$10),"Please Enable Macros") -> 0 | L30: =IFERROR(RPMGrow($E30,K30,L$10),"Please Enable Macros") -> 0 | M30: =IFERROR(RPMGrow($E30,L30,M$10),"Please Enable Macros") -> 0 | N30: =IFERROR(RPMGrow($E30,M30,N$10),"Please Enable Macros") -> 0 | O30: =IFERROR(RPMGrow($E30,N30,O$10),"Please Enable Macros") -> 0 | P30: =IFERROR(RPMGrow($E30,O30,P$10),"Please Enable Macros") -> 0
B31: User Defined Income | F31: 0 | G31: =IFERROR(RPMGrow($E31,F31,G$10),"Please Enable Macros") -> 0 | H31: =IFERROR(RPMGrow($E31,G31,H$10),"Please Enable Macros") -> 0 | I31: =IFERROR(RPMGrow($E31,H31,I$10),"Please Enable Macros") -> 0 | J31: =IFERROR(RPMGrow($E31,I31,J$10),"Please Enable Macros") -> 0 | K31: =IFERROR(RPMGrow($E31,J31,K$10),"Please Enable Macros") -> 0 | L31: =IFERROR(RPMGrow($E31,K31,L$10),"Please Enable Macros") -> 0 | M31: =IFERROR(RPMGrow($E31,L31,M$10),"Please Enable Macros") -> 0 | N31: =IFERROR(RPMGrow($E31,M31,N$10),"Please Enable Macros") -> 0 | O31: =IFERROR(RPMGrow($E31,N31,O$10),"Please Enable Macros") -> 0 | P31: =IFERROR(RPMGrow($E31,O31,P$10),"Please Enable Macros") -> 0
B32: User Defined Income | F32: 0 | G32: =IFERROR(RPMGrow($E32,F32,G$10),"Please Enable Macros") -> 0 | H32: =IFERROR(RPMGrow($E32,G32,H$10),"Please Enable Macros") -> 0 | I32: =IFERROR(RPMGrow($E32,H32,I$10),"Please Enable Macros") -> 0 | J32: =IFERROR(RPMGrow($E32,I32,J$10),"Please Enable Macros") -> 0 | K32: =IFERROR(RPMGrow($E32,J32,K$10),"Please Enable Macros") -> 0 | L32: =IFERROR(RPMGrow($E32,K32,L$10),"Please Enable Macros") -> 0 | M32: =IFERROR(RPMGrow($E32,L32,M$10),"Please Enable Macros") -> 0 | N32: =IFERROR(RPMGrow($E32,M32,N$10),"Please Enable Macros") -> 0 | O32: =IFERROR(RPMGrow($E32,N32,O$10),"Please Enable Macros") -> 0 | P32: =IFERROR(RPMGrow($E32,O32,P$10),"Please Enable Macros") -> 0
B33: Total Other Income | F33: =SUM(F30:F32) -> 0 | G33: 0 | H33: 0 | I33: 0 | J33: 0 | K33: 0 | L33: 0 | M33: 0 | N33: 0 | O33: 0 | P33: 0
B35: Effective Gross Income | F35: =SUM(F24,F27,F33) -> 1668686.4 | G35: =SUM(G24,G27,G33) -> 1718746.992 | H35: 1770309.402 | I35: 1823418.684 | J35: 1878121.244 | K35: 1934464.882 | L35: 1992498.828 | M35: 2052273.793 | N35: 2113842.007 | O35: 2177257.267 | P35: 2242574.985
B36: Effective $/Month | F36: =F35/12 -> 139057.2 | G36: 143228.916 | H36: 147525.7835 | I36: 151951.557 | J36: 156510.1037 | K36: 161205.4068 | L36: 166041.569 | M36: 171022.8161 | N36: 176153.5006 | O36: 181438.1056 | P36: 186881.2487
B37: Eff. Monthly $/Unit | F37: =F35/Unit_Mix[[#Totals],[Total SF]]/12 -> 0.9843781855 | G37: =G35/Unit_Mix[[#Totals],[Total SF]]/12 -> 1.013909531 | H37: =H35/Unit_Mix[[#Totals],[Total SF]]/12 -> 1.044326817 | I37: =I35/Unit_Mix[[#Totals],[Total SF]]/12 -> 1.075656622 | J37: =J35/Unit_Mix[[#Totals],[Total SF]]/12 -> 1.10792632 | K37: =K35/Unit_Mix[[#Totals],[Total SF]]/12 -> 1.14116411 | L37: =L35/Unit_Mix[[#Totals],[Total SF]]/12 -> 1.175399033 | M37: =M35/Unit_Mix[[#Totals],[Total SF]]/12 -> 1.210661004 | N37: =N35/Unit_Mix[[#Totals],[Total SF]]/12 -> 1.246980834 | O37: =O35/Unit_Mix[[#Totals],[Total SF]]/12 -> 1.284390259 | P37: =P35/Unit_Mix[[#Totals],[Total SF]]/12 -> 1.322921967
B39: Operating Expenses | E39: Inflation | G39: =Inflation -> 0.03 | H39: =G39 -> 0.03 | I39: 0.03 | J39: 0.03 | K39: 0.03 | L39: 0.03 | M39: 0.03 | N39: 0.03 | O39: 0.03 | P39: 0.03
B41: Property Management Fee | D41: 0.03 | F41: =$D$41*F$35 -> 50060.592 | G41: 51562.40976 | H41: 53109.28205 | I41: 54702.56051 | J41: 56343.63733 | K41: 58033.94645 | L41: 59774.96484 | M41: 61568.21379 | N41: 63415.2602 | O41: 65317.71801 | P41: 67277.24955
B42: Ad Valorem Taxes | F42: 675000 | G42: =IFERROR(RPMGrow($E42,F42,G$39),"Please Enable Macros") -> 695250 | H42: =IFERROR(RPMGrow($E42,G42,H$39),"Please Enable Macros") -> 716107.5 | I42: =IFERROR(RPMGrow($E42,H42,I$39),"Please Enable Macros") -> 737590.725 | J42: =IFERROR(RPMGrow($E42,I42,J$39),"Please Enable Macros") -> 759718.4468 | K42: =IFERROR(RPMGrow($E42,J42,K$39),"Please Enable Macros") -> 782510.0002 | L42: =IFERROR(RPMGrow($E42,K42,L$39),"Please Enable Macros") -> 805985.3002 | M42: =IFERROR(RPMGrow($E42,L42,M$39),"Please Enable Macros") -> 830164.8592 | N42: =IFERROR(RPMGrow($E42,M42,N$39),"Please Enable Macros") -> 855069.8049 | O42: =IFERROR(RPMGrow($E42,N42,O$39),"Please Enable Macros") -> 880721.8991 | P42: =IFERROR(RPMGrow($E42,O42,P$39),"Please Enable Macros") -> 907143.5561
B43: Insurance | F43: 0 | G43: =IFERROR(RPMGrow($E43,F43,G$39),"Please Enable Macros") -> 0 | H43: =IFERROR(RPMGrow($E43,G43,H$39),"Please Enable Macros") -> 0 | I43: =IFERROR(RPMGrow($E43,H43,I$39),"Please Enable Macros") -> 0 | J43: =IFERROR(RPMGrow($E43,I43,J$39),"Please Enable Macros") -> 0 | K43: =IFERROR(RPMGrow($E43,J43,K$39),"Please Enable Macros") -> 0 | L43: =IFERROR(RPMGrow($E43,K43,L$39),"Please Enable Macros") -> 0 | M43: =IFERROR(RPMGrow($E43,L43,M$39),"Please Enable Macros") -> 0 | N43: =IFERROR(RPMGrow($E43,M43,N$39),"Please Enable Macros") -> 0 | O43: =IFERROR(RPMGrow($E43,N43,O$39),"Please Enable Macros") -> 0 | P43: =IFERROR(RPMGrow($E43,O43,P$39),"Please Enable Macros") -> 0
B44: Utilities | F44: 0 | G44: =IFERROR(RPMGrow($E44,F44,G$39),"Please Enable Macros") -> 0 | H44: =IFERROR(RPMGrow($E44,G44,H$39),"Please Enable Macros") -> 0 | I44: =IFERROR(RPMGrow($E44,H44,I$39),"Please Enable Macros") -> 0 | J44: =IFERROR(RPMGrow($E44,I44,J$39),"Please Enable Macros") -> 0 | K44: =IFERROR(RPMGrow($E44,J44,K$39),"Please Enable Macros") -> 0 | L44: =IFERROR(RPMGrow($E44,K44,L$39),"Please Enable Macros") -> 0 | M44: =IFERROR(RPMGrow($E44,L44,M$39),"Please Enable Macros") -> 0 | N44: =IFERROR(RPMGrow($E44,M44,N$39),"Please Enable Macros") -> 0 | O44: =IFERROR(RPMGrow($E44,N44,O$39),"Please Enable Macros") -> 0 | P44: =IFERROR(RPMGrow($E44,O44,P$39),"Please Enable Macros") -> 0
B45: Repairs & Maintenance | F45: 0 | G45: =IFERROR(RPMGrow($E45,F45,G$39),"Please Enable Macros") -> 0 | H45: =IFERROR(RPMGrow($E45,G45,H$39),"Please Enable Macros") -> 0 | I45: =IFERROR(RPMGrow($E45,H45,I$39),"Please Enable Macros") -> 0 | J45: =IFERROR(RPMGrow($E45,I45,J$39),"Please Enable Macros") -> 0 | K45: =IFERROR(RPMGrow($E45,J45,K$39),"Please Enable Macros") -> 0 | L45: =IFERROR(RPMGrow($E45,K45,L$39),"Please Enable Macros") -> 0 | M45: =IFERROR(RPMGrow($E45,L45,M$39),"Please Enable Macros") -> 0 | N45: =IFERROR(RPMGrow($E45,M45,N$39),"Please Enable Macros") -> 0 | O45: =IFERROR(RPMGrow($E45,N45,O$39),"Please Enable Macros") -> 0 | P45: =IFERROR(RPMGrow($E45,O45,P$39),"Please Enable Macros") -> 0
B46: Cleaning & Garbage Removal | F46: 0 | G46: =IFERROR(RPMGrow($E46,F46,G$39),"Please Enable Macros") -> 0 | H46: =IFERROR(RPMGrow($E46,G46,H$39),"Please Enable Macros") -> 0 | I46: =IFERROR(RPMGrow($E46,H46,I$39),"Please Enable Macros") -> 0 | J46: =IFERROR(RPMGrow($E46,I46,J$39),"Please Enable Macros") -> 0 | K46: =IFERROR(RPMGrow($E46,J46,K$39),"Please Enable Macros") -> 0 | L46: =IFERROR(RPMGrow($E46,K46,L$39),"Please Enable Macros") -> 0 | M46: =IFERROR(RPMGrow($E46,L46,M$39),"Please Enable Macros") -> 0 | N46: =IFERROR(RPMGrow($E46,M46,N$39),"Please Enable Macros") -> 0 | O46: =IFERROR(RPMGrow($E46,N46,O$39),"Please Enable Macros") -> 0 | P46: =IFERROR(RPMGrow($E46,O46,P$39),"Please Enable Macros") -> 0
B47: Contract Services | F47: 0 | G47: =IFERROR(RPMGrow($E47,F47,G$39),"Please Enable Macros") -> 0 | H47: =IFERROR(RPMGrow($E47,G47,H$39),"Please Enable Macros") -> 0 | I47: =IFERROR(RPMGrow($E47,H47,I$39),"Please Enable Macros") -> 0 | J47: =IFERROR(RPMGrow($E47,I47,J$39),"Please Enable Macros") -> 0 | K47: =IFERROR(RPMGrow($E47,J47,K$39),"Please Enable Macros") -> 0 | L47: =IFERROR(RPMGrow($E47,K47,L$39),"Please Enable Macros") -> 0 | M47: =IFERROR(RPMGrow($E47,L47,M$39),"Please Enable Macros") -> 0 | N47: =IFERROR(RPMGrow($E47,M47,N$39),"Please Enable Macros") -> 0 | O47: =IFERROR(RPMGrow($E47,N47,O$39),"Please Enable Macros") -> 0 | P47: =IFERROR(RPMGrow($E47,O47,P$39),"Please Enable Macros") -> 0
B48: General & Administrative | F48: 0 | G48: =IFERROR(RPMGrow($E48,F48,G$39),"Please Enable Macros") -> 0 | H48: =IFERROR(RPMGrow($E48,G48,H$39),"Please Enable Macros") -> 0 | I48: =IFERROR(RPMGrow($E48,H48,I$39),"Please Enable Macros") -> 0 | J48: =IFERROR(RPMGrow($E48,I48,J$39),"Please Enable Macros") -> 0 | K48: =IFERROR(RPMGrow($E48,J48,K$39),"Please Enable Macros") -> 0 | L48: =IFERROR(RPMGrow($E48,K48,L$39),"Please Enable Macros") -> 0 | M48: =IFERROR(RPMGrow($E48,L48,M$39),"Please Enable Macros") -> 0 | N48: =IFERROR(RPMGrow($E48,M48,N$39),"Please Enable Macros") -> 0 | O48: =IFERROR(RPMGrow($E48,N48,O$39),"Please Enable Macros") -> 0 | P48: =IFERROR(RPMGrow($E48,O48,P$39),"Please Enable Macros") -> 0
B49: Turnover | F49: 0 | G49: =IFERROR(RPMGrow($E49,F49,G$39),"Please Enable Macros") -> 0 | H49: =IFERROR(RPMGrow($E49,G49,H$39),"Please Enable Macros") -> 0 | I49: =IFERROR(RPMGrow($E49,H49,I$39),"Please Enable Macros") -> 0 | J49: =IFERROR(RPMGrow($E49,I49,J$39),"Please Enable Macros") -> 0 | K49: =IFERROR(RPMGrow($E49,J49,K$39),"Please Enable Macros") -> 0 | L49: =IFERROR(RPMGrow($E49,K49,L$39),"Please Enable Macros") -> 0 | M49: =IFERROR(RPMGrow($E49,L49,M$39),"Please Enable Macros") -> 0 | N49: =IFERROR(RPMGrow($E49,M49,N$39),"Please Enable Macros") -> 0 | O49: =IFERROR(RPMGrow($E49,N49,O$39),"Please Enable Macros") -> 0 | P49: =IFERROR(RPMGrow($E49,O49,P$39),"Please Enable Macros") -> 0
B50: Marketing | F50: 0 | G50: =IFERROR(RPMGrow($E50,F50,G$39),"Please Enable Macros") -> 0 | H50: =IFERROR(RPMGrow($E50,G50,H$39),"Please Enable Macros") -> 0 | I50: =IFERROR(RPMGrow($E50,H50,I$39),"Please Enable Macros") -> 0 | J50: =IFERROR(RPMGrow($E50,I50,J$39),"Please Enable Macros") -> 0 | K50: =IFERROR(RPMGrow($E50,J50,K$39),"Please Enable Macros") -> 0 | L50: =IFERROR(RPMGrow($E50,K50,L$39),"Please Enable Macros") -> 0 | M50: =IFERROR(RPMGrow($E50,L50,M$39),"Please Enable Macros") -> 0 | N50: =IFERROR(RPMGrow($E50,M50,N$39),"Please Enable Macros") -> 0 | O50: =IFERROR(RPMGrow($E50,N50,O$39),"Please Enable Macros") -> 0 | P50: =IFERROR(RPMGrow($E50,O50,P$39),"Please Enable Macros") -> 0
B51: Payroll | F51: 0 | G51: =IFERROR(RPMGrow($E51,F51,G$39),"Please Enable Macros") -> 0 | H51: =IFERROR(RPMGrow($E51,G51,H$39),"Please Enable Macros") -> 0 | I51: =IFERROR(RPMGrow($E51,H51,I$39),"Please Enable Macros") -> 0 | J51: =IFERROR(RPMGrow($E51,I51,J$39),"Please Enable Macros") -> 0 | K51: =IFERROR(RPMGrow($E51,J51,K$39),"Please Enable Macros") -> 0 | L51: =IFERROR(RPMGrow($E51,K51,L$39),"Please Enable Macros") -> 0 | M51: =IFERROR(RPMGrow($E51,L51,M$39),"Please Enable Macros") -> 0 | N51: =IFERROR(RPMGrow($E51,M51,N$39),"Please Enable Macros") -> 0 | O51: =IFERROR(RPMGrow($E51,N51,O$39),"Please Enable Macros") -> 0 | P51: =IFERROR(RPMGrow($E51,O51,P$39),"Please Enable Macros") -> 0
B52: Other | F52: 0 | G52: =IFERROR(RPMGrow($E52,F52,G$39),"Please Enable Macros") -> 0 | H52: =IFERROR(RPMGrow($E52,G52,H$39),"Please Enable Macros") -> 0 | I52: =IFERROR(RPMGrow($E52,H52,I$39),"Please Enable Macros") -> 0 | J52: =IFERROR(RPMGrow($E52,I52,J$39),"Please Enable Macros") -> 0 | K52: =IFERROR(RPMGrow($E52,J52,K$39),"Please Enable Macros") -> 0 | L52: =IFERROR(RPMGrow($E52,K52,L$39),"Please Enable Macros") -> 0 | M52: =IFERROR(RPMGrow($E52,L52,M$39),"Please Enable Macros") -> 0 | N52: =IFERROR(RPMGrow($E52,M52,N$39),"Please Enable Macros") -> 0 | O52: =IFERROR(RPMGrow($E52,N52,O$39),"Please Enable Macros") -> 0 | P52: =IFERROR(RPMGrow($E52,O52,P$39),"Please Enable Macros") -> 0
B53: Miscellaneous | F53: 0 | G53: =IFERROR(RPMGrow($E53,F53,G$39),"Please Enable Macros") -> 0 | H53: =IFERROR(RPMGrow($E53,G53,H$39),"Please Enable Macros") -> 0 | I53: =IFERROR(RPMGrow($E53,H53,I$39),"Please Enable Macros") -> 0 | J53: =IFERROR(RPMGrow($E53,I53,J$39),"Please Enable Macros") -> 0 | K53: =IFERROR(RPMGrow($E53,J53,K$39),"Please Enable Macros") -> 0 | L53: =IFERROR(RPMGrow($E53,K53,L$39),"Please Enable Macros") -> 0 | M53: =IFERROR(RPMGrow($E53,L53,M$39),"Please Enable Macros") -> 0 | N53: =IFERROR(RPMGrow($E53,M53,N$39),"Please Enable Macros") -> 0 | O53: =IFERROR(RPMGrow($E53,N53,O$39),"Please Enable Macros") -> 0 | P53: =IFERROR(RPMGrow($E53,O53,P$39),"Please Enable Macros") -> 0
B54: User Defined | F54: 0 | G54: =IFERROR(RPMGrow($E54,F54,G$39),"Please Enable Macros") -> 0 | H54: =IFERROR(RPMGrow($E54,G54,H$39),"Please Enable Macros") -> 0 | I54: =IFERROR(RPMGrow($E54,H54,I$39),"Please Enable Macros") -> 0 | J54: =IFERROR(RPMGrow($E54,I54,J$39),"Please Enable Macros") -> 0 | K54: =IFERROR(RPMGrow($E54,J54,K$39),"Please Enable Macros") -> 0 | L54: =IFERROR(RPMGrow($E54,K54,L$39),"Please Enable Macros") -> 0 | M54: =IFERROR(RPMGrow($E54,L54,M$39),"Please Enable Macros") -> 0 | N54: =IFERROR(RPMGrow($E54,M54,N$39),"Please Enable Macros") -> 0 | O54: =IFERROR(RPMGrow($E54,N54,O$39),"Please Enable Macros") -> 0 | P54: =IFERROR(RPMGrow($E54,O54,P$39),"Please Enable Macros") -> 0
B55: Total Operating Expenses | F55: =SUM(F41:F54) -> 725060.592 | G55: =SUM(G41:G54) -> 746812.4098 | H55: 769216.7821 | I55: 792293.2855 | J55: 816062.0841 | K55: 840543.9466 | L55: 865760.265 | M55: 891733.073 | N55: 918485.0651 | O55: 946039.6171 | P55: 974420.8056
B56: Expenses /Month | F56: =F55/12 -> 60421.716 | G56: =G55/12 -> 62234.36748 | H56: 64101.3985 | I56: 66024.44046 | J56: 68005.17367 | K56: 70045.32888 | L56: 72146.68875 | M56: 74311.08941 | N56: 76540.42209 | O56: 78836.63476 | P56: 81201.7338
B57: Expenses $/Unit Monthly | F57: =F55/Unit_Mix[[#Totals],[Total SF]]/12 -> 0.4277219674 | G57: =G55/Unit_Mix[[#Totals],[Total SF]]/12 -> 0.4405536264 | H57: =H55/Unit_Mix[[#Totals],[Total SF]]/12 -> 0.4537702352 | I57: =I55/Unit_Mix[[#Totals],[Total SF]]/12 -> 0.4673833422 | J57: =J55/Unit_Mix[[#Totals],[Total SF]]/12 -> 0.4814048425 | K57: =K55/Unit_Mix[[#Totals],[Total SF]]/12 -> 0.4958469878 | L57: =L55/Unit_Mix[[#Totals],[Total SF]]/12 -> 0.5107223974 | M57: =M55/Unit_Mix[[#Totals],[Total SF]]/12 -> 0.5260440693 | N57: =N55/Unit_Mix[[#Totals],[Total SF]]/12 -> 0.5418253914 | O57: =O55/Unit_Mix[[#Totals],[Total SF]]/12 -> 0.5580801532 | P57: =P55/Unit_Mix[[#Totals],[Total SF]]/12 -> 0.5748225578
B59: NOI Before Reserves | F59: =F35-F55 -> 943625.808 | G59: =G35-G55 -> 971934.5822 | H59: 1001092.62 | I59: 1031125.398 | J59: 1062059.16 | K59: 1093920.935 | L59: 1126738.563 | M59: 1160540.72 | N59: 1195356.942 | O59: 1231217.65 | P59: 1268154.179
B61: Operating Reserves Contributions
B62: Operating Deficit Reserves | F62: 0 | G62: =IFERROR(RPMGrow($E62,F62,G$39),"Please Enable Macros") -> 0 | H62: =IFERROR(RPMGrow($E62,G62,H$39),"Please Enable Macros") -> 0 | I62: =IFERROR(RPMGrow($E62,H62,I$39),"Please Enable Macros") -> 0 | J62: =IFERROR(RPMGrow($E62,I62,J$39),"Please Enable Macros") -> 0 | K62: =IFERROR(RPMGrow($E62,J62,K$39),"Please Enable Macros") -> 0 | L62: =IFERROR(RPMGrow($E62,K62,L$39),"Please Enable Macros") -> 0 | M62: =IFERROR(RPMGrow($E62,L62,M$39),"Please Enable Macros") -> 0 | N62: =IFERROR(RPMGrow($E62,M62,N$39),"Please Enable Macros") -> 0 | O62: =IFERROR(RPMGrow($E62,N62,O$39),"Please Enable Macros") -> 0 | P62: =IFERROR(RPMGrow($E62,O62,P$39),"Please Enable Macros") -> 0
B63: Cap Ex Reserves | F63: 0 | G63: =IFERROR(RPMGrow($E63,F63,G$39),"Please Enable Macros") -> 0 | H63: =IFERROR(RPMGrow($E63,G63,H$39),"Please Enable Macros") -> 0 | I63: =IFERROR(RPMGrow($E63,H63,I$39),"Please Enable Macros") -> 0 | J63: =IFERROR(RPMGrow($E63,I63,J$39),"Please Enable Macros") -> 0 | K63: =IFERROR(RPMGrow($E63,J63,K$39),"Please Enable Macros") -> 0 | L63: =IFERROR(RPMGrow($E63,K63,L$39),"Please Enable Macros") -> 0 | M63: =IFERROR(RPMGrow($E63,L63,M$39),"Please Enable Macros") -> 0 | N63: =IFERROR(RPMGrow($E63,M63,N$39),"Please Enable Macros") -> 0 | O63: =IFERROR(RPMGrow($E63,N63,O$39),"Please Enable Macros") -> 0 | P63: =IFERROR(RPMGrow($E63,O63,P$39),"Please Enable Macros") -> 0
B64: Replacement Reserves | E64: 0 | F64: 55000 | G64: =IFERROR(RPMGrow($E64,F64,G$39),"Please Enable Macros") -> 55000 | H64: =IFERROR(RPMGrow($E64,G64,H$39),"Please Enable Macros") -> 55000 | I64: =IFERROR(RPMGrow($E64,H64,I$39),"Please Enable Macros") -> 55000 | J64: =IFERROR(RPMGrow($E64,I64,J$39),"Please Enable Macros") -> 55000 | K64: =IFERROR(RPMGrow($E64,J64,K$39),"Please Enable Macros") -> 55000 | L64: =IFERROR(RPMGrow($E64,K64,L$39),"Please Enable Macros") -> 55000 | M64: =IFERROR(RPMGrow($E64,L64,M$39),"Please Enable Macros") -> 55000 | N64: =IFERROR(RPMGrow($E64,M64,N$39),"Please Enable Macros") -> 55000 | O64: =IFERROR(RPMGrow($E64,N64,O$39),"Please Enable Macros") -> 55000 | P64: =IFERROR(RPMGrow($E64,O64,P$39),"Please Enable Macros") -> 55000
B65: Total Reserves | F65: =SUM(F62:F64) -> 55000 | G65: =SUM(G62:G64) -> 55000 | H65: 55000 | I65: 55000 | J65: 55000 | K65: 55000 | L65: 55000 | M65: 55000 | N65: 55000 | O65: 55000 | P65: 55000
B67: Net Operating Income | F67: =F59-F65 -> 888625.808 | G67: =G59-G65 -> 916934.5822 | H67: 946092.6197 | I67: 976125.3983 | J67: 1007059.16 | K67: 1038920.935 | L67: 1071738.563 | M67: 1105540.72 | N67: 1140356.942 | O67: 1176217.65 | P67: 1213154.179
B68: NOI/Month | F68: =F67/12 -> 74052.15067 | G68: =G67/12 -> 76411.21519 | H68: 78841.05164 | I68: 81343.78319 | J68: 83921.59669 | K68: 86576.74459 | L68: 89311.54693 | M68: 92128.39333 | N68: 95029.74513 | O68: 98018.13749 | P68: 101096.1816
B69: =IF(Property_Use="Commercial","NOI $ PSF","NOI $ / Unit") -> NOI $ / Unit | F69: =F67/Unit_Mix[[#Totals],[Total SF]]/12 -> 0.5242110564 | G69: =G67/Unit_Mix[[#Totals],[Total SF]]/12 -> 0.5409107429 | H69: =H67/Unit_Mix[[#Totals],[Total SF]]/12 -> 0.5581114201 | I69: =I67/Unit_Mix[[#Totals],[Total SF]]/12 -> 0.5758281175 | J69: =J67/Unit_Mix[[#Totals],[Total SF]]/12 -> 0.5940763159 | K69: =K67/Unit_Mix[[#Totals],[Total SF]]/12 -> 0.6128719602 | L69: =L67/Unit_Mix[[#Totals],[Total SF]]/12 -> 0.6322314739 | M69: =M67/Unit_Mix[[#Totals],[Total SF]]/12 -> 0.6521717729 | N69: =N67/Unit_Mix[[#Totals],[Total SF]]/12 -> 0.672710281 | O69: =O67/Unit_Mix[[#Totals],[Total SF]]/12 -> 0.6938649443 | P69: =P67/Unit_Mix[[#Totals],[Total SF]]/12 -> 0.7156542475
B70: =IF(Project_Type="Acquisition","Cap Rate based on Acquisition Cost","Cap Rate based on Development Cost") -> Cap Rate based on Acquisition Cost | F70: =IFERROR(F67/Acquisition_Gross,"-") -> 0.06819314353 | G70: 0.07036555883 | H70: 0.07260314659 | I70: 0.07490786199 | J70: 0.07728171885 | K70: 0.07972679141 | L70: 0.08224521615 | M70: 0.08483919363 | N70: 0.08751099044 | O70: 0.09026294115 | P70: 0.09309745039
B71: =IF(Disposition="Cap Rate","Value based on "&ROUND(Exit_Rate*100,2)&"% Exit Cap Rate","Value based on "&ROUND(Exit_Rate*100,2)&"% Annual Growth Rate") -> Value based on 6.5% Exit Cap Rate | F71: =IFERROR(IF(F$7<=Hold,IF(Disposition="Cap Rate",G$67/Exit_Rate,FV(Exit_Rate,F$7,0,-Acquisition_Gross)),0),"-") -> 14106685.88 | G71: 14555271.07 | H71: 15017313.82 | I71: 15493217.85 | J71: 15983399 | K71: 16488285.59 | L71: 17008318.77 | M71: 17543952.95 | N71: 18095656.15 | O71: 18663910.45 | P71: -
B75: www.realpropmetrics.com
B76: ="Version: "&Version -> Version: 9.42 M | © 2022
B77: =TODAY() -> 2022-02-23
B79: Schedule of Prospective Cash Flows
B81: Period | F81: 1 | G81: 2 | H81: 3 | I81: 4 | J81: 5 | K81: 6 | L81: 7 | M81: 8 | N81: 9 | O81: 10
F82: =RPMDateSpan(F81,1) -> Jan 22 - Dec 22 | G82: =RPMDateSpan(G81,1) -> Jan 23 - Dec 23 | H82: Jan 24 - Dec 24 | I82: Jan 25 - Dec 25 | J82: Jan 26 - Dec 26 | K82: Jan 27 - Dec 27 | L82: Jan 28 - Dec 28 | M82: Jan 29 - Dec 29 | N82: Jan 30 - Dec 30 | O82: Jan 31 - Dec 31
B84: Net Operating Income | F84: =F67 -> 888625.808 | G84: =G67 -> 916934.5822 | H84: 946092.6197 | I84: 976125.3983 | J84: 1007059.16 | K84: 1038920.935 | L84: 1071738.563 | M84: 1105540.72 | N84: 1140356.942 | O84: 1176217.65
B86: Debt Service
B87: Interest | F87: =VLOOKUP(F$7,Amortization_Schedule_Annual,6,FALSE) -> 436571.2559 | G87: 429328.1604 | H87: 421752.3184 | I87: 413828.4435 | J87: 405540.5472 | K87: 396871.9064 | L87: 387805.0297 | M87: 378321.6223 | N87: 368402.5489 | O87: 358027.7949
B88: Principal | F88: =VLOOKUP(F$7,Amortization_Schedule_Annual,7,FALSE) -> 157664.847 | G88: 164907.9425 | H88: 172483.7845 | I88: 180407.6594 | J88: 188695.5557 | K88: 197364.1966 | L88: 206431.0732 | M88: 215914.4806 | N88: 225833.5541 | O88: 236208.308
B89: Less: Interest in Development Budget | F89: =IF(Loan_IO_Interest="Pass to Cash Flow",0,VLOOKUP(F$7,'Loan Amortization'!$B$13:$O$24,13,FALSE)) -> 0 | G89: =IF(Loan_IO_Interest="Pass to Cash Flow",0,VLOOKUP(G$7,'Loan Amortization'!$B$13:$O$24,13,FALSE)) -> 0 | H89: =IF(Loan_IO_Interest="Pass to Cash Flow",0,VLOOKUP(H$7,'Loan Amortization'!$B$13:$O$24,13,FALSE)) -> 0 | I89: =IF(Loan_IO_Interest="Pass to Cash Flow",0,VLOOKUP(I$7,'Loan Amortization'!$B$13:$O$24,13,FALSE)) -> 0 | J89: =IF(Loan_IO_Interest="Pass to Cash Flow",0,VLOOKUP(J$7,'Loan Amortization'!$B$13:$O$24,13,FALSE)) -> 0 | K89: =IF(Loan_IO_Interest="Pass to Cash Flow",0,VLOOKUP(K$7,'Loan Amortization'!$B$13:$O$24,13,FALSE)) -> 0 | L89: =IF(Loan_IO_Interest="Pass to Cash Flow",0,VLOOKUP(L$7,'Loan Amortization'!$B$13:$O$24,13,FALSE)) -> 0 | M89: =IF(Loan_IO_Interest="Pass to Cash Flow",0,VLOOKUP(M$7,'Loan Amortization'!$B$13:$O$24,13,FALSE)) -> 0 | N89: =IF(Loan_IO_Interest="Pass to Cash Flow",0,VLOOKUP(N$7,'Loan Amortization'!$B$13:$O$24,13,FALSE)) -> 0 | O89: =IF(Loan_IO_Interest="Pass to Cash Flow",0,VLOOKUP(O$7,'Loan Amortization'!$B$13:$O$24,13,FALSE)) -> 0
B90: Total Debt Service | F90: =SUM(F87:F89) -> 594236.1029 | G90: =SUM(G87:G89) -> 594236.1029 | H90: 594236.1029 | I90: 594236.1029 | J90: 594236.1029 | K90: 594236.1029 | L90: 594236.1029 | M90: 594236.1029 | N90: 594236.1029 | O90: 594236.1029
B91: DSCR | F91: =IFERROR(F67/F90,"-") -> 1.495408649 | G91: 1.543047583 | H91: 1.592115684 | I91: 1.642655829 | J91: 1.694712178 | K91: 1.748330217 | L91: 1.803556798 | M91: 1.860440176 | N91: 1.919030056 | O91: 1.979377631
B92: LTV | F92: =IFERROR(F95/F71,"-") -> 0.04212443007 | G92: 0.04082617905 | H92: 0.03957006626 | I92: 0.03835459546 | J92: 0.03717833127 | K92: 0.03603989631 | L92: 0.03493796836 | M92: 0.03387127774 | N92: 0.03283860491 | O92: 0.03183877808
B93: Break Even Occupancy | F93: =IFERROR(SUM(F55,F90,F99)/SUM(F24,F33),"-") -> 0.7510889165 | G93: 0.7412353843 | H93: 0.7316688481 | I93: 0.7223809489 | J93: 0.713363571 | K93: 0.7046088352 | L93: 0.6961090917 | M93: 0.6878569136 | N93: 0.6798450902 | O93: 0.6720666208
B94: Debt Yield | F94: =IFERROR(F67/F95,"-") -> 1.495408649 | G94: =IFERROR(G67/G95,"-") -> 1.543047583 | H94: 1.592115684 | I94: 1.642655829 | J94: 1.694712178 | K94: 1.748330217 | L94: 1.803556798 | M94: 1.860440176 | N94: 1.919030056 | O94: 1.979377631
B95: Mortgage Balance | F95: =IF(F7<=Hold,VLOOKUP(F$7,Amortization_Schedule_Annual,8,FALSE),0) -> 594236.1029 | G95: 594236.1029 | H95: 594236.1029 | I95: 594236.1029 | J95: 594236.1029 | K95: 594236.1029 | L95: 594236.1029 | M95: 594236.1029 | N95: 594236.1029 | O95: 594236.1029
B96: Equity | F96: =IFERROR(IF(F$7<=Hold,F71-F95,0),"-") -> 13512449.78 | G96: 13961034.97 | H96: 14423077.72 | I96: 14898981.75 | J96: 15389162.9 | K96: 15894049.48 | L96: 16414082.67 | M96: 16949716.84 | N96: 17501420.05 | O96: 18069674.35
B98: Refinance Proceeds | F98: ='Return Detail'!F26 -> 0 | G98: ='Return Detail'!G26 -> 0 | H98: ='Return Detail'!H26 -> 0 | I98: ='Return Detail'!I26 -> 0 | J98: ='Return Detail'!J26 -> 0 | K98: ='Return Detail'!K26 -> 0 | L98: ='Return Detail'!L26 -> 0 | M98: ='Return Detail'!M26 -> 0 | N98: ='Return Detail'!N26 -> 0 | O98: ='Return Detail'!O26 -> 0
B99: Less: Mortgage Origination Fee | F99: ='Return Detail'!F$28 -> 0 | G99: ='Return Detail'!G$28 -> 0 | H99: ='Return Detail'!H$28 -> 0 | I99: ='Return Detail'!I$28 -> 0 | J99: ='Return Detail'!J$28 -> 0 | K99: ='Return Detail'!K$28 -> 0 | L99: ='Return Detail'!L$28 -> 0 | M99: ='Return Detail'!M$28 -> 0 | N99: ='Return Detail'!N$28 -> 0 | O99: ='Return Detail'!O$28 -> 0
B101: Cash Flow After Debt Service | F101: =SUM(F84,-F90,F98:F99) -> 294389.7051 | G101: =SUM(G84,-G90,G98:G99) -> 322698.4793 | H101: 351856.5168 | I101: 381889.2954 | J101: 412823.0573 | K101: 444684.8321 | L101: 477502.4602 | M101: 511304.6171 | N101: 546120.8387 | O101: 581981.5469
B102: CFADS/Month | F102: =F101/12 -> 24532.47542 | G102: =G101/12 -> 26891.53994 | H102: 29321.3764 | I102: 31824.10795 | J102: 34401.92144 | K102: 37057.06934 | L102: 39791.87168 | M102: 42608.71809 | N102: 45510.06989 | O102: 48498.46224
B104: Capital Expenses
B105: Capital Expenditures | F105: 0 | G105: 0 | H105: 0 | I105: 0 | J105: 0 | K105: 0 | L105: 0 | M105: 0 | N105: 0 | O105: 0
B106: Replacement Reserve Expenses | F106: 0 | G106: 0 | H106: 0 | I106: 0 | J106: 0 | K106: 0 | L106: 0 | M106: 0 | N106: 0 | O106: 0
B107: Total Capital Expenses | F107: =SUM(F105:F106) -> 0 | G107: =SUM(G105:G106) -> 0 | H107: 0 | I107: 0 | J107: 0 | K107: 0 | L107: 0 | M107: 0 | N107: 0 | O107: 0
B109: Expenses Paid from Reserves
B110: Less: Cap Ex Paid from Reserves | F110: =F$151 -> 0 | G110: =G$151 -> 0 | H110: 0 | I110: 0 | J110: 0 | K110: 0 | L110: 0 | M110: 0 | N110: 0 | O110: 0
B111: Less: User Defined Paid from Reserves | F111: =F$157 -> 0 | G111: =G$157 -> 0 | H111: 0 | I111: 0 | J111: 0 | K111: 0 | L111: 0 | M111: 0 | N111: 0 | O111: 0
B112: Net Capital Expenses | F112: =SUM(F107,F110:F111) -> 0 | G112: =SUM(G107,G110:G111) -> 0 | H112: 0 | I112: 0 | J112: 0 | K112: 0 | L112: 0 | M112: 0 | N112: 0 | O112: 0
B114: Other Non-Regular Income
B115: Other Non-Regular Income | F115: 0 | G115: 0 | H115: 0 | I115: 0 | J115: 0 | K115: 0 | L115: 0 | M115: 0 | N115: 0 | O115: 0
B116: Other Non-Regular Expenses | F116: 0 | G116: 0 | H116: 0 | I116: 0 | J116: 0 | K116: 0 | L116: 0 | M116: 0 | N116: 0 | O116: 0
B117: Operating Deficit Reserve Draw | F117: =-F144 -> 0 | G117: =-G144 -> 0 | H117: 0 | I117: 0 | J117: 0 | K117: 0 | L117: 0 | M117: 0 | N117: 0 | O117: 0
B118: Return of Reserve Funds | F118: =IF(F$7=Hold,F$160,0) -> 0 | G118: 0 | H118: 0 | I118: 0 | J118: 0 | K118: 0 | L118: 0 | M118: 0 | N118: 0 | O118: 550000
B119: Total Non-Regular Income | F119: =SUM(F115:F118) -> 0 | G119: =SUM(G115:G118) -> 0 | H119: 0 | I119: 0 | J119: 0 | K119: 0 | L119: 0 | M119: 0 | N119: 0 | O119: 550000
B121: Cash Flow Before Taxes | F121: =SUM(F101,-F112,F119) -> 294389.7051 | G121: =SUM(G101,-G112,G119) -> 322698.4793 | H121: 351856.5168 | I121: 381889.2954 | J121: 412823.0573 | K121: 444684.8321 | L121: 477502.4602 | M121: 511304.6171 | N121: 546120.8387 | O121: 1131981.547
B122: CFBT/Month | F122: =F121/12 -> 24532.47542 | G122: =G121/12 -> 26891.53994 | H122: 29321.3764 | I122: 31824.10795 | J122: 34401.92144 | K122: 37057.06934 | L122: 39791.87168 | M122: 42608.71809 | N122: 45510.06989 | O122: 94331.79558
B123: Cash on Cash Return | F123: =IFERROR(F121/Equity_Amount,"-") -> 0.08773384715 | G123: 0.09617041144 | H123: 0.1048600727 | I123: 0.1138104237 | J123: 0.1230292853 | K123: 0.1325247127 | L123: 0.142305003 | M123: 0.1523787019 | N123: 0.1627546119 | O123: 0.3373524764
B125: Tax Liability*
B126: Cost Recovery Improvements | F126: =Acquisition_Unlevered*Assessed_Value_Prop*Cost_Recovery_11M -> 35930.8379 | G126: =IF(G$7<Hold,Acquisition_Unlevered*Cost_Recovery_12M*Assessed_Value_Prop,IF(G$7=Hold,Acquisition_Unlevered*Cost_Recovery_11M*Assessed_Value_Prop,0)) -> 37487.66904 | H126: 37487.66904 | I126: 37487.66904 | J126: 37487.66904 | K126: 37487.66904 | L126: 37487.66904 | M126: 37487.66904 | N126: 37487.66904 | O126: 35930.8379
B127: Loan Costs Amortization | F127: =VLOOKUP(F$7,Loan_Cost_Table,6,FALSE) -> 0 | G127: 9773.2605 | H127: 9773.2605 | I127: 9773.2605 | J127: 9773.2605 | K127: 9773.2605 | L127: 9773.2605 | M127: 9773.2605 | N127: 9773.2605 | O127: 9773.2605
B128: Taxable Income | F128: =F59-SUM(F87,F126:F127) -> 471123.7142 | G128: =G59-SUM(G87,G126:G127) -> 495345.4923 | H128: 532079.3718 | I128: 570036.0253 | J128: 609257.6835 | K128: 649788.0991 | L128: 691672.6039 | M128: 734958.1681 | N128: 779693.4632 | O128: 827485.7565
B129: ="Less: Tax Liability at " & ROUND(Tax_Ordinary*100,0)&"%" -> Less: Tax Liability at 35% | F129: =-F128*Tax_Ordinary -> -164893.3 | G129: -173370.9223 | H129: -186227.7801 | I129: -199512.6088 | J129: -213240.1892 | K129: -227425.8347 | L129: -242085.4113 | M129: -257235.3588 | N129: -272892.7121 | O129: -289620.0148
B131: Operating Deficit Reserve Draw for Taxes | F131: =-F145 -> 0 | G131: =-G145 -> 0 | H131: 0 | I131: 0 | J131: 0 | K131: 0 | L131: 0 | M131: 0 | N131: 0 | O131: 0
B133: Cash Flow After Taxes | F133: =SUM(F121,F129,F131) -> 129496.4051 | G133: =SUM(G121,G129,G131) -> 149327.557 | H133: 165628.7366 | I133: 182376.6865 | J133: 199582.8681 | K133: 217258.9974 | L133: 235417.0488 | M133: 254069.2582 | N133: 273228.1265 | O133: 842361.5321
B134: *Does not include Capital Expenses as they are often subject to separate tax treatment.
B135: This pro forma does not constitute tax advice. Please consult a professional tax advisor
B137: Reserve Account Balances
B139: Period | F139: 1 | G139: 2 | H139: 3 | I139: 4 | J139: 5 | K139: 6 | L139: 7 | M139: 8 | N139: 9 | O139: 10
F140: =RPMDateSpan(F139,1) -> Jan 22 - Dec 22 | G140: =RPMDateSpan(G139,1) -> Jan 23 - Dec 23 | H140: Jan 24 - Dec 24 | I140: Jan 25 - Dec 25 | J140: Jan 26 - Dec 26 | K140: Jan 27 - Dec 27 | L140: Jan 28 - Dec 28 | M140: Jan 29 - Dec 29 | N140: Jan 30 - Dec 30 | O140: Jan 31 - Dec 31
B141: Operating Deficit Reserve
B142: Beginning Balance | F142: =Reserve_Operating -> 0 | G142: =F146 -> 0 | H142: =G146 -> 0 | I142: 0 | J142: 0 | K142: 0 | L142: 0 | M142: 0 | N142: 0 | O142: 0
B143: Contributions | F143: =F$62 -> 0 | G143: =G$62 -> 0 | H143: 0 | I143: 0 | J143: 0 | K143: 0 | L143: 0 | M143: 0 | N143: 0 | O143: 0
B144: Expenses Paid | F144: =IF(SUM(F101,F115:F116)>0,0,MAX(SUM(F101,F115:F116),-SUM(F142:F143))) -> 0 | G144: =IF(G101>0,0,IF(-G101>SUM(G142:G143),-SUM(G142:G143),G101)) -> 0 | H144: 0 | I144: 0 | J144: 0 | K144: 0 | L144: 0 | M144: 0 | N144: 0 | O144: 0
B145: Taxes Paid | F145: =IF(F$7>=Hold,0,IF(SUM(F121,F129)>0,0,MAX(SUM(F121,F129),-SUM(F142:F144)))) -> 0 | G145: =IF(G$7>=Hold,0,IF(-G129>SUM(G101,G115:G117),-MIN(-G129-SUM(G101,G115:G117),SUM(G142:G144)),0)) -> 0 | H145: 0 | I145: 0 | J145: 0 | K145: 0 | L145: 0 | M145: 0 | N145: 0 | O145: 0
B146: Ending Balance | F146: =SUM(F142:F145) -> 0 | G146: =SUM(G142:G145) -> 0 | H146: 0 | I146: 0 | J146: 0 | K146: 0 | L146: 0 | M146: 0 | N146: 0 | O146: 0
B148: Cap Ex Reserve
B149: Beginning Balance | F149: =Reserve_CapEx -> 0 | G149: =F152 -> 0 | H149: =G152 -> 0 | I149: 0 | J149: 0 | K149: 0 | L149: 0 | M149: 0 | N149: 0 | O149: 0
B150: Contributions | F150: =F$63 -> 0 | G150: =G$63 -> 0 | H150: 0 | I150: 0 | J150: 0 | K150: 0 | L150: 0 | M150: 0 | N150: 0 | O150: 0
B151: Expenses Paid | F151: =IF(F$105<SUM(F149:F150),-F$105,-SUM(F149:F150)) -> 0 | G151: =IF(G$105<SUM(G149:G150),-G$105,-SUM(G149:G150)) -> 0 | H151: 0 | I151: 0 | J151: 0 | K151: 0 | L151: 0 | M151: 0 | N151: 0 | O151: 0
B152: Ending Balance | F152: =SUM(F149:F151) -> 0 | G152: =SUM(G149:G151) -> 0 | H152: 0 | I152: 0 | J152: 0 | K152: 0 | L152: 0 | M152: 0 | N152: 0 | O152: 0
B154: Replacement Reserves
B155: Beginning Balance | F155: =Reserve_Replacement -> 0 | G155: =F158 -> 55000 | H155: =G158 -> 110000 | I155: 165000 | J155: 220000 | K155: 275000 | L155: 330000 | M155: 385000 | N155: 440000 | O155: 495000
B156: Contributions | F156: =F$64 -> 55000 | G156: =G$64 -> 55000 | H156: 55000 | I156: 55000 | J156: 55000 | K156: 55000 | L156: 55000 | M156: 55000 | N156: 55000 | O156: 55000
B157: Expenses Paid | F157: =IF(F$106<SUM(F155:F156),-F$106,-SUM(F155:F156)) -> 0 | G157: =IF(G$106<SUM(G155:G156),-G$106,-SUM(G155:G156)) -> 0 | H157: 0 | I157: 0 | J157: 0 | K157: 0 | L157: 0 | M157: 0 | N157: 0 | O157: 0
B158: Ending Balance | F158: =SUM(F155:F157) -> 55000 | G158: =SUM(G155:G157) -> 110000 | H158: 165000 | I158: 220000 | J158: 275000 | K158: 330000 | L158: 385000 | M158: 440000 | N158: 495000 | O158: 550000
B160: Total Reserve Balances | F160: =SUM(F146,F152,F158) -> 55000 | G160: =SUM(G146,G152,G158) -> 110000 | H160: 165000 | I160: 220000 | J160: 275000 | K160: 330000 | L160: 385000 | M160: 440000 | N160: 495000 | O160: 550000
B164: www.realpropmetrics.com
B165: ="Version: "&Version -> Version: 9.42 M | © 2022
B166: =TODAY() -> 2022-02-23

Sheet Summary Charts
B3: =Project_Name -> New Multifamily Project
B5: Project Return Summary
O6: Period | P6: 1 | Q6: 2 | R6: 3 | S6: 4 | T6: 5 | U6: 6 | V6: 7 | W6: 8 | X6: 9 | Y6: 10
B7: Summary | E7: Sale Analysis | H7: Cash Flows | L7: IRR & Present Value | O7: Summary Chart Data | P7: =IF(DateView=1,P6,RPMDateSpan(P6,2)) -> 1 | Q7: 2 | R7: 3 | S7: 4 | T7: 5 | U7: 6 | V7: 7 | W7: 8 | X7: 9 | Y7: 10
B8: Units | C8: =Size_Total -> 200 | E8: =IF(Project_Type="Acquisition","Acquisition Price","Development Cost") -> Acquisition Price | F8: =Acquisition_Gross -> 13031014 | I8: Before Tax | J8: After Tax | L8: Unleveraged IRR | M8: ='Return Detail'!$C$17 -> 0.1087543429 | O8: Net Operating Income | P8: ='Summary & Ratios'!D$10 -> 888625.808 | Q8: ='Summary & Ratios'!E$10 -> 916934.5822 | R8: ='Summary & Ratios'!F$10 -> 946092.6197 | S8: ='Summary & Ratios'!G$10 -> 976125.3983 | T8: ='Summary & Ratios'!H$10 -> 1007059.16 | U8: ='Summary & Ratios'!I$10 -> 1038920.935 | V8: ='Summary & Ratios'!J$10 -> 1071738.563 | W8: ='Summary & Ratios'!K$10 -> 1105540.72 | X8: ='Summary & Ratios'!L$10 -> 1140356.942 | Y8: ='Summary & Ratios'!M$10 -> 1176217.65
B9: =IF(Project_Type="Acquisition","Acquisition Price","Development Costs") -> Acquisition Price | C9: =Acquisition_Gross -> 13031014 | E9: Per Unit | F9: =IFERROR(Acquisition_Gross/Size_Total,0) -> 65155.07 | H9: Operating Cash Flows | I9: =SUM('Return Detail'!$F$32:$O$32) -> 4875251.349 | J9: =SUM('Return Detail'!F83:O83) -> 2648747.216 | L9: ="Unleveraged PV at " &(Equity_Rate*100)&"%" -> Unleveraged PV at 10% | M9: ='Return Detail'!$C$20 -> 13850000 | O9: Debt Serivce | P9: =IF(-'Summary & Ratios'!D$11=0,NA(),-'Summary & Ratios'!D$11) -> 594236.1029 | Q9: =IF(-'Summary & Ratios'!E$11=0,NA(),-'Summary & Ratios'!E$11) -> 594236.1029 | R9: =IF(-'Summary & Ratios'!F$11=0,NA(),-'Summary & Ratios'!F$11) -> 594236.1029 | S9: =IF(-'Summary & Ratios'!G$11=0,NA(),-'Summary & Ratios'!G$11) -> 594236.1029 | T9: =IF(-'Summary & Ratios'!H$11=0,NA(),-'Summary & Ratios'!H$11) -> 594236.1029 | U9: =IF(-'Summary & Ratios'!I$11=0,NA(),-'Summary & Ratios'!I$11) -> 594236.1029 | V9: =IF(-'Summary & Ratios'!J$11=0,NA(),-'Summary & Ratios'!J$11) -> 594236.1029 | W9: =IF(-'Summary & Ratios'!K$11=0,NA(),-'Summary & Ratios'!K$11) -> 594236.1029 | X9: =IF(-'Summary & Ratios'!L$11=0,NA(),-'Summary & Ratios'!L$11) -> 594236.1029 | Y9: =IF(-'Summary & Ratios'!M$11=0,NA(),-'Summary & Ratios'!M$11) -> 594236.1029
B10: Other Costs | C10: ='Sources & Uses'!C19 -> 97732.605 | E10: Sale Price | F10: =SUM('Return Detail'!F10:O10) -> 19510064.3 | H10: Net Sale Proceeds | I10: =SUM('Return Detail'!$F$33:$O$36) -> 11585164.88 | J10: =SUM('Return Detail'!F84:O84) -> 10215924.13 | L10: Leveraged IRR | M10: ='Return Detail'!C42 -> 0.2105487731 | O10: Cash Flow After Taxes | P10: ='Return Detail'!F$83 -> 129496.4051 | Q10: ='Return Detail'!G$83 -> 149327.557 | R10: ='Return Detail'!H$83 -> 165628.7366 | S10: ='Return Detail'!I$83 -> 182376.6865 | T10: ='Return Detail'!J$83 -> 199582.8681 | U10: ='Return Detail'!K$83 -> 217258.9974 | V10: ='Return Detail'!L$83 -> 235417.0488 | W10: ='Return Detail'!M$83 -> 254069.2582 | X10: ='Return Detail'!N$83 -> 273228.1265 | Y10: ='Return Detail'!O$83 -> 842361.5321
B11: Equity | C11: =Equity_Amount -> 3355486.105 | E11: Per Unit | F11: =IFERROR(F10/Size_Total,0) -> 97550.32149 | H11: Total Cash Flow | I11: =SUM(I9:I10) -> 16460416.23 | J11: =SUM(J9:J10) -> 12864671.34 | L11: ="Leveraged PV at " &(Equity_Rate*100)&"%" -> Leveraged PV at 10% | M11: ='Return Detail'!$C$48 -> 16960000 | O11: Mortgage Balance (EOY) | P11: ='Summary & Ratios'!D$27 -> 9615595.653 | Q11: ='Summary & Ratios'!E$27 -> 9450687.71 | R11: ='Summary & Ratios'!F$27 -> 9278203.926 | S11: ='Summary & Ratios'!G$27 -> 9097796.266 | T11: ='Summary & Ratios'!H$27 -> 8909100.711 | U11: ='Summary & Ratios'!I$27 -> 8711736.514 | V11: ='Summary & Ratios'!J$27 -> 8505305.441 | W11: ='Summary & Ratios'!K$27 -> 8289390.96 | X11: ='Summary & Ratios'!L$27 -> 8063557.406 | Y11: ='Summary & Ratios'!M$27 -> 7827349.098
B12: Debt | C12: =Loan_Amount -> 9773260.5 | E12: Appreciation | F12: =IFERROR((F10/F8)-1,"-") -> 0.4972023127 | H12: Profit | I12: =SUM('Return Detail'!$E$37:$O$37) -> 13104930.12 | J12: =SUM('Return Detail'!E85:O85) -> 9509185.237 | L12: After Tax IRR (Leveraged) | M12: ='Return Detail'!$C$91 -> 0.1599011558 | O12: Equity (EOY) | P12: ='Summary & Ratios'!D$28 -> 4491090.228 | Q12: ='Summary & Ratios'!E$28 -> 5104583.362 | R12: ='Summary & Ratios'!F$28 -> 5739109.894 | S12: ='Summary & Ratios'!G$28 -> 6395421.583 | T12: ='Summary & Ratios'!H$28 -> 7074298.29 | U12: ='Summary & Ratios'!I$28 -> 7776549.072 | V12: ='Summary & Ratios'!J$28 -> 8503013.328 | W12: ='Summary & Ratios'!K$28 -> 9254561.987 | X12: ='Summary & Ratios'!L$28 -> 10032098.75 | Y12: ='Summary & Ratios'!M$28 -> 10836561.35
B13: =IF(Project_Type="Acquisition","LTV","LTC") -> LTV | C13: =LTV -> 0.75 | E13: Avg. App/Year | F13: =IFERROR(F12/Hold,"-") -> 0.04972023127 | H13: Equity Multiple | I13: =IFERROR(I12/Equity_Amount,"-") -> 3.905523585 | J13: =IFERROR(J12/Equity_Amount,"-") -> 2.833921804 | L13: ="After Tax PV at " &(Equity_Rate*100)&"%" -> After Tax PV at 10% | M13: ='Return Detail'!$C$97 -> 15130000 | O13: Before Tax Cash on Cash | P13: =IFERROR('Summary & Ratios'!D$33,NA()) -> 0.08773384715 | Q13: =IFERROR('Summary & Ratios'!E$33,NA()) -> 0.09617041144 | R13: =IFERROR('Summary & Ratios'!F$33,NA()) -> 0.1048600727 | S13: =IFERROR('Summary & Ratios'!G$33,NA()) -> 0.1138104237 | T13: =IFERROR('Summary & Ratios'!H$33,NA()) -> 0.1230292853 | U13: =IFERROR('Summary & Ratios'!I$33,NA()) -> 0.1325247127 | V13: =IFERROR('Summary & Ratios'!J$33,NA()) -> 0.142305003 | W13: =IFERROR('Summary & Ratios'!K$33,NA()) -> 0.1523787019 | X13: =IFERROR('Summary & Ratios'!L$33,NA()) -> 0.1627546119 | Y13: =IFERROR('Summary & Ratios'!M$33,NA()) -> 0.3373524764
O14: After Tax Cash on Cash | P14: =IFERROR('Summary & Ratios'!D$34,NA()) -> 0.03859244266 | Q14: =IFERROR('Summary & Ratios'!E$34,NA()) -> 0.04450251091 | R14: =IFERROR('Summary & Ratios'!F$34,NA()) -> 0.0493605789 | S14: =IFERROR('Summary & Ratios'!G$34,NA()) -> 0.0543517931 | T14: =IFERROR('Summary & Ratios'!H$34,NA()) -> 0.05947956923 | U14: =IFERROR('Summary & Ratios'!I$34,NA()) -> 0.06474739892 | V14: =IFERROR('Summary & Ratios'!J$34,NA()) -> 0.07015885075 | W14: =IFERROR('Summary & Ratios'!K$34,NA()) -> 0.07571757125 | X14: =IFERROR('Summary & Ratios'!L$34,NA()) -> 0.08142728594 | Y14: =IFERROR('Summary & Ratios'!M$34,NA()) -> 0.2510400895
O15: After Tax | P15: =IFERROR('Summary & Ratios'!D$42,NA()) -> 0.6572134975 | Q15: =IFERROR('Summary & Ratios'!E$42,NA()) -> 0.6454083795 | R15: =IFERROR('Summary & Ratios'!F$42,NA()) -> 0.6317335538 | S15: =IFERROR('Summary & Ratios'!G$42,NA()) -> 0.6184350038 | T15: =IFERROR('Summary & Ratios'!H$42,NA()) -> 0.6055014293 | U15: =IFERROR('Summary & Ratios'!I$42,NA()) -> 0.592921854 | V15: =IFERROR('Summary & Ratios'!J$42,NA()) -> 0.5806856157 | W15: =IFERROR('Summary & Ratios'!K$42,NA()) -> 0.5687823575 | X15: =IFERROR('Summary & Ratios'!L$42,NA()) -> 0.5572020186 | Y15: =IFERROR('Summary & Ratios'!M$42,NA()) -> 0.545697074
O16: Pre Tax | P16: =IFERROR('Summary & Ratios'!D$41,NA()) -> 0.7510889165 | Q16: =IFERROR('Summary & Ratios'!E$41,NA()) -> 0.7412353843 | R16: =IFERROR('Summary & Ratios'!F$41,NA()) -> 0.7316688481 | S16: =IFERROR('Summary & Ratios'!G$41,NA()) -> 0.7223809489 | T16: =IFERROR('Summary & Ratios'!H$41,NA()) -> 0.713363571 | U16: =IFERROR('Summary & Ratios'!I$41,NA()) -> 0.7046088352 | V16: =IFERROR('Summary & Ratios'!J$41,NA()) -> 0.6961090917 | W16: =IFERROR('Summary & Ratios'!K$41,NA()) -> 0.6878569136 | X16: =IFERROR('Summary & Ratios'!L$41,NA()) -> 0.6798450902 | Y16: =IFERROR('Summary & Ratios'!M$41,NA()) -> 0.6720666208
O17: Debt Service Coverage Ratio | P17: =IFERROR('Summary & Ratios'!D$40,NA()) -> 1.495408649 | Q17: =IFERROR('Summary & Ratios'!E$40,NA()) -> 1.543047583 | R17: =IFERROR('Summary & Ratios'!F$40,NA()) -> 1.592115684 | S17: =IFERROR('Summary & Ratios'!G$40,NA()) -> 1.642655829 | T17: =IFERROR('Summary & Ratios'!H$40,NA()) -> 1.694712178 | U17: =IFERROR('Summary & Ratios'!I$40,NA()) -> 1.748330217 | V17: =IFERROR('Summary & Ratios'!J$40,NA()) -> 1.803556798 | W17: =IFERROR('Summary & Ratios'!K$40,NA()) -> 1.860440176 | X17: =IFERROR('Summary & Ratios'!L$40,NA()) -> 1.919030056 | Y17: =IFERROR('Summary & Ratios'!M$40,NA()) -> 1.979377631
O18: . | P18: =IFERROR('Summary & Ratios'!D$38,NA()) -> 0.6816339241 | Q18: =IFERROR('Summary & Ratios'!E$38,NA()) -> 0.6492965788 | R18: =IFERROR('Summary & Ratios'!F$38,NA()) -> 0.6178337909 | S18: =IFERROR('Summary & Ratios'!G$38,NA()) -> 0.587211537 | T18: =IFERROR('Summary & Ratios'!H$38,NA()) -> 0.5573971287 | U18: =IFERROR('Summary & Ratios'!I$38,NA()) -> 0.5283591474 | V18: =IFERROR('Summary & Ratios'!J$38,NA()) -> 0.5000673821 | W18: =IFERROR('Summary & Ratios'!K$38,NA()) -> 0.472492772 | X18: =IFERROR('Summary & Ratios'!L$38,NA()) -> 0.4456073512 | Y18: =IFERROR('Summary & Ratios'!M$38,NA()) -> 0.419384197
O19: Debt Yield | P19: =IFERROR('Summary & Ratios'!D$43,NA()) -> 0.09241505571 | Q19: =IFERROR('Summary & Ratios'!E$43,NA()) -> 0.09702305381 | R19: =IFERROR('Summary & Ratios'!F$43,NA()) -> 0.1019693711 | S19: =IFERROR('Summary & Ratios'!G$43,NA()) -> 0.1072925102 | T19: =IFERROR('Summary & Ratios'!H$43,NA()) -> 0.1130371283 | U19: =IFERROR('Summary & Ratios'!I$43,NA()) -> 0.1192553211 | V19: =IFERROR('Summary & Ratios'!J$43,NA()) -> 0.1260082393 | W19: =IFERROR('Summary & Ratios'!K$43,NA()) -> 0.1333681479 | X19: =IFERROR('Summary & Ratios'!L$43,NA()) -> 0.1414210731 | Y19: =IFERROR('Summary & Ratios'!M$43,NA()) -> 0.1502702428
O20: =IF(Disposition="Cap Rate",TEXT((Exit_Rate-0.01),"0.0%")&" Cap Rate",TEXT(Exit_Rate-0.01,"0.0%")&" Growth Rate") -> 5.5% Cap Rate | P20: =IFERROR(MAX(0,IF(Disposition="Cap Rate",'Cash Flows'!G$59/(Exit_Rate-0.01),FV((Exit_Rate-0.01),P$6,0,-Acquisition_Gross))),"-") -> 17671537.86 | Q20: =IFERROR(MAX(0,IF(Disposition="Cap Rate",'Cash Flows'!H$59/(Exit_Rate-0.01),FV((Exit_Rate-0.01),Q$6,0,-Acquisition_Gross))),"-") -> 18201683.99 | R20: =IFERROR(MAX(0,IF(Disposition="Cap Rate",'Cash Flows'!I$59/(Exit_Rate-0.01),FV((Exit_Rate-0.01),R$6,0,-Acquisition_Gross))),"-") -> 18747734.51 | S20: =IFERROR(MAX(0,IF(Disposition="Cap Rate",'Cash Flows'!J$59/(Exit_Rate-0.01),FV((Exit_Rate-0.01),S$6,0,-Acquisition_Gross))),"-") -> 19310166.55 | T20: =IFERROR(MAX(0,IF(Disposition="Cap Rate",'Cash Flows'!K$59/(Exit_Rate-0.01),FV((Exit_Rate-0.01),T$6,0,-Acquisition_Gross))),"-") -> 19889471.55 | U20: =IFERROR(MAX(0,IF(Disposition="Cap Rate",'Cash Flows'!L$59/(Exit_Rate-0.01),FV((Exit_Rate-0.01),U$6,0,-Acquisition_Gross))),"-") -> 20486155.69 | V20: =IFERROR(MAX(0,IF(Disposition="Cap Rate",'Cash Flows'!M$59/(Exit_Rate-0.01),FV((Exit_Rate-0.01),V$6,0,-Acquisition_Gross))),"-") -> 21100740.36 | W20: =IFERROR(MAX(0,IF(Disposition="Cap Rate",'Cash Flows'!N$59/(Exit_Rate-0.01),FV((Exit_Rate-0.01),W$6,0,-Acquisition_Gross))),"-") -> 21733762.57 | X20: =IFERROR(MAX(0,IF(Disposition="Cap Rate",'Cash Flows'!O$59/(Exit_Rate-0.01),FV((Exit_Rate-0.01),X$6,0,-Acquisition_Gross))),"-") -> 22385775.45 | Y20: =IFERROR(MAX(0,IF(Disposition="Cap Rate",'Cash Flows'!P$59/(Exit_Rate-0.01),FV((Exit_Rate-0.01),Y$6,0,-Acquisition_Gross))),"-") -> 23057348.72
O21: =IF(Disposition="Cap Rate",TEXT((Exit_Rate),"0.0%")&" Cap Rate",TEXT(Exit_Rate,"0.0%")&" Growth Rate") -> 6.5% Cap Rate | P21: =IFERROR(MAX(0,IF(Disposition="Cap Rate",'Cash Flows'!G$59/(Exit_Rate),FV((Exit_Rate),P$6,0,-Acquisition_Gross))),"-") -> 14952839.73 | Q21: =IFERROR(MAX(0,IF(Disposition="Cap Rate",'Cash Flows'!H$59/(Exit_Rate),FV((Exit_Rate),Q$6,0,-Acquisition_Gross))),"-") -> 15401424.92 | R21: =IFERROR(MAX(0,IF(Disposition="Cap Rate",'Cash Flows'!I$59/(Exit_Rate),FV((Exit_Rate),R$6,0,-Acquisition_Gross))),"-") -> 15863467.67 | S21: =IFERROR(MAX(0,IF(Disposition="Cap Rate",'Cash Flows'!J$59/(Exit_Rate),FV((Exit_Rate),S$6,0,-Acquisition_Gross))),"-") -> 16339371.7 | T21: =IFERROR(MAX(0,IF(Disposition="Cap Rate",'Cash Flows'!K$59/(Exit_Rate),FV((Exit_Rate),T$6,0,-Acquisition_Gross))),"-") -> 16829552.85 | U21: =IFERROR(MAX(0,IF(Disposition="Cap Rate",'Cash Flows'!L$59/(Exit_Rate),FV((Exit_Rate),U$6,0,-Acquisition_Gross))),"-") -> 17334439.43 | V21: =IFERROR(MAX(0,IF(Disposition="Cap Rate",'Cash Flows'!M$59/(Exit_Rate),FV((Exit_Rate),V$6,0,-Acquisition_Gross))),"-") -> 17854472.62 | W21: =IFERROR(MAX(0,IF(Disposition="Cap Rate",'Cash Flows'!N$59/(Exit_Rate),FV((Exit_Rate),W$6,0,-Acquisition_Gross))),"-") -> 18390106.79 | X21: =IFERROR(MAX(0,IF(Disposition="Cap Rate",'Cash Flows'!O$59/(Exit_Rate),FV((Exit_Rate),X$6,0,-Acquisition_Gross))),"-") -> 18941810 | Y21: =IFERROR(MAX(0,IF(Disposition="Cap Rate",'Cash Flows'!P$59/(Exit_Rate),FV((Exit_Rate),Y$6,0,-Acquisition_Gross))),"-") -> 19510064.3
O22: =IF(Disposition="Cap Rate",TEXT((Exit_Rate+0.01),"0.0%")&" Cap Rate",TEXT(Exit_Rate+0.01,"0.0%")&" Growth Rate") -> 7.5% Cap Rate | P22: =IFERROR(MAX(0,IF(Disposition="Cap Rate",'Cash Flows'!G$59/(Exit_Rate+0.01),FV((Exit_Rate+0.01),P$6,0,-Acquisition_Gross))),"-") -> 12959127.76 | Q22: =IFERROR(MAX(0,IF(Disposition="Cap Rate",'Cash Flows'!H$59/(Exit_Rate+0.01),FV((Exit_Rate+0.01),Q$6,0,-Acquisition_Gross))),"-") -> 13347901.6 | R22: =IFERROR(MAX(0,IF(Disposition="Cap Rate",'Cash Flows'!I$59/(Exit_Rate+0.01),FV((Exit_Rate+0.01),R$6,0,-Acquisition_Gross))),"-") -> 13748338.64 | S22: =IFERROR(MAX(0,IF(Disposition="Cap Rate",'Cash Flows'!J$59/(Exit_Rate+0.01),FV((Exit_Rate+0.01),S$6,0,-Acquisition_Gross))),"-") -> 14160788.8 | T22: =IFERROR(MAX(0,IF(Disposition="Cap Rate",'Cash Flows'!K$59/(Exit_Rate+0.01),FV((Exit_Rate+0.01),T$6,0,-Acquisition_Gross))),"-") -> 14585612.47 | U22: =IFERROR(MAX(0,IF(Disposition="Cap Rate",'Cash Flows'!L$59/(Exit_Rate+0.01),FV((Exit_Rate+0.01),U$6,0,-Acquisition_Gross))),"-") -> 15023180.84 | V22: =IFERROR(MAX(0,IF(Disposition="Cap Rate",'Cash Flows'!M$59/(Exit_Rate+0.01),FV((Exit_Rate+0.01),V$6,0,-Acquisition_Gross))),"-") -> 15473876.27 | W22: =IFERROR(MAX(0,IF(Disposition="Cap Rate",'Cash Flows'!N$59/(Exit_Rate+0.01),FV((Exit_Rate+0.01),W$6,0,-Acquisition_Gross))),"-") -> 15938092.55 | X22: =IFERROR(MAX(0,IF(Disposition="Cap Rate",'Cash Flows'!O$59/(Exit_Rate+0.01),FV((Exit_Rate+0.01),X$6,0,-Acquisition_Gross))),"-") -> 16416235.33 | Y22: =IFERROR(MAX(0,IF(Disposition="Cap Rate",'Cash Flows'!P$59/(Exit_Rate+0.01),FV((Exit_Rate+0.01),Y$6,0,-Acquisition_Gross))),"-") -> 16908722.39
O23: Development Cost | P23: =Acquisition_Levered -> 13128746.61 | Q23: 13128746.61 | R23: 13128746.61 | S23: 13128746.61 | T23: 13128746.61 | U23: 13128746.61 | V23: 13128746.61 | W23: 13128746.61 | X23: 13128746.61 | Y23: 13128746.61
D25: `
B70: www.realpropmetrics.com
B71: ="Version: "&Version -> Version: 9.42 M | © 2022
B72: =TODAY() -> 2022-02-23
B73: This pro forma does not constitute tax advice. Please consult a professional tax advisor.

Sheet Summary & Ratios
B2: Summary & Ratios
D4: 1 | E4: 2 | F4: 3 | G4: 4 | H4: 5 | I4: 6 | J4: 7 | K4: 8 | L4: 9 | M4: 10 | N4: Total
D5: =RPMDateSpan(D4,1) -> Jan 22 - Dec 22 | E5: =RPMDateSpan(E4,1) -> Jan 23 - Dec 23 | F5: Jan 24 - Dec 24 | G5: Jan 25 - Dec 25 | H5: Jan 26 - Dec 26 | I5: Jan 27 - Dec 27 | J5: Jan 28 - Dec 28 | K5: Jan 29 - Dec 29 | L5: Jan 30 - Dec 30 | M5: Jan 31 - Dec 31
B6: Operating Summary
B7: Effective Gross Income | D7: ='Cash Flows'!F35 -> 1668686.4 | E7: ='Cash Flows'!G35 -> 1718746.992 | F7: ='Cash Flows'!H35 -> 1770309.402 | G7: ='Cash Flows'!I35 -> 1823418.684 | H7: ='Cash Flows'!J35 -> 1878121.244 | I7: ='Cash Flows'!K35 -> 1934464.882 | J7: ='Cash Flows'!L35 -> 1992498.828 | K7: ='Cash Flows'!M35 -> 2052273.793 | L7: ='Cash Flows'!N35 -> 2113842.007 | M7: ='Cash Flows'!O35 -> 2177257.267 | N7: =SUM(D7:M7) -> 19129619.5
B8: Operating Expenses | D8: =-'Cash Flows'!F55 -> -725060.592 | E8: =-'Cash Flows'!G55 -> -746812.4098 | F8: =-'Cash Flows'!H55 -> -769216.7821 | G8: =-'Cash Flows'!I55 -> -792293.2855 | H8: =-'Cash Flows'!J55 -> -816062.0841 | I8: =-'Cash Flows'!K55 -> -840543.9466 | J8: =-'Cash Flows'!L55 -> -865760.265 | K8: =-'Cash Flows'!M55 -> -891733.073 | L8: =-'Cash Flows'!N55 -> -918485.0651 | M8: =-'Cash Flows'!O55 -> -946039.6171 | N8: =SUM(D8:M8) -> -8312007.12
B9: Operating Reserves | D9: =-'Cash Flows'!F$65 -> -55000 | E9: =-'Cash Flows'!G$65 -> -55000 | F9: =-'Cash Flows'!H$65 -> -55000 | G9: =-'Cash Flows'!I$65 -> -55000 | H9: =-'Cash Flows'!J$65 -> -55000 | I9: =-'Cash Flows'!K$65 -> -55000 | J9: =-'Cash Flows'!L$65 -> -55000 | K9: =-'Cash Flows'!M$65 -> -55000 | L9: =-'Cash Flows'!N$65 -> -55000 | M9: =-'Cash Flows'!O$65 -> -55000 | N9: -550000
B10: Net Operating Income | D10: ='Cash Flows'!F67 -> 888625.808 | E10: ='Cash Flows'!G67 -> 916934.5822 | F10: ='Cash Flows'!H67 -> 946092.6197 | G10: ='Cash Flows'!I67 -> 976125.3983 | H10: ='Cash Flows'!J67 -> 1007059.16 | I10: ='Cash Flows'!K67 -> 1038920.935 | J10: ='Cash Flows'!L67 -> 1071738.563 | K10: ='Cash Flows'!M67 -> 1105540.72 | L10: ='Cash Flows'!N67 -> 1140356.942 | M10: ='Cash Flows'!O67 -> 1176217.65 | N10: 10267612.38
B11: Less: Debt Service | D11: =-'Cash Flows'!F90 -> -594236.1029 | E11: =-'Cash Flows'!G90 -> -594236.1029 | F11: =-'Cash Flows'!H90 -> -594236.1029 | G11: =-'Cash Flows'!I90 -> -594236.1029 | H11: =-'Cash Flows'!J90 -> -594236.1029 | I11: =-'Cash Flows'!K90 -> -594236.1029 | J11: =-'Cash Flows'!L90 -> -594236.1029 | K11: =-'Cash Flows'!M90 -> -594236.1029 | L11: =-'Cash Flows'!N90 -> -594236.1029 | M11: =-'Cash Flows'!O90 -> -594236.1029 | N11: -5942361.029
B12: Less: Fees | D12: ='Cash Flows'!F99 -> 0 | E12: ='Cash Flows'!G99 -> 0 | F12: ='Cash Flows'!H99 -> 0 | G12: ='Cash Flows'!I99 -> 0 | H12: ='Cash Flows'!J99 -> 0 | I12: ='Cash Flows'!K99 -> 0 | J12: ='Cash Flows'!L99 -> 0 | K12: ='Cash Flows'!M99 -> 0 | L12: ='Cash Flows'!N99 -> 0 | M12: ='Cash Flows'!O99 -> 0 | N12: 0
B13: Refinance Proceeds | D13: ='Cash Flows'!F98 -> 0 | E13: ='Cash Flows'!G98 -> 0 | F13: ='Cash Flows'!H98 -> 0 | G13: ='Cash Flows'!I98 -> 0 | H13: ='Cash Flows'!J98 -> 0 | I13: ='Cash Flows'!K98 -> 0 | J13: ='Cash Flows'!L98 -> 0 | K13: ='Cash Flows'!M98 -> 0 | L13: ='Cash Flows'!N98 -> 0 | M13: ='Cash Flows'!O98 -> 0 | N13: 0
B14: Cash Flow After Debt Service | D14: ='Cash Flows'!F101 -> 294389.7051 | E14: ='Cash Flows'!G101 -> 322698.4793 | F14: ='Cash Flows'!H101 -> 351856.5168 | G14: ='Cash Flows'!I101 -> 381889.2954 | H14: ='Cash Flows'!J101 -> 412823.0573 | I14: ='Cash Flows'!K101 -> 444684.8321 | J14: ='Cash Flows'!L101 -> 477502.4602 | K14: ='Cash Flows'!M101 -> 511304.6171 | L14: ='Cash Flows'!N101 -> 546120.8387 | M14: ='Cash Flows'!O101 -> 581981.5469 | N14: 4325251.349
B15: Capital Expenses | D15: =-'Cash Flows'!F112 -> 0 | E15: =-'Cash Flows'!G112 -> 0 | F15: =-'Cash Flows'!H112 -> 0 | G15: =-'Cash Flows'!I112 -> 0 | H15: =-'Cash Flows'!J112 -> 0 | I15: =-'Cash Flows'!K112 -> 0 | J15: =-'Cash Flows'!L112 -> 0 | K15: =-'Cash Flows'!M112 -> 0 | L15: =-'Cash Flows'!N112 -> 0 | M15: =-'Cash Flows'!O112 -> 0 | N15: 0
B16: Other Non-Regular Income | D16: ='Cash Flows'!F$119 -> 0 | E16: ='Cash Flows'!G$119 -> 0 | F16: ='Cash Flows'!H$119 -> 0 | G16: ='Cash Flows'!I$119 -> 0 | H16: ='Cash Flows'!J$119 -> 0 | I16: ='Cash Flows'!K$119 -> 0 | J16: ='Cash Flows'!L$119 -> 0 | K16: ='Cash Flows'!M$119 -> 0 | L16: ='Cash Flows'!N$119 -> 0 | M16: ='Cash Flows'!O$119 -> 550000 | N16: 550000
B17: =IF(Disposition="Cap Rate","Sale Price Based on "&ROUND(Exit_Rate*100,2)&"% Exit Cap Rate","Sale Price Based on "&ROUND(Exit_Rate*100,2)&"% Annual Growth Rate") -> Sale Price Based on 6.5% Exit Cap Rate | D17: ='Return Detail'!F$33 -> 0 | E17: ='Return Detail'!G$33 -> 0 | F17: ='Return Detail'!H$33 -> 0 | G17: ='Return Detail'!I$33 -> 0 | H17: ='Return Detail'!J$33 -> 0 | I17: ='Return Detail'!K$33 -> 0 | J17: ='Return Detail'!L$33 -> 0 | K17: ='Return Detail'!M$33 -> 0 | L17: ='Return Detail'!N$33 -> 0 | M17: ='Return Detail'!O$33 -> 19510064.3 | N17: 19510064.3
B18: Less: Mortgage Balance | D18: ='Return Detail'!F$35 -> 0 | E18: ='Return Detail'!G$35 -> 0 | F18: ='Return Detail'!H$35 -> 0 | G18: ='Return Detail'!I$35 -> 0 | H18: ='Return Detail'!J$35 -> 0 | I18: ='Return Detail'!K$35 -> 0 | J18: ='Return Detail'!L$35 -> 0 | K18: ='Return Detail'!M$35 -> 0 | L18: ='Return Detail'!N$35 -> 0 | M18: ='Return Detail'!O$35 -> -7827349.098 | N18: -7827349.098
B19: Less: Cost of Sale | D19: =SUM('Return Detail'!F$34,'Return Detail'!F$36) -> 0 | E19: =SUM('Return Detail'!G$34,'Return Detail'!G$36) -> 0 | F19: =SUM('Return Detail'!H$34,'Return Detail'!H$36) -> 0 | G19: =SUM('Return Detail'!I$34,'Return Detail'!I$36) -> 0 | H19: =SUM('Return Detail'!J$34,'Return Detail'!J$36) -> 0 | I19: =SUM('Return Detail'!K$34,'Return Detail'!K$36) -> 0 | J19: =SUM('Return Detail'!L$34,'Return Detail'!L$36) -> 0 | K19: =SUM('Return Detail'!M$34,'Return Detail'!M$36) -> 0 | L19: =SUM('Return Detail'!N$34,'Return Detail'!N$36) -> 0 | M19: =SUM('Return Detail'!O$34,'Return Detail'!O$36) -> -97550.32149 | N19: -97550.32149
B20: Cash Flow Before Taxes | D20: =SUM(D14:D19) -> 294389.7051 | E20: =SUM(E14:E19) -> 322698.4793 | F20: 351856.5168 | G20: 381889.2954 | H20: 412823.0573 | I20: 444684.8321 | J20: 477502.4602 | K20: 511304.6171 | L20: 546120.8387 | M20: 12717146.42 | N20: 16460416.23
B21: Less: Taxes | D21: =SUM('Return Detail'!F74:F76,'Return Detail'!F81:F82) -> -164893.3 | E21: =SUM('Return Detail'!G74:G76,'Return Detail'!G81:G82) -> -173370.9223 | F21: =SUM('Return Detail'!H74:H76,'Return Detail'!H81:H82) -> -186227.7801 | G21: =SUM('Return Detail'!I74:I76,'Return Detail'!I81:I82) -> -199512.6088 | H21: =SUM('Return Detail'!J74:J76,'Return Detail'!J81:J82) -> -213240.1892 | I21: =SUM('Return Detail'!K74:K76,'Return Detail'!K81:K82) -> -227425.8347 | J21: =SUM('Return Detail'!L74:L76,'Return Detail'!L81:L82) -> -242085.4113 | K21: =SUM('Return Detail'!M74:M76,'Return Detail'!M81:M82) -> -257235.3588 | L21: =SUM('Return Detail'!N74:N76,'Return Detail'!N81:N82) -> -272892.7121 | M21: =SUM('Return Detail'!O74:O76,'Return Detail'!O81:O82) -> -1658860.767 | N21: =SUM(D21:M21) -> -3595744.885
B22: Cash Flow After Taxes | D22: =SUM(D20:D21) -> 129496.4051 | E22: =SUM(E20:E21) -> 149327.557 | F22: 165628.7366 | G22: 182376.6865 | H22: 199582.8681 | I22: 217258.9974 | J22: 235417.0488 | K22: 254069.2582 | L22: 273228.1265 | M22: 11058285.66 | N22: =SUM(D22:M22) -> 12864671.34
B24: Value Summary
B25: =IF(Project_Type="Acquisition","Cap Rate Based on Acquisition Cost","Cap Rate Based on Development Cost") -> Cap Rate Based on Acquisition Cost | D25: =IFERROR(SUM(D7:D8)/Acquisition_Levered,"-") -> 0.0718747826 | E25: 0.07403102607 | F25: 0.07625195686 | G25: 0.07853951556 | H25: 0.08089570103 | I25: 0.08332257206 | J25: 0.08582224922 | K25: 0.0883969167 | L25: 0.0910488242 | M25: 0.09378028893
B26: =IF(Disposition="Cap Rate","Value Based on "&ROUND(Exit_Rate*100,2)&"% Exit Cap Rate","Value Based on "&ROUND(Exit_Rate*100,2)&"% Annual Growth Rate") -> Value Based on 6.5% Exit Cap Rate | D26: =IFERROR(IF(Disposition="Cap Rate",'Cash Flows'!G$67/Exit_Rate,FV(Exit_Rate,D$4,0,-Acquisition_Gross)),"-") -> 14106685.88 | E26: =IFERROR(IF(Disposition="Cap Rate",'Cash Flows'!H$67/Exit_Rate,FV(Exit_Rate,E$4,0,-Acquisition_Gross)),"-") -> 14555271.07 | F26: =IFERROR(IF(Disposition="Cap Rate",'Cash Flows'!I$67/Exit_Rate,FV(Exit_Rate,F$4,0,-Acquisition_Gross)),"-") -> 15017313.82 | G26: =IFERROR(IF(Disposition="Cap Rate",'Cash Flows'!J$67/Exit_Rate,FV(Exit_Rate,G$4,0,-Acquisition_Gross)),"-") -> 15493217.85 | H26: =IFERROR(IF(Disposition="Cap Rate",'Cash Flows'!K$67/Exit_Rate,FV(Exit_Rate,H$4,0,-Acquisition_Gross)),"-") -> 15983399 | I26: =IFERROR(IF(Disposition="Cap Rate",'Cash Flows'!L$67/Exit_Rate,FV(Exit_Rate,I$4,0,-Acquisition_Gross)),"-") -> 16488285.59 | J26: =IFERROR(IF(Disposition="Cap Rate",'Cash Flows'!M$67/Exit_Rate,FV(Exit_Rate,J$4,0,-Acquisition_Gross)),"-") -> 17008318.77 | K26: =IFERROR(IF(Disposition="Cap Rate",'Cash Flows'!N$67/Exit_Rate,FV(Exit_Rate,K$4,0,-Acquisition_Gross)),"-") -> 17543952.95 | L26: =IFERROR(IF(Disposition="Cap Rate",'Cash Flows'!O$67/Exit_Rate,FV(Exit_Rate,L$4,0,-Acquisition_Gross)),"-") -> 18095656.15 | M26: =IFERROR(IF(Disposition="Cap Rate",'Cash Flows'!P$67/Exit_Rate,FV(Exit_Rate,M$4,0,-Acquisition_Gross)),"-") -> 18663910.45
B27: Mortgage Balance (EOY) | D27: =IFERROR(VLOOKUP(D$4,Amortization_Schedule_Annual,9,FALSE),"-") -> 9615595.653 | E27: 9450687.71 | F27: 9278203.926 | G27: 9097796.266 | H27: 8909100.711 | I27: 8711736.514 | J27: 8505305.441 | K27: 8289390.96 | L27: 8063557.406 | M27: 7827349.098
B28: Equity (EOY) | D28: =IFERROR(D26-D27,"-") -> 4491090.228 | E28: =IFERROR(E26-E27,"-") -> 5104583.362 | F28: 5739109.894 | G28: 6395421.583 | H28: 7074298.29 | I28: 7776549.072 | J28: 8503013.328 | K28: 9254561.987 | L28: 10032098.75 | M28: 10836561.35
B30: Operating Ratios
B31: Net Income Multiplier* | D31: =IFERROR(Acquisition_Levered/D10,"-") -> 14.7742126 | E31: 14.31808426 | F31: 13.87680903 | G31: 13.44985657 | H31: 13.03671832 | I31: 12.63690639 | J31: 12.24995261 | K31: 11.87540754 | L31: 11.51283964 | M31: 11.16183438
B32: Operating Expense Ratio | D32: =IFERROR(-D8/D7,"-") -> 0.4345097988 | E32: 0.4345097988 | F32: 0.4345097988 | G32: 0.4345097988 | H32: 0.4345097988 | I32: 0.4345097988 | J32: 0.4345097988 | K32: 0.4345097988 | L32: 0.4345097988 | M32: 0.4345097988
B33: Cash on Cash Return (Pre Tax) | D33: =IFERROR('Return Detail'!F32/Equity_Amount,"-") -> 0.08773384715 | E33: =IFERROR('Return Detail'!G32/Equity_Amount,"-") -> 0.09617041144 | F33: =IFERROR('Return Detail'!H32/Equity_Amount,"-") -> 0.1048600727 | G33: =IFERROR('Return Detail'!I32/Equity_Amount,"-") -> 0.1138104237 | H33: =IFERROR('Return Detail'!J32/Equity_Amount,"-") -> 0.1230292853 | I33: =IFERROR('Return Detail'!K32/Equity_Amount,"-") -> 0.1325247127 | J33: =IFERROR('Return Detail'!L32/Equity_Amount,"-") -> 0.142305003 | K33: =IFERROR('Return Detail'!M32/Equity_Amount,"-") -> 0.1523787019 | L33: =IFERROR('Return Detail'!N32/Equity_Amount,"-") -> 0.1627546119 | M33: =IFERROR('Return Detail'!O32/Equity_Amount,"-") -> 0.3373524764
B34: Cash on Cash Return (Post Tax) | D34: =IFERROR('Return Detail'!F$83/Equity_Amount,"-") -> 0.03859244266 | E34: =IFERROR('Return Detail'!G$83/Equity_Amount,"-") -> 0.04450251091 | F34: =IFERROR('Return Detail'!H$83/Equity_Amount,"-") -> 0.0493605789 | G34: =IFERROR('Return Detail'!I$83/Equity_Amount,"-") -> 0.0543517931 | H34: =IFERROR('Return Detail'!J$83/Equity_Amount,"-") -> 0.05947956923 | I34: =IFERROR('Return Detail'!K$83/Equity_Amount,"-") -> 0.06474739892 | J34: =IFERROR('Return Detail'!L$83/Equity_Amount,"-") -> 0.07015885075 | K34: =IFERROR('Return Detail'!M$83/Equity_Amount,"-") -> 0.07571757125 | L34: =IFERROR('Return Detail'!N$83/Equity_Amount,"-") -> 0.08142728594 | M34: =IFERROR('Return Detail'!O$83/Equity_Amount,"-") -> 0.2510400895
B35: =IF(Project_Type="Acquisition","*Based on Acquisition Cost","*Based on Development Cost") -> *Based on Acquisition Cost
B37: Lender Ratios
B38: Loan to Value Ratio | D38: =IFERROR(D27/D26,"-") -> 0.6816339241 | E38: =IFERROR(E27/E26,"-") -> 0.6492965788 | F38: 0.6178337909 | G38: 0.587211537 | H38: 0.5573971287 | I38: 0.5283591474 | J38: 0.5000673821 | K38: 0.472492772 | L38: 0.4456073512 | M38: 0.419384197
B39: Debt to Equity Ratio | D39: =IFERROR(D27/D28,"-") -> 2.141038181 | E39: =IFERROR(E27/E28,"-") -> 1.85141216 | F39: 1.616662531 | G39: 1.422548326 | H39: 1.259361755 | I39: 1.120257383 | J39: 1.000269565 | K39: 0.8957086215 | L39: 0.8037757214 | M39: 0.7223093049
B40: Debt Service Coverage Ratio | D40: =IFERROR(D$10/-D$11,"-") -> 1.495408649 | E40: =IFERROR(E$10/-E$11,"-") -> 1.543047583 | F40: 1.592115684 | G40: 1.642655829 | H40: 1.694712178 | I40: 1.748330217 | J40: 1.803556798 | K40: 1.860440176 | L40: 1.919030056 | M40: 1.979377631
B41: Break Even Occupancy (Pre Tax) | D41: =IFERROR(SUM('Cash Flows'!F55,'Cash Flows'!F90,'Cash Flows'!F99)/SUM('Cash Flows'!F24,'Cash Flows'!F33),"-") -> 0.7510889165 | E41: =IFERROR(SUM('Cash Flows'!G55,'Cash Flows'!G90,'Cash Flows'!G99)/SUM('Cash Flows'!G24,'Cash Flows'!G33),"-") -> 0.7412353843 | F41: =IFERROR(SUM('Cash Flows'!H55,'Cash Flows'!H90,'Cash Flows'!H99)/SUM('Cash Flows'!H24,'Cash Flows'!H33),"-") -> 0.7316688481 | G41: =IFERROR(SUM('Cash Flows'!I55,'Cash Flows'!I90,'Cash Flows'!I99)/SUM('Cash Flows'!I24,'Cash Flows'!I33),"-") -> 0.7223809489 | H41: =IFERROR(SUM('Cash Flows'!J55,'Cash Flows'!J90,'Cash Flows'!J99)/SUM('Cash Flows'!J24,'Cash Flows'!J33),"-") -> 0.713363571 | I41: =IFERROR(SUM('Cash Flows'!K55,'Cash Flows'!K90,'Cash Flows'!K99)/SUM('Cash Flows'!K24,'Cash Flows'!K33),"-") -> 0.7046088352 | J41: =IFERROR(SUM('Cash Flows'!L55,'Cash Flows'!L90,'Cash Flows'!L99)/SUM('Cash Flows'!L24,'Cash Flows'!L33),"-") -> 0.6961090917 | K41: =IFERROR(SUM('Cash Flows'!M55,'Cash Flows'!M90,'Cash Flows'!M99)/SUM('Cash Flows'!M24,'Cash Flows'!M33),"-") -> 0.6878569136 | L41: =IFERROR(SUM('Cash Flows'!N55,'Cash Flows'!N90,'Cash Flows'!N99)/SUM('Cash Flows'!N24,'Cash Flows'!N33),"-") -> 0.6798450902 | M41: =IFERROR(SUM('Cash Flows'!O55,'Cash Flows'!O90,'Cash Flows'!O99)/SUM('Cash Flows'!O24,'Cash Flows'!O33),"-") -> 0.6720666208
B42: Break Even Occupancy (Post Tax) | D42: =IFERROR(SUM('Cash Flows'!F55,'Cash Flows'!F90,'Cash Flows'!F99,'Cash Flows'!F129)/SUM('Cash Flows'!F24,'Cash Flows'!F33),"-") -> 0.6572134975 | E42: =IFERROR(SUM('Cash Flows'!G55,'Cash Flows'!G90,'Cash Flows'!G99,'Cash Flows'!G129)/SUM('Cash Flows'!G24,'Cash Flows'!G33),"-") -> 0.6454083795 | F42: =IFERROR(SUM('Cash Flows'!H55,'Cash Flows'!H90,'Cash Flows'!H99,'Cash Flows'!H129)/SUM('Cash Flows'!H24,'Cash Flows'!H33),"-") -> 0.6317335538 | G42: =IFERROR(SUM('Cash Flows'!I55,'Cash Flows'!I90,'Cash Flows'!I99,'Cash Flows'!I129)/SUM('Cash Flows'!I24,'Cash Flows'!I33),"-") -> 0.6184350038 | H42: =IFERROR(SUM('Cash Flows'!J55,'Cash Flows'!J90,'Cash Flows'!J99,'Cash Flows'!J129)/SUM('Cash Flows'!J24,'Cash Flows'!J33),"-") -> 0.6055014293 | I42: =IFERROR(SUM('Cash Flows'!K55,'Cash Flows'!K90,'Cash Flows'!K99,'Cash Flows'!K129)/SUM('Cash Flows'!K24,'Cash Flows'!K33),"-") -> 0.592921854 | J42: =IFERROR(SUM('Cash Flows'!L55,'Cash Flows'!L90,'Cash Flows'!L99,'Cash Flows'!L129)/SUM('Cash Flows'!L24,'Cash Flows'!L33),"-") -> 0.5806856157 | K42: =IFERROR(SUM('Cash Flows'!M55,'Cash Flows'!M90,'Cash Flows'!M99,'Cash Flows'!M129)/SUM('Cash Flows'!M24,'Cash Flows'!M33),"-") -> 0.5687823575 | L42: =IFERROR(SUM('Cash Flows'!N55,'Cash Flows'!N90,'Cash Flows'!N99,'Cash Flows'!N129)/SUM('Cash Flows'!N24,'Cash Flows'!N33),"-") -> 0.5572020186 | M42: =IFERROR(SUM('Cash Flows'!O55,'Cash Flows'!O90,'Cash Flows'!O99,'Cash Flows'!O129)/SUM('Cash Flows'!O24,'Cash Flows'!O33),"-") -> 0.545697074
B43: Debt Yield | D43: =IFERROR(D10/D27,"-") -> 0.09241505571 | E43: 0.09702305381 | F43: 0.1019693711 | G43: 0.1072925102 | H43: 0.1130371283 | I43: 0.1192553211 | J43: 0.1260082393 | K43: 0.1333681479 | L43: 0.1414210731 | M43: 0.1502702428
B45: ="Performance Summary over " & Hold & " Years" -> Performance Summary over 10 Years | D45: Pre Tax | E45: Post Tax
B46: Initial Equity | D46: =-Equity_Amount -> -3355486.105 | E46: =-Equity_Amount -> -3355486.105
B47: Operating Cash Flows | D47: =SUM('Return Detail'!$F$32:$O$32) -> 4875251.349 | E47: =SUM('Return Detail'!$F$83:$O$83) -> 2648747.216
B48: Net Reversion Proceeds | D48: =SUM('Return Detail'!$F$33:$O$36) -> 11585164.88 | E48: =SUM('Return Detail'!$F$84:$O$84) -> 10215924.13
B49: Net Cash Flow | D49: =SUM(D46:D48) -> 13104930.12 | E49: =SUM(E46:E48) -> 9509185.237
B50: ="Net Present Value at "&ROUND(Equity_Rate*100,2)&"%" -> Net Present Value at 10% | D50: ='Return Detail'!$C$41 -> 3829548.681 | E50: ='Return Detail'!$C$89 -> 1999871.034
B51: Leveraged IRR | D51: ='Return Detail'!$C$42 -> 0.2105487731 | E51: ='Return Detail'!C91 -> 0.1599011558
B56: www.realpropmetrics.com
B57: ="Version: "&Version -> Version: 9.42 M | © 2022
B58: =TODAY() -> 2022-02-23
B59: This pro forma does not constitute tax advice. Please consult a professional tax advisor.

Sheet Return Detail
B2: Project Return Details
B4: Unlevered Returns
F5: 1 | G5: 2 | H5: 3 | I5: 4 | J5: 5 | K5: 6 | L5: 7 | M5: 8 | N5: 9 | O5: 10
B6: Net Operating Income | F6: =IF($F$5<=Hold,'Cash Flows'!F$67,0) -> 888625.808 | G6: =IF(G5<=Hold,'Cash Flows'!G$67,0) -> 916934.5822 | H6: =IF(H5<=Hold,'Cash Flows'!H$67,0) -> 946092.6197 | I6: =IF(I5<=Hold,'Cash Flows'!I$67,0) -> 976125.3983 | J6: =IF(J5<=Hold,'Cash Flows'!J$67,0) -> 1007059.16 | K6: =IF(K5<=Hold,'Cash Flows'!K$67,0) -> 1038920.935 | L6: =IF(L5<=Hold,'Cash Flows'!L$67,0) -> 1071738.563 | M6: =IF(M5<=Hold,'Cash Flows'!M$67,0) -> 1105540.72 | N6: =IF(N5<=Hold,'Cash Flows'!N$67,0) -> 1140356.942 | O6: =IF(O5<=Hold,'Cash Flows'!O$67,0) -> 1176217.65
B7: Less: Capital Expenses | F7: =IF(F$5<=Hold,'Cash Flows'!F112*-1,0) -> 0 | G7: =IF(G$5<=Hold,'Cash Flows'!G112*-1,0) -> 0 | H7: =IF(H$5<=Hold,'Cash Flows'!H112*-1,0) -> 0 | I7: =IF(I$5<=Hold,'Cash Flows'!I112*-1,0) -> 0 | J7: =IF(J$5<=Hold,'Cash Flows'!J112*-1,0) -> 0 | K7: =IF(K$5<=Hold,'Cash Flows'!K112*-1,0) -> 0 | L7: =IF(L$5<=Hold,'Cash Flows'!L112*-1,0) -> 0 | M7: =IF(M$5<=Hold,'Cash Flows'!M112*-1,0) -> 0 | N7: =IF(N$5<=Hold,'Cash Flows'!N112*-1,0) -> 0 | O7: =IF(O$5<=Hold,'Cash Flows'!O112*-1,0) -> 0
B8: Non-Regular Income | F8: =IF(F5>Hold,0,'Cash Flows'!F$119) -> 0 | G8: =IF(G5>Hold,0,'Cash Flows'!G$119) -> 0 | H8: =IF(H5>Hold,0,'Cash Flows'!H$119) -> 0 | I8: =IF(I5>Hold,0,'Cash Flows'!I$119) -> 0 | J8: =IF(J5>Hold,0,'Cash Flows'!J$119) -> 0 | K8: =IF(K5>Hold,0,'Cash Flows'!K$119) -> 0 | L8: =IF(L5>Hold,0,'Cash Flows'!L$119) -> 0 | M8: =IF(M5>Hold,0,'Cash Flows'!M$119) -> 0 | N8: =IF(N5>Hold,0,'Cash Flows'!N$119) -> 0 | O8: =IF(O5>Hold,0,'Cash Flows'!O$119) -> 550000
B9: Operating Cash Flow | F9: =SUM(F6:F8) -> 888625.808 | G9: =SUM(G6:G8) -> 916934.5822 | H9: 946092.6197 | I9: 976125.3983 | J9: 1007059.16 | K9: 1038920.935 | L9: 1071738.563 | M9: 1105540.72 | N9: 1140356.942 | O9: 1726217.65
B10: Reversion Cash Flow | F10: =IFERROR(IF(F$5=Hold,IF(Disposition="Cap Rate",'Cash Flows'!G$59/Exit_Rate,FV(Exit_Rate,Hold,0,-Acquisition_Gross)),0),0) -> 0 | G10: =IFERROR(IF(G$5=Hold,IF(Disposition="Cap Rate",'Cash Flows'!H$59/Exit_Rate,FV(Exit_Rate,Hold,0,-Acquisition_Gross)),0),0) -> 0 | H10: =IFERROR(IF(H$5=Hold,IF(Disposition="Cap Rate",'Cash Flows'!I$59/Exit_Rate,FV(Exit_Rate,Hold,0,-Acquisition_Gross)),0),0) -> 0 | I10: =IFERROR(IF(I$5=Hold,IF(Disposition="Cap Rate",'Cash Flows'!J$59/Exit_Rate,FV(Exit_Rate,Hold,0,-Acquisition_Gross)),0),0) -> 0 | J10: =IFERROR(IF(J$5=Hold,IF(Disposition="Cap Rate",'Cash Flows'!K$59/Exit_Rate,FV(Exit_Rate,Hold,0,-Acquisition_Gross)),0),0) -> 0 | K10: =IFERROR(IF(K$5=Hold,IF(Disposition="Cap Rate",'Cash Flows'!L$59/Exit_Rate,FV(Exit_Rate,Hold,0,-Acquisition_Gross)),0),0) -> 0 | L10: =IFERROR(IF(L$5=Hold,IF(Disposition="Cap Rate",'Cash Flows'!M$59/Exit_Rate,FV(Exit_Rate,Hold,0,-Acquisition_Gross)),0),0) -> 0 | M10: =IFERROR(IF(M$5=Hold,IF(Disposition="Cap Rate",'Cash Flows'!N$59/Exit_Rate,FV(Exit_Rate,Hold,0,-Acquisition_Gross)),0),0) -> 0 | N10: =IFERROR(IF(N$5=Hold,IF(Disposition="Cap Rate",'Cash Flows'!O$59/Exit_Rate,FV(Exit_Rate,Hold,0,-Acquisition_Gross)),0),0) -> 0 | O10: =IFERROR(IF(O$5=Hold,IF(Disposition="Cap Rate",'Cash Flows'!P$59/Exit_Rate,FV(Exit_Rate,Hold,0,-Acquisition_Gross)),0),0) -> 19510064.3
B11: Less: Cost of Sale | F11: =F10*-Sale_Cost -> 0 | G11: 0 | H11: 0 | I11: 0 | J11: 0 | K11: 0 | L11: 0 | M11: 0 | N11: 0 | O11: -97550.32149
B12: Net Cash Flow | E12: =-Acquisition_Unlevered -> -13031014 | F12: =SUM(F9:F11) -> 888625.808 | G12: 916934.5822 | H12: 946092.6197 | I12: 976125.3983 | J12: 1007059.16 | K12: 1038920.935 | L12: 1071738.563 | M12: 1105540.72 | N12: 1140356.942 | O12: 21138731.63
B13: Cash on Cash Return | F13: =IFERROR(F9/Acquisition_Unlevered,"-") -> 0.06819314353 | G13: 0.07036555883 | H13: 0.07260314659 | I13: 0.07490786199 | J13: 0.07728171885 | K13: 0.07972679141 | L13: 0.08224521615 | M13: 0.08483919363 | N13: 0.08751099044 | O13: 0.1324699405
B15: Net Cash Flow | C15: =SUM(E12:O12) -> 17199112.35
B16: ="Net Present Value at "&ROUND(Equity_Rate*100,2)&"%" -> Net Present Value at 10% | C16: =SUM(E12,NPV(Equity_Rate,F12:O12)) -> 823126.3156
B17: Unleveraged IRR | C17: =IFERROR(IRR(E12:O12),"-") -> 0.1087543429
B18: Avg. Operating Cash on Cash | C18: =IFERROR(((SUM($F$9:$O$9)/Hold)/Acquisition_Unlevered),"-") -> 0.0830143562
B19: Avg. Cash on Cash | C19: =IFERROR(((SUM($F$12:$O$12)/Hold)/Acquisition_Unlevered),"-") -> 0.2319859863
B20: ="Unleveraged PV at " & TEXT(Equity_Rate,"#%") & IF(LEN(C20)>=7," Rounded ($10,000's)"," Rounded ($1,000's)") -> Unleveraged PV at 10% Rounded ($10,000's) | C20: =IF(LEN(INT(NPV(Equity_Rate,F12:O12)))>=7,ROUND(NPV(Equity_Rate,F12:O12),-4),ROUND(NPV(Equity_Rate,F12:O12),-3)) -> 13850000
B21: =IF(Property_Use="Commercial","Per Square Feet","Per Unit") -> Per Unit | C21: =IFERROR(C20/Size_Total,0) -> 69250
B23: Levered Cash Flow
F24: 1 | G24: 2 | H24: 3 | I24: 4 | J24: 5 | K24: 6 | L24: 7 | M24: 8 | N24: 9 | O24: 10
B25: Net Operating Income | F25: =F6 -> 888625.808 | G25: =G6 -> 916934.5822 | H25: 946092.6197 | I25: 976125.3983 | J25: 1007059.16 | K25: 1038920.935 | L25: 1071738.563 | M25: 1105540.72 | N25: 1140356.942 | O25: 1176217.65
B26: Refinance Proceeds | F26: =IF(Hold<F24,0,IF(ROUNDUP((Loan_IO_Term+1)/12,0)=F24,Loan_Amount_Amortizing-Loan_Amount,0)) -> 0 | G26: 0 | H26: 0 | I26: 0 | J26: 0 | K26: 0 | L26: 0 | M26: 0 | N26: 0 | O26: 0
B27: Less: Debt Service | F27: =IF(F24<=Hold,-'Cash Flows'!F$90,0) -> -594236.1029 | G27: =IF(G24<=Hold,-'Cash Flows'!G$90,0) -> -594236.1029 | H27: =IF(H24<=Hold,-'Cash Flows'!H$90,0) -> -594236.1029 | I27: =IF(I24<=Hold,-'Cash Flows'!I$90,0) -> -594236.1029 | J27: =IF(J24<=Hold,-'Cash Flows'!J$90,0) -> -594236.1029 | K27: =IF(K24<=Hold,-'Cash Flows'!K$90,0) -> -594236.1029 | L27: =IF(L24<=Hold,-'Cash Flows'!L$90,0) -> -594236.1029 | M27: =IF(M24<=Hold,-'Cash Flows'!M$90,0) -> -594236.1029 | N27: =IF(N24<=Hold,-'Cash Flows'!N$90,0) -> -594236.1029 | O27: =IF(O24<=Hold,-'Cash Flows'!O$90,0) -> -594236.1029
B28: Less: Mortgage Origination Fee | F28: =IF(OR(F24>Hold,Loan_IO_Approval="No"),0,IF(AND(Loan_IO_Term<>0,(Loan_IO_Term+1)/12<=F24,(Loan_IO_Term+1)/12>F24-1),Loan_Amor_Fee*-Loan_Amount_Amortizing,0)) -> 0 | G28: 0 | H28: 0 | I28: 0 | J28: 0 | K28: 0 | L28: 0 | M28: 0 | N28: 0 | O28: 0
B29: Cash Flow After Debt Service | F29: =SUM(F25:F28) -> 294389.7051 | G29: =SUM(G25:G28) -> 322698.4793 | H29: 351856.5168 | I29: 381889.2954 | J29: 412823.0573 | K29: 444684.8321 | L29: 477502.4602 | M29: 511304.6171 | N29: 546120.8387 | O29: 581981.5469
B30: Less: Capital Expenses | F30: =F$7 -> 0 | G30: =G$7 -> 0 | H30: 0 | I30: 0 | J30: 0 | K30: 0 | L30: 0 | M30: 0 | N30: 0 | O30: 0
B31: Non-Regular Income | F31: =F8 -> 0 | G31: =G8 -> 0 | H31: 0 | I31: 0 | J31: 0 | K31: 0 | L31: 0 | M31: 0 | N31: 0 | O31: 550000
B32: Distributable Cash Flow | F32: =SUM(F29:F31) -> 294389.7051 | G32: =SUM(G29:G31) -> 322698.4793 | H32: 351856.5168 | I32: 381889.2954 | J32: 412823.0573 | K32: 444684.8321 | L32: 477502.4602 | M32: 511304.6171 | N32: 546120.8387 | O32: 1131981.547
B33: Reversion Cash Flow | F33: =F10 -> 0 | G33: =G10 -> 0 | H33: 0 | I33: 0 | J33: 0 | K33: 0 | L33: 0 | M33: 0 | N33: 0 | O33: 19510064.3
B34: Less: Cost of Sale | F34: =F33*-Sale_Cost -> 0 | G34: 0 | H34: 0 | I34: 0 | J34: 0 | K34: 0 | L34: 0 | M34: 0 | N34: 0 | O34: -97550.32149
B35: Less: Mortgage Balance | F35: =IF(F$24=Hold,-VLOOKUP(F$24,Amortization_Schedule_Annual,9,FALSE),0) -> 0 | G35: 0 | H35: 0 | I35: 0 | J35: 0 | K35: 0 | L35: 0 | M35: 0 | N35: 0 | O35: -7827349.098
B36: Less: Mortgage Exit Fee | F36: =F35*Loan_Exit_Fee -> 0 | G36: =G35*Loan_Exit_Fee -> 0 | H36: 0 | I36: 0 | J36: 0 | K36: 0 | L36: 0 | M36: 0 | N36: 0 | O36: 0
B37: Net Cash Flow | E37: =-Equity_Amount -> -3355486.105 | F37: =SUM(F32:F36) -> 294389.7051 | G37: 322698.4793 | H37: 351856.5168 | I37: 381889.2954 | J37: 412823.0573 | K37: 444684.8321 | L37: 477502.4602 | M37: 511304.6171 | N37: 546120.8387 | O37: 12717146.42
B38: Cash on Cash Return | F38: =IFERROR(F32/Equity_Amount,"-") -> 0.08773384715 | G38: 0.09617041144 | H38: 0.1048600727 | I38: 0.1138104237 | J38: 0.1230292853 | K38: 0.1325247127 | L38: 0.142305003 | M38: 0.1523787019 | N38: 0.1627546119 | O38: 0.3373524764
B40: Net Leveraged Cash Flow | C40: =SUM(E37:O37) -> 13104930.12
B41: ="Net Present Value at "&ROUND(Equity_Rate*100,2)&"%" -> Net Present Value at 10% | C41: =SUM(E37,NPV(Equity_Rate,F37:O37)) -> 3829548.681
B42: Leveraged IRR | C42: =IFERROR(IRR(E37:O37),"-") -> 0.2105487731
B43: Avg. Operating Cash on Cash | C43: =IFERROR(((SUM($F$32:$O$32)/Hold)/-E37),"-") -> 0.1452919546
B44: Avg. Cash on Cash | C44: =IFERROR(((SUM($F$37:$O$37)/Hold)/-E37),"-") -> 0.4905523585
B45: ="Present Value of Cash Flows at "&ROUND(Equity_Rate*100,0)&"%" -> Present Value of Cash Flows at 10% | C45: =NPV(Equity_Rate,F37:O37) -> 7185034.786
B46: Plus: Original Loan Amount | C46: =Loan_Amount -> 9773260.5
B47: Total Leveraged Present Value | C47: =SUM(C45:C46) -> 16958295.29
B48: =IF(LEN(C48)>=7,"Rounded ($10,000's)","Rounded ($1,000's)") -> Rounded ($10,000's) | C48: =IF(LEN(INT(C47))>=7,ROUND(C47,-4),ROUND(C47,-3)) -> 16960000
B49: =IF(Property_Use="Commercial","Per Square Feet","Per Unit") -> Per Unit | C49: =IFERROR(C48/Size_Total,0) -> 84800
B51: After Tax Returns
F52: 1 | G52: 2 | H52: 3 | I52: 4 | J52: 5 | K52: 6 | L52: 7 | M52: 8 | N52: 9 | O52: 10
B53: Basis Calculation
B54: Basis at Acquisition | F54: =IF(F52=Hold,Acquisition_Unlevered,0) -> 0 | G54: 0 | H54: 0 | I54: 0 | J54: 0 | K54: 0 | L54: 0 | M54: 0 | N54: 0 | O54: 13031014
B55: + Capital Additions | F55: =IF(F52=Hold,SUM('Cash Flows'!$F$105:F$105),0) -> 0 | G55: =IF(G52=Hold,SUM('Cash Flows'!$F$105:G$105),0) -> 0 | H55: =IF(H52=Hold,SUM('Cash Flows'!$F$105:H$105),0) -> 0 | I55: =IF(I52=Hold,SUM('Cash Flows'!$F$105:I$105),0) -> 0 | J55: =IF(J52=Hold,SUM('Cash Flows'!$F$105:J$105),0) -> 0 | K55: =IF(K52=Hold,SUM('Cash Flows'!$F$105:K$105),0) -> 0 | L55: =IF(L52=Hold,SUM('Cash Flows'!$F$105:L$105),0) -> 0 | M55: =IF(M52=Hold,SUM('Cash Flows'!$F$105:M$105),0) -> 0 | N55: =IF(N52=Hold,SUM('Cash Flows'!$F$105:N$105),0) -> 0 | O55: =IF(O52=Hold,SUM('Cash Flows'!$F$105:O$105),0) -> 0
B56: Cost Recovery (Depreciation) Taken | F56: =IF(F52=Hold,SUM('Cash Flows'!$F$126:F$126)*-1,0) -> 0 | G56: =IF(G52=Hold,SUM('Cash Flows'!$F$126:G$126)*-1,0) -> 0 | H56: =IF(H52=Hold,SUM('Cash Flows'!$F$126:H$126)*-1,0) -> 0 | I56: =IF(I52=Hold,SUM('Cash Flows'!$F$126:I$126)*-1,0) -> 0 | J56: =IF(J52=Hold,SUM('Cash Flows'!$F$126:J$126)*-1,0) -> 0 | K56: =IF(K52=Hold,SUM('Cash Flows'!$F$126:K$126)*-1,0) -> 0 | L56: =IF(L52=Hold,SUM('Cash Flows'!$F$126:L$126)*-1,0) -> 0 | M56: =IF(M52=Hold,SUM('Cash Flows'!$F$126:M$126)*-1,0) -> 0 | N56: =IF(N52=Hold,SUM('Cash Flows'!$F$126:N$126)*-1,0) -> 0 | O56: =IF(O52=Hold,SUM('Cash Flows'!$F$126:O$126)*-1,0) -> -371763.0281
B57: Adjusted Basis at Sale | F57: =SUM(F54:F56) -> 0 | G57: =SUM(G54:G56) -> 0 | H57: 0 | I57: 0 | J57: 0 | K57: 0 | L57: 0 | M57: 0 | N57: 0 | O57: 12659250.97
B59: Capital Gain Calculation
B60: Sale Price | F60: =F10 -> 0 | G60: 0 | H60: 0 | I60: 0 | J60: 0 | K60: 0 | L60: 0 | M60: 0 | N60: 0 | O60: 19510064.3
B61: Less Cost of Sale | F61: =F11 -> 0 | G61: 0 | H61: 0 | I61: 0 | J61: 0 | K61: 0 | L61: 0 | M61: 0 | N61: 0 | O61: -97550.32149
B62: Less Adjusted Basis at Sale | F62: =IF(F52=Hold,SUM($F$57:F57)*-1,0) -> 0 | G62: =IF(G52=Hold,SUM($F$57:G57)*-1,0) -> 0 | H62: =IF(H52=Hold,SUM($F$57:H57)*-1,0) -> 0 | I62: =IF(I52=Hold,SUM($F$57:I57)*-1,0) -> 0 | J62: =IF(J52=Hold,SUM($F$57:J57)*-1,0) -> 0 | K62: =IF(K52=Hold,SUM($F$57:K57)*-1,0) -> 0 | L62: =IF(L52=Hold,SUM($F$57:L57)*-1,0) -> 0 | M62: =IF(M52=Hold,SUM($F$57:M57)*-1,0) -> 0 | N62: =IF(N52=Hold,SUM($F$57:N57)*-1,0) -> 0 | O62: =IF(O52=Hold,SUM($F$57:O57)*-1,0) -> -12659250.97
B63: Gain (Loss) | F63: =SUM(F60:F62) -> 0 | G63: =SUM(G60:G62) -> 0 | H63: 0 | I63: 0 | J63: 0 | K63: 0 | L63: 0 | M63: 0 | N63: 0 | O63: 6753263.004
B64: Straight Line Cost Recovery (Limited to Gain) | F64: =IF(F63<=0,0,IF(F63<SUM($F$56:F56)*-1,F63,SUM($F$56:F56)*-1)) -> 0 | G64: =IF(G63<=0,0,IF(G63<SUM($F$56:G56)*-1,G63,SUM($F$56:G56)*-1)) -> 0 | H64: =IF(H63<=0,0,IF(H63<SUM($F$56:H56)*-1,H63,SUM($F$56:H56)*-1)) -> 0 | I64: =IF(I63<=0,0,IF(I63<SUM($F$56:I56)*-1,I63,SUM($F$56:I56)*-1)) -> 0 | J64: =IF(J63<=0,0,IF(J63<SUM($F$56:J56)*-1,J63,SUM($F$56:J56)*-1)) -> 0 | K64: =IF(K63<=0,0,IF(K63<SUM($F$56:K56)*-1,K63,SUM($F$56:K56)*-1)) -> 0 | L64: =IF(L63<=0,0,IF(L63<SUM($F$56:L56)*-1,L63,SUM($F$56:L56)*-1)) -> 0 | M64: =IF(M63<=0,0,IF(M63<SUM($F$56:M56)*-1,M63,SUM($F$56:M56)*-1)) -> 0 | N64: =IF(N63<=0,0,IF(N63<SUM($F$56:N56)*-1,N63,SUM($F$56:N56)*-1)) -> 0 | O64: =IF(O63<=0,0,IF(O63<SUM($F$56:O56)*-1,O63,SUM($F$56:O56)*-1)) -> 371763.0281
B65: Capital Gain from Appreciation | F65: =IF(F63<=0,0,F63-F64) -> 0 | G65: =IF(G63<=0,0,G63-G64) -> 0 | H65: 0 | I65: 0 | J65: 0 | K65: 0 | L65: 0 | M65: 0 | N65: 0 | O65: 6381499.976
B66: Unamortized Loan Fees (Costs) | F66: =IF(F52=Hold,SUM('Cash Flows'!G$127:$P$127)*-1,0) -> 0 | G66: =IF(G52=Hold,SUM('Cash Flows'!H$127:$P$127)*-1,0) -> 0 | H66: =IF(H52=Hold,SUM('Cash Flows'!I$127:$P$127)*-1,0) -> 0 | I66: =IF(I52=Hold,SUM('Cash Flows'!J$127:$P$127)*-1,0) -> 0 | J66: =IF(J52=Hold,SUM('Cash Flows'!K$127:$P$127)*-1,0) -> 0 | K66: =IF(K52=Hold,SUM('Cash Flows'!L$127:$P$127)*-1,0) -> 0 | L66: =IF(L52=Hold,SUM('Cash Flows'!M$127:$P$127)*-1,0) -> 0 | M66: =IF(M52=Hold,SUM('Cash Flows'!N$127:$P$127)*-1,0) -> 0 | N66: =IF(N52=Hold,SUM('Cash Flows'!O$127:$P$127)*-1,0) -> 0 | O66: =IF(O52=Hold,SUM('Cash Flows'!P$127:$P$127)*-1,0) -> 0
B68: Sale Proceeds Calculation
B69: Sale Price | F69: =F60 -> 0 | G69: =G60 -> 0 | H69: 0 | I69: 0 | J69: 0 | K69: 0 | L69: 0 | M69: 0 | N69: 0 | O69: 19510064.3
B70: Less Cost of Sale | F70: =F61 -> 0 | G70: =G61 -> 0 | H70: 0 | I70: 0 | J70: 0 | K70: 0 | L70: 0 | M70: 0 | N70: 0 | O70: -97550.32149
B71: Less Mortgage Exit Fee | F71: =F72*Loan_Exit_Fee -> 0 | G71: 0 | H71: 0 | I71: 0 | J71: 0 | K71: 0 | L71: 0 | M71: 0 | N71: 0 | O71: 0
B72: Less Mortgage Balance | F72: =F35 -> 0 | G72: 0 | H72: 0 | I72: 0 | J72: 0 | K72: 0 | L72: 0 | M72: 0 | N72: 0 | O72: -7827349.098
B73: Sale Proceeds Before Tax | F73: =SUM(F69:F72) -> 0 | G73: =SUM(G69:G72) -> 0 | H73: 0 | I73: 0 | J73: 0 | K73: 0 | L73: 0 | M73: 0 | N73: 0 | O73: 11585164.88
B74: ="Less Tax on Ordinary Income at "&ROUND(Tax_Ordinary*100,0)&"%" -> Less Tax on Ordinary Income at 35% | F74: =-F66*Tax_Ordinary -> 0 | G74: 0 | H74: 0 | I74: 0 | J74: 0 | K74: 0 | L74: 0 | M74: 0 | N74: 0 | O74: 0
B75: ="Less Tax on Cost Recovery Recapture at "&ROUND(Tax_CR*100,0)&"%" -> Less Tax on Cost Recovery Recapture at 25% | F75: =-F64*Tax_CR -> 0 | G75: 0 | H75: 0 | I75: 0 | J75: 0 | K75: 0 | L75: 0 | M75: 0 | N75: 0 | O75: -92940.75703
B76: ="Less Tax on Capital Gain at "&ROUND(Tax_CG*100,0)&"%" -> Less Tax on Capital Gain at 20% | F76: =-F65*Tax_CG -> 0 | G76: 0 | H76: 0 | I76: 0 | J76: 0 | K76: 0 | L76: 0 | M76: 0 | N76: 0 | O76: -1276299.995
B77: Sale Proceeds After Tax | F77: =SUM(F73:F76) -> 0 | G77: =SUM(G73:G76) -> 0 | H77: 0 | I77: 0 | J77: 0 | K77: 0 | L77: 0 | M77: 0 | N77: 0 | O77: 10215924.13
B79: Proceeds After Taxes
B80: Cash Flow Before Taxes | F80: =IF(F$52<=Hold,'Cash Flows'!F$121,0) -> 294389.7051 | G80: =IF(G$52<=Hold,'Cash Flows'!G$121,0) -> 322698.4793 | H80: =IF(H$52<=Hold,'Cash Flows'!H$121,0) -> 351856.5168 | I80: =IF(I$52<=Hold,'Cash Flows'!I$121,0) -> 381889.2954 | J80: =IF(J$52<=Hold,'Cash Flows'!J$121,0) -> 412823.0573 | K80: =IF(K$52<=Hold,'Cash Flows'!K$121,0) -> 444684.8321 | L80: =IF(L$52<=Hold,'Cash Flows'!L$121,0) -> 477502.4602 | M80: =IF(M$52<=Hold,'Cash Flows'!M$121,0) -> 511304.6171 | N80: =IF(N$52<=Hold,'Cash Flows'!N$121,0) -> 546120.8387 | O80: =IF(O$52<=Hold,'Cash Flows'!O$121,0) -> 1131981.547
B81: Less: Annual Operating Tax Liability | F81: =IF(F$52<=Hold,'Cash Flows'!F$129,0) -> -164893.3 | G81: =IF(G$52<=Hold,'Cash Flows'!G$129,0) -> -173370.9223 | H81: =IF(H$52<=Hold,'Cash Flows'!H$129,0) -> -186227.7801 | I81: =IF(I$52<=Hold,'Cash Flows'!I$129,0) -> -199512.6088 | J81: =IF(J$52<=Hold,'Cash Flows'!J$129,0) -> -213240.1892 | K81: =IF(K$52<=Hold,'Cash Flows'!K$129,0) -> -227425.8347 | L81: =IF(L$52<=Hold,'Cash Flows'!L$129,0) -> -242085.4113 | M81: =IF(M$52<=Hold,'Cash Flows'!M$129,0) -> -257235.3588 | N81: =IF(N$52<=Hold,'Cash Flows'!N$129,0) -> -272892.7121 | O81: =IF(O$52<=Hold,'Cash Flows'!O$129,0) -> -289620.0148
B82: Draw from Operating Reserve | F82: =IF(F$52<=Hold,'Cash Flows'!F$131,0) -> 0 | G82: =IF(G$52<=Hold,'Cash Flows'!G$131,0) -> 0 | H82: =IF(H$52<=Hold,'Cash Flows'!H$131,0) -> 0 | I82: =IF(I$52<=Hold,'Cash Flows'!I$131,0) -> 0 | J82: =IF(J$52<=Hold,'Cash Flows'!J$131,0) -> 0 | K82: =IF(K$52<=Hold,'Cash Flows'!K$131,0) -> 0 | L82: =IF(L$52<=Hold,'Cash Flows'!L$131,0) -> 0 | M82: =IF(M$52<=Hold,'Cash Flows'!M$131,0) -> 0 | N82: =IF(N$52<=Hold,'Cash Flows'!N$131,0) -> 0 | O82: =IF(O$52<=Hold,'Cash Flows'!O$131,0) -> 0
B83: Cash Flow After Taxes | F83: =SUM(F80:F82) -> 129496.4051 | G83: =SUM(G80:G82) -> 149327.557 | H83: 165628.7366 | I83: 182376.6865 | J83: 199582.8681 | K83: 217258.9974 | L83: 235417.0488 | M83: 254069.2582 | N83: 273228.1265 | O83: 842361.5321
B84: Sale Proceeds After Taxes | F84: =F77 -> 0 | G84: =G77 -> 0 | H84: 0 | I84: 0 | J84: 0 | K84: 0 | L84: 0 | M84: 0 | N84: 0 | O84: 10215924.13
B85: Annual Proceeds After Taxes | E85: =-Equity_Amount -> -3355486.105 | F85: =SUM(F83:F84) -> 129496.4051 | G85: =SUM(G83:G84) -> 149327.557 | H85: 165628.7366 | I85: 182376.6865 | J85: 199582.8681 | K85: 217258.9974 | L85: 235417.0488 | M85: 254069.2582 | N85: 273228.1265 | O85: 11058285.66
B86: Cash on Cash Return | F86: =IFERROR(F83/Equity_Amount,"-") -> 0.03859244266 | G86: 0.04450251091 | H86: 0.0493605789 | I86: 0.0543517931 | J86: 0.05947956923 | K86: 0.06474739892 | L86: 0.07015885075 | M86: 0.07571757125 | N86: 0.08142728594 | O86: 0.2510400895
B88: Net Cash Flows | C88: =SUM(E85:O85) -> 9509185.237
B89: ="Net Present Value at "&ROUND(Equity_Rate*100,2)&"%" -> Net Present Value at 10% | C89: =SUM(E85,NPV(Equity_Rate,F85:O85)) -> 1999871.034
B90: Effective Tax Rate | C90: =IFERROR(IF(C42=0,0,(C42-C91)/C42),"-") -> 0.2405505225
B91: After Tax Leveraged IRR | C91: =IFERROR(IRR(E85:O85),"-") -> 0.1599011558
B92: Avg. Operating Cash on Cash | C92: =IFERROR((SUM(F83:O83)/Hold)/Equity_Amount,"-") -> 0.07893780912
B93: Avg. Cash on Cash | C93: =IFERROR((SUM(F85:O85)/Hold)/Equity_Amount,"-") -> 0.3833921804
B94: ="Present Value of Cash Flows at "&ROUND(Equity_Rate*100,0)&"%" -> Present Value of Cash Flows at 10% | C94: =NPV(Equity_Rate,F85:O85) -> 5355357.139
B95: Plus: Original Loan Amount | C95: =Loan_Amount -> 9773260.5
B96: Total After Tax Leveraged Present Value | C96: =SUM(C94:C95) -> 15128617.64
B97: =IF(LEN(C97)>=7,"Rounded ($10,000's)","Rounded ($1,000's)") -> Rounded ($10,000's) | C97: =IF(LEN(INT(C96))>=7,ROUND(C96,-4),ROUND(C96,-3)) -> 15130000
B98: =IF(Property_Use="Commercial","Per Square Feet","Per Unit") -> Per Unit | C98: =IFERROR(C97/Size_Total,0) -> 75650
B102: www.realpropmetrics.com
B103: ="Version: "&Version -> Version: 9.42 M | © 2022
B104: =TODAY() -> 2022-02-23
B105: This pro forma does not constitute tax advice. Please consult a professional tax advisor.

Sheet Loan Amortization
B3: Loan Amortization Schedule
C5: Interest Only Loan | H5: Amortizing Loan
C6: Loan Amount | D6: =IF(Loan_IO_Approval="no","-",Loan_Amount) -> - | H6: Loan Amount | I6: =Loan_Amount_Amortizing -> 9773260.5
C7: Term | D7: =IF(Loan_IO_Approval="no","-",Loan_IO_Term) -> - | H7: Term | I7: =Loan_Amor_Term -> 120
C8: Rate | D8: =IF(Loan_IO_Approval="no","-",Loan_IO_Rate) -> - | H8: Amortization | I8: =Loan_Amortization -> 360
C9: Funding Status | D9: =IF(Loan_IO_Approval="no","-",IF(Loan_IO_Status=0,"Fund Up (Default)",Loan_IO_Status)) -> - | H9: Rate | I9: =Loan_Amor_Rate -> 0.045
H10: Rate Type | I10: =Loan_Amor_Type -> Fixed
B12: Annual Summary
B13: Period | C13: Dates | D13: Loan Type | E13: Effective Rate | F13: Beginning Balance | G13: Interest | H13: Principal | I13: Total Payments | J13: Ending Balance | L13: IO Interest Due | M13: I/O Interest Due | N13: Spent | O13: Ending Budget
B14: 1 | C14: =RPMDateSpan(B14,1) -> Jan 22 - Dec 22 | D14: =IFERROR(RPMAnnualLoanType(B14),"Enable Macros") -> Amortizing | E14: =IFERROR(RPMAnnualRate(B14,D14,F14,I14,J14),"Enable Macros") -> 0.045 | F14: =VLOOKUP((B14*12)-11,Amortization_Schedule_Monthly,5,FALSE) -> 9773260.5 | G14: =SUM(OFFSET($G$51:$G$62,(B14-1)*12,0)) -> 436571.2559 | H14: =SUM(OFFSET($H$51:$H$62,(B14-1)*12,0)) -> 157664.847 | I14: =SUM(G14:H14) -> 594236.1029 | J14: =VLOOKUP(B14*12,Amortization_Schedule_Monthly,9,FALSE) -> 9615595.653 | L14: =SUM(IF(B14>Hold,0,IF($B$51:$B$170>($B14-1)*12,IF($B$51:$B$170<=$B14*12,IF($D$51:$D$170="I/O",$G$51:$G$170,0),0),0))) -> 0 | M14: =Loan_IO_IntCarry -> 100000 | N14: =IF(M14>=L14,L14,M14)*-1 -> 0 | O14: =SUM(M14:N14) -> 100000
B15: 2 | C15: =RPMDateSpan(B15,1) -> Jan 23 - Dec 23 | D15: =IFERROR(RPMAnnualLoanType(B15),"Enable Macros") -> Amortizing | E15: =IFERROR(RPMAnnualRate(B15,D15,F15,I15,J15),"Enable Macros") -> 0.045 | F15: 9615595.653 | G15: =SUM(OFFSET($G$51:$G$62,(B15-1)*12,0)) -> 429328.1604 | H15: =SUM(OFFSET($H$51:$H$62,(B15-1)*12,0)) -> 164907.9425 | I15: =SUM(G15:H15) -> 594236.1029 | J15: 9450687.71 | L15: =SUM(IF(B15>Hold,0,IF($B$51:$B$170>($B15-1)*12,IF($B$51:$B$170<=$B15*12,IF($D$51:$D$170="I/O",$G$51:$G$170,0),0),0))) -> 0 | M15: =O14 -> 100000 | N15: =IF(M15>=L15,L15,M15)*-1 -> 0 | O15: =SUM(M15:N15) -> 100000
B16: 3 | C16: Jan 24 - Dec 24 | D16: =IFERROR(RPMAnnualLoanType(B16),"Enable Macros") -> Amortizing | E16: =IFERROR(RPMAnnualRate(B16,D16,F16,I16,J16),"Enable Macros") -> 0.045 | F16: 9450687.71 | G16: 421752.3184 | H16: 172483.7845 | I16: 594236.1029 | J16: 9278203.926 | L16: =SUM(IF(B16>Hold,0,IF($B$51:$B$170>($B16-1)*12,IF($B$51:$B$170<=$B16*12,IF($D$51:$D$170="I/O",$G$51:$G$170,0),0),0))) -> 0 | M16: =O15 -> 100000 | N16: =IF(M16>=L16,L16,M16)*-1 -> 0 | O16: =SUM(M16:N16) -> 100000
B17: 4 | C17: Jan 25 - Dec 25 | D17: =IFERROR(RPMAnnualLoanType(B17),"Enable Macros") -> Amortizing | E17: =IFERROR(RPMAnnualRate(B17,D17,F17,I17,J17),"Enable Macros") -> 0.045 | F17: 9278203.926 | G17: 413828.4435 | H17: 180407.6594 | I17: 594236.1029 | J17: 9097796.266 | L17: =SUM(IF(B17>Hold,0,IF($B$51:$B$170>($B17-1)*12,IF($B$51:$B$170<=$B17*12,IF($D$51:$D$170="I/O",$G$51:$G$170,0),0),0))) -> 0 | M17: 100000 | N17: 0 | O17: 100000
B18: 5 | C18: Jan 26 - Dec 26 | D18: =IFERROR(RPMAnnualLoanType(B18),"Enable Macros") -> Amortizing | E18: =IFERROR(RPMAnnualRate(B18,D18,F18,I18,J18),"Enable Macros") -> 0.045 | F18: 9097796.266 | G18: 405540.5472 | H18: 188695.5557 | I18: 594236.1029 | J18: 8909100.711 | L18: =SUM(IF(B18>Hold,0,IF($B$51:$B$170>($B18-1)*12,IF($B$51:$B$170<=$B18*12,IF($D$51:$D$170="I/O",$G$51:$G$170,0),0),0))) -> 0 | M18: 100000 | N18: 0 | O18: 100000
B19: 6 | C19: Jan 27 - Dec 27 | D19: =IFERROR(RPMAnnualLoanType(B19),"Enable Macros") -> Amortizing | E19: =IFERROR(RPMAnnualRate(B19,D19,F19,I19,J19),"Enable Macros") -> 0.045 | F19: 8909100.711 | G19: 396871.9064 | H19: 197364.1966 | I19: 594236.1029 | J19: 8711736.514 | L19: =SUM(IF(B19>Hold,0,IF($B$51:$B$170>($B19-1)*12,IF($B$51:$B$170<=$B19*12,IF($D$51:$D$170="I/O",$G$51:$G$170,0),0),0))) -> 0 | M19: 100000 | N19: 0 | O19: 100000
B20: 7 | C20: Jan 28 - Dec 28 | D20: =IFERROR(RPMAnnualLoanType(B20),"Enable Macros") -> Amortizing | E20: =IFERROR(RPMAnnualRate(B20,D20,F20,I20,J20),"Enable Macros") -> 0.045 | F20: 8711736.514 | G20: 387805.0297 | H20: 206431.0732 | I20: 594236.1029 | J20: 8505305.441 | L20: =SUM(IF(B20>Hold,0,IF($B$51:$B$170>($B20-1)*12,IF($B$51:$B$170<=$B20*12,IF($D$51:$D$170="I/O",$G$51:$G$170,0),0),0))) -> 0 | M20: 100000 | N20: 0 | O20: 100000
B21: 8 | C21: Jan 29 - Dec 29 | D21: =IFERROR(RPMAnnualLoanType(B21),"Enable Macros") -> Amortizing | E21: =IFERROR(RPMAnnualRate(B21,D21,F21,I21,J21),"Enable Macros") -> 0.045 | F21: 8505305.441 | G21: 378321.6223 | H21: 215914.4806 | I21: 594236.1029 | J21: 8289390.96 | L21: =SUM(IF(B21>Hold,0,IF($B$51:$B$170>($B21-1)*12,IF($B$51:$B$170<=$B21*12,IF($D$51:$D$170="I/O",$G$51:$G$170,0),0),0))) -> 0 | M21: 100000 | N21: 0 | O21: 100000
B22: 9 | C22: Jan 30 - Dec 30 | D22: =IFERROR(RPMAnnualLoanType(B22),"Enable Macros") -> Amortizing | E22: =IFERROR(RPMAnnualRate(B22,D22,F22,I22,J22),"Enable Macros") -> 0.045 | F22: 8289390.96 | G22: 368402.5489 | H22: 225833.5541 | I22: 594236.1029 | J22: 8063557.406 | L22: =SUM(IF(B22>Hold,0,IF($B$51:$B$170>($B22-1)*12,IF($B$51:$B$170<=$B22*12,IF($D$51:$D$170="I/O",$G$51:$G$170,0),0),0))) -> 0 | M22: 100000 | N22: 0 | O22: 100000
B23: 10 | C23: Jan 31 - Dec 31 | D23: =IFERROR(RPMAnnualLoanType(B23),"Enable Macros") -> Amortizing | E23: =IFERROR(RPMAnnualRate(B23,D23,F23,I23,J23),"Enable Macros") -> 0.045 | F23: 8063557.406 | G23: 358027.7949 | H23: 236208.308 | I23: 594236.1029 | J23: 7827349.098 | L23: =SUM(IF(B23>Hold,0,IF($B$51:$B$170>($B23-1)*12,IF($B$51:$B$170<=$B23*12,IF($D$51:$D$170="I/O",$G$51:$G$170,0),0),0))) -> 0 | M23: 100000 | N23: 0 | O23: 100000
B24: Total | E24: =IFERROR(RATE(Hold*12,-I24/(Hold*12),Loan_Amount,-VLOOKUP(Hold,Amortization_Schedule_Annual,9,FALSE))*12,"-") -> 0.045 | F24: - | G24: =SUBTOTAL(109,G14:G23) -> 3996449.628 | H24: =SUBTOTAL(109,H14:H23) -> 1945911.402 | I24: =SUBTOTAL(109,I14:I23) -> 5942361.029 | J24: -
I44: www.realpropmetrics.com
I45: ="Version: "&Version -> Version: 9.42 M | © 2022
I46: =TODAY() -> 2022-02-23
B49: Monthly Summary
B50: Month | C50: Date | D50: Loan Type | E50: Interest Rate | F50: Beginning Balance | G50: Interest | H50: Principal | I50: Total Payment | J50: Ending Balance
B51: 1 | C51: =RPMDateSpan(B51,3) -> Jan 2022 | D51: =IFERROR(RPMLoanType(B51),"Enable Macros") -> Amortizing | E51: =IFERROR(RPMInterestRate(B51),"Enable Macros") -> 0.045 | F51: =IFERROR(RPMBeginningBalance(B51,D51),"Enable Macros") -> 9773260.5 | G51: =F51*(RPMCanadian(D51,E51)/12) -> 36649.72688 | H51: =I51-G51 -> 12869.94837 | I51: =IFERROR(RPMTotalPayment(B51,D51,E51,F51),"Enable Macros") -> 49519.67524 | J51: =IF(B51<=SUM(Loan_Amortization,Loan_IO_Term),F51-H51,0) -> 9760390.552
B52: 2 | C52: =RPMDateSpan(B52,3) -> Feb 2022 | D52: =IFERROR(RPMLoanType(B52),"Enable Macros") -> Amortizing | E52: =IFERROR(RPMInterestRate(B52),"Enable Macros") -> 0.045 | F52: =RPMBeginningBalance(B52,D52,J51) -> 9760390.552 | G52: =F52*(RPMCanadian(D52,E52)/12) -> 36601.46457 | H52: =I52-G52 -> 12918.21068 | I52: =IFERROR(RPMTotalPayment(B52,D52,E52,F52),"Enable Macros") -> 49519.67524 | J52: 9747472.341
B53: 3 | C53: Mar 2022 | D53: =IFERROR(RPMLoanType(B53),"Enable Macros") -> Amortizing | E53: =IFERROR(RPMInterestRate(B53),"Enable Macros") -> 0.045 | F53: =RPMBeginningBalance(B53,D53,J52) -> 9747472.341 | G53: 36553.02128 | H53: 12966.65397 | I53: =IFERROR(RPMTotalPayment(B53,D53,E53,F53),"Enable Macros") -> 49519.67524 | J53: 9734505.687
B54: 4 | C54: Apr 2022 | D54: =IFERROR(RPMLoanType(B54),"Enable Macros") -> Amortizing | E54: =IFERROR(RPMInterestRate(B54),"Enable Macros") -> 0.045 | F54: =RPMBeginningBalance(B54,D54,J53) -> 9734505.687 | G54: 36504.39633 | H54: 13015.27892 | I54: =IFERROR(RPMTotalPayment(B54,D54,E54,F54),"Enable Macros") -> 49519.67524 | J54: 9721490.408
B55: 5 | C55: May 2022 | D55: =IFERROR(RPMLoanType(B55),"Enable Macros") -> Amortizing | E55: =IFERROR(RPMInterestRate(B55),"Enable Macros") -> 0.045 | F55: =RPMBeginningBalance(B55,D55,J54) -> 9721490.408 | G55: 36455.58903 | H55: 13064.08621 | I55: =IFERROR(RPMTotalPayment(B55,D55,E55,F55),"Enable Macros") -> 49519.67524 | J55: 9708426.322
B56: 6 | C56: Jun 2022 | D56: =IFERROR(RPMLoanType(B56),"Enable Macros") -> Amortizing | E56: =IFERROR(RPMInterestRate(B56),"Enable Macros") -> 0.045 | F56: =RPMBeginningBalance(B56,D56,J55) -> 9708426.322 | G56: 36406.59871 | H56: 13113.07654 | I56: =IFERROR(RPMTotalPayment(B56,D56,E56,F56),"Enable Macros") -> 49519.67524 | J56: 9695313.245
B57: 7 | C57: Jul 2022 | D57: =IFERROR(RPMLoanType(B57),"Enable Macros") -> Amortizing | E57: =IFERROR(RPMInterestRate(B57),"Enable Macros") -> 0.045 | F57: =RPMBeginningBalance(B57,D57,J56) -> 9695313.245 | G57: 36357.42467 | H57: 13162.25057 | I57: =IFERROR(RPMTotalPayment(B57,D57,E57,F57),"Enable Macros") -> 49519.67524 | J57: 9682150.995
B58: 8 | C58: Aug 2022 | D58: =IFERROR(RPMLoanType(B58),"Enable Macros") -> Amortizing | E58: =IFERROR(RPMInterestRate(B58),"Enable Macros") -> 0.045 | F58: =RPMBeginningBalance(B58,D58,J57) -> 9682150.995 | G58: 36308.06623 | H58: 13211.60901 | I58: =IFERROR(RPMTotalPayment(B58,D58,E58,F58),"Enable Macros") -> 49519.67524 | J58: 9668939.386
B59: 9 | C59: Sep 2022 | D59: =IFERROR(RPMLoanType(B59),"Enable Macros") -> Amortizing | E59: =IFERROR(RPMInterestRate(B59),"Enable Macros") -> 0.045 | F59: =RPMBeginningBalance(B59,D59,J58) -> 9668939.386 | G59: 36258.5227 | H59: 13261.15255 | I59: =IFERROR(RPMTotalPayment(B59,D59,E59,F59),"Enable Macros") -> 49519.67524 | J59: 9655678.233
B60: 10 | C60: Oct 2022 | D60: =IFERROR(RPMLoanType(B60),"Enable Macros") -> Amortizing | E60: =IFERROR(RPMInterestRate(B60),"Enable Macros") -> 0.045 | F60: =RPMBeginningBalance(B60,D60,J59) -> 9655678.233 | G60: 36208.79337 | H60: 13310.88187 | I60: =IFERROR(RPMTotalPayment(B60,D60,E60,F60),"Enable Macros") -> 49519.67524 | J60: 9642367.351
B61: 11 | C61: Nov 2022 | D61: =IFERROR(RPMLoanType(B61),"Enable Macros") -> Amortizing | E61: =IFERROR(RPMInterestRate(B61),"Enable Macros") -> 0.045 | F61: =RPMBeginningBalance(B61,D61,J60) -> 9642367.351 | G61: 36158.87757 | H61: 13360.79768 | I61: =IFERROR(RPMTotalPayment(B61,D61,E61,F61),"Enable Macros") -> 49519.67524 | J61: 9629006.554
B62: 12 | C62: Dec 2022 | D62: =IFERROR(RPMLoanType(B62),"Enable Macros") -> Amortizing | E62: =IFERROR(RPMInterestRate(B62),"Enable Macros") -> 0.045 | F62: =RPMBeginningBalance(B62,D62,J61) -> 9629006.554 | G62: 36108.77458 | H62: 13410.90067 | I62: =IFERROR(RPMTotalPayment(B62,D62,E62,F62),"Enable Macros") -> 49519.67524 | J62: 9615595.653
B63: 13 | C63: Jan 2023 | D63: =IFERROR(RPMLoanType(B63),"Enable Macros") -> Amortizing | E63: =IFERROR(RPMInterestRate(B63),"Enable Macros") -> 0.045 | F63: =RPMBeginningBalance(B63,D63,J62) -> 9615595.653 | G63: 36058.4837 | H63: 13461.19155 | I63: =IFERROR(RPMTotalPayment(B63,D63,E63,F63),"Enable Macros") -> 49519.67524 | J63: 9602134.461
B64: 14 | C64: Feb 2023 | D64: =IFERROR(RPMLoanType(B64),"Enable Macros") -> Amortizing | E64: =IFERROR(RPMInterestRate(B64),"Enable Macros") -> 0.045 | F64: =RPMBeginningBalance(B64,D64,J63) -> 9602134.461 | G64: 36008.00423 | H64: 13511.67101 | I64: =IFERROR(RPMTotalPayment(B64,D64,E64,F64),"Enable Macros") -> 49519.67524 | J64: 9588622.79
B65: 15 | C65: Mar 2023 | D65: =IFERROR(RPMLoanType(B65),"Enable Macros") -> Amortizing | E65: =IFERROR(RPMInterestRate(B65),"Enable Macros") -> 0.045 | F65: =RPMBeginningBalance(B65,D65,J64) -> 9588622.79 | G65: 35957.33546 | H65: 13562.33978 | I65: =IFERROR(RPMTotalPayment(B65,D65,E65,F65),"Enable Macros") -> 49519.67524 | J65: 9575060.451
B66: 16 | C66: Apr 2023 | D66: =IFERROR(RPMLoanType(B66),"Enable Macros") -> Amortizing | E66: =IFERROR(RPMInterestRate(B66),"Enable Macros") -> 0.045 | F66: =RPMBeginningBalance(B66,D66,J65) -> 9575060.451 | G66: 35906.47669 | H66: 13613.19855 | I66: =IFERROR(RPMTotalPayment(B66,D66,E66,F66),"Enable Macros") -> 49519.67524 | J66: 9561447.252
B67: 17 | C67: May 2023 | D67: =IFERROR(RPMLoanType(B67),"Enable Macros") -> Amortizing | E67: =IFERROR(RPMInterestRate(B67),"Enable Macros") -> 0.045 | F67: =RPMBeginningBalance(B67,D67,J66) -> 9561447.252 | G67: 35855.4272 | H67: 13664.24805 | I67: =IFERROR(RPMTotalPayment(B67,D67,E67,F67),"Enable Macros") -> 49519.67524 | J67: 9547783.004
B68: 18 | C68: Jun 2023 | D68: =IFERROR(RPMLoanType(B68),"Enable Macros") -> Amortizing | E68: =IFERROR(RPMInterestRate(B68),"Enable Macros") -> 0.045 | F68: =RPMBeginningBalance(B68,D68,J67) -> 9547783.004 | G68: 35804.18627 | H68: 13715.48898 | I68: =IFERROR(RPMTotalPayment(B68,D68,E68,F68),"Enable Macros") -> 49519.67524 | J68: 9534067.515
B69: 19 | C69: Jul 2023 | D69: =IFERROR(RPMLoanType(B69),"Enable Macros") -> Amortizing | E69: =IFERROR(RPMInterestRate(B69),"Enable Macros") -> 0.045 | F69: =RPMBeginningBalance(B69,D69,J68) -> 9534067.515 | G69: 35752.75318 | H69: 13766.92206 | I69: =IFERROR(RPMTotalPayment(B69,D69,E69,F69),"Enable Macros") -> 49519.67524 | J69: 9520300.593
B70: 20 | C70: Aug 2023 | D70: =IFERROR(RPMLoanType(B70),"Enable Macros") -> Amortizing | E70: =IFERROR(RPMInterestRate(B70),"Enable Macros") -> 0.045 | F70: =RPMBeginningBalance(B70,D70,J69) -> 9520300.593 | G70: 35701.12722 | H70: 13818.54802 | I70: =IFERROR(RPMTotalPayment(B70,D70,E70,F70),"Enable Macros") -> 49519.67524 | J70: 9506482.045
B71: 21 | C71: Sep 2023 | D71: =IFERROR(RPMLoanType(B71),"Enable Macros") -> Amortizing | E71: =IFERROR(RPMInterestRate(B71),"Enable Macros") -> 0.045 | F71: =RPMBeginningBalance(B71,D71,J70) -> 9506482.045 | G71: 35649.30767 | H71: 13870.36758 | I71: =IFERROR(RPMTotalPayment(B71,D71,E71,F71),"Enable Macros") -> 49519.67524 | J71: 9492611.677
B72: 22 | C72: Oct 2023 | D72: =IFERROR(RPMLoanType(B72),"Enable Macros") -> Amortizing | E72: =IFERROR(RPMInterestRate(B72),"Enable Macros") -> 0.045 | F72: =RPMBeginningBalance(B72,D72,J71) -> 9492611.677 | G72: 35597.29379 | H72: 13922.38145 | I72: =IFERROR(RPMTotalPayment(B72,D72,E72,F72),"Enable Macros") -> 49519.67524 | J72: 9478689.296
B73: 23 | C73: Nov 2023 | D73: =IFERROR(RPMLoanType(B73),"Enable Macros") -> Amortizing | E73: =IFERROR(RPMInterestRate(B73),"Enable Macros") -> 0.045 | F73: =RPMBeginningBalance(B73,D73,J72) -> 9478689.296 | G73: 35545.08486 | H73: 13974.59038 | I73: =IFERROR(RPMTotalPayment(B73,D73,E73,F73),"Enable Macros") -> 49519.67524 | J73: 9464714.706
B74: 24 | C74: Dec 2023 | D74: =IFERROR(RPMLoanType(B74),"Enable Macros") -> Amortizing | E74: =IFERROR(RPMInterestRate(B74),"Enable Macros") -> 0.045 | F74: =RPMBeginningBalance(B74,D74,J73) -> 9464714.706 | G74: 35492.68015 | H74: 14026.9951 | I74: =IFERROR(RPMTotalPayment(B74,D74,E74,F74),"Enable Macros") -> 49519.67524 | J74: 9450687.71
B75: 25 | C75: Jan 2024 | D75: =IFERROR(RPMLoanType(B75),"Enable Macros") -> Amortizing | E75: =IFERROR(RPMInterestRate(B75),"Enable Macros") -> 0.045 | F75: =RPMBeginningBalance(B75,D75,J74) -> 9450687.71 | G75: 35440.07891 | H75: 14079.59633 | I75: =IFERROR(RPMTotalPayment(B75,D75,E75,F75),"Enable Macros") -> 49519.67524 | J75: 9436608.114
B76: 26 | C76: Feb 2024 | D76: =IFERROR(RPMLoanType(B76),"Enable Macros") -> Amortizing | E76: =IFERROR(RPMInterestRate(B76),"Enable Macros") -> 0.045 | F76: =RPMBeginningBalance(B76,D76,J75) -> 9436608.114 | G76: 35387.28043 | H76: 14132.39482 | I76: =IFERROR(RPMTotalPayment(B76,D76,E76,F76),"Enable Macros") -> 49519.67524 | J76: 9422475.719
B77: 27 | C77: Mar 2024 | D77: =IFERROR(RPMLoanType(B77),"Enable Macros") -> Amortizing | E77: =IFERROR(RPMInterestRate(B77),"Enable Macros") -> 0.045 | F77: =RPMBeginningBalance(B77,D77,J76) -> 9422475.719 | G77: 35334.28395 | H77: 14185.3913 | I77: =IFERROR(RPMTotalPayment(B77,D77,E77,F77),"Enable Macros") -> 49519.67524 | J77: 9408290.328
B78: 28 | C78: Apr 2024 | D78: =IFERROR(RPMLoanType(B78),"Enable Macros") -> Amortizing | E78: =IFERROR(RPMInterestRate(B78),"Enable Macros") -> 0.045 | F78: =RPMBeginningBalance(B78,D78,J77) -> 9408290.328 | G78: 35281.08873 | H78: 14238.58651 | I78: =IFERROR(RPMTotalPayment(B78,D78,E78,F78),"Enable Macros") -> 49519.67524 | J78: 9394051.741
B79: 29 | C79: May 2024 | D79: =IFERROR(RPMLoanType(B79),"Enable Macros") -> Amortizing | E79: =IFERROR(RPMInterestRate(B79),"Enable Macros") -> 0.045 | F79: =RPMBeginningBalance(B79,D79,J78) -> 9394051.741 | G79: 35227.69403 | H79: 14291.98121 | I79: =IFERROR(RPMTotalPayment(B79,D79,E79,F79),"Enable Macros") -> 49519.67524 | J79: 9379759.76
B80: 30 | C80: Jun 2024 | D80: =IFERROR(RPMLoanType(B80),"Enable Macros") -> Amortizing | E80: =IFERROR(RPMInterestRate(B80),"Enable Macros") -> 0.045 | F80: =RPMBeginningBalance(B80,D80,J79) -> 9379759.76 | G80: 35174.0991 | H80: 14345.57614 | I80: =IFERROR(RPMTotalPayment(B80,D80,E80,F80),"Enable Macros") -> 49519.67524 | J80: 9365414.184
B81: 31 | C81: Jul 2024 | D81: =IFERROR(RPMLoanType(B81),"Enable Macros") -> Amortizing | E81: =IFERROR(RPMInterestRate(B81),"Enable Macros") -> 0.045 | F81: =RPMBeginningBalance(B81,D81,J80) -> 9365414.184 | G81: 35120.30319 | H81: 14399.37205 | I81: =IFERROR(RPMTotalPayment(B81,D81,E81,F81),"Enable Macros") -> 49519.67524 | J81: 9351014.812
B82: 32 | C82: Aug 2024 | D82: =IFERROR(RPMLoanType(B82),"Enable Macros") -> Amortizing | E82: =IFERROR(RPMInterestRate(B82),"Enable Macros") -> 0.045 | F82: =RPMBeginningBalance(B82,D82,J81) -> 9351014.812 | G82: 35066.30555 | H82: 14453.3697 | I82: =IFERROR(RPMTotalPayment(B82,D82,E82,F82),"Enable Macros") -> 49519.67524 | J82: 9336561.442
B83: 33 | C83: Sep 2024 | D83: =IFERROR(RPMLoanType(B83),"Enable Macros") -> Amortizing | E83: =IFERROR(RPMInterestRate(B83),"Enable Macros") -> 0.045 | F83: =RPMBeginningBalance(B83,D83,J82) -> 9336561.442 | G83: 35012.10541 | H83: 14507.56984 | I83: =IFERROR(RPMTotalPayment(B83,D83,E83,F83),"Enable Macros") -> 49519.67524 | J83: =IF(B83<=SUM(Loan_Amortization,Loan_IO_Term),F83-H83,0) -> 9322053.873
B84: 34 | C84: Oct 2024 | D84: =IFERROR(RPMLoanType(B84),"Enable Macros") -> Amortizing | E84: =IFERROR(RPMInterestRate(B84),"Enable Macros") -> 0.045 | F84: =RPMBeginningBalance(B84,D84,J83) -> 9322053.873 | G84: 34957.70202 | H84: 14561.97322 | I84: =IFERROR(RPMTotalPayment(B84,D84,E84,F84),"Enable Macros") -> 49519.67524 | J84: 9307491.899
B85: 35 | C85: Nov 2024 | D85: =IFERROR(RPMLoanType(B85),"Enable Macros") -> Amortizing | E85: =IFERROR(RPMInterestRate(B85),"Enable Macros") -> 0.045 | F85: =RPMBeginningBalance(B85,D85,J84) -> 9307491.899 | G85: 34903.09462 | H85: 14616.58062 | I85: =IFERROR(RPMTotalPayment(B85,D85,E85,F85),"Enable Macros") -> 49519.67524 | J85: 9292875.319
B86: 36 | C86: Dec 2024 | D86: =IFERROR(RPMLoanType(B86),"Enable Macros") -> Amortizing | E86: =IFERROR(RPMInterestRate(B86),"Enable Macros") -> 0.045 | F86: =RPMBeginningBalance(B86,D86,J85) -> 9292875.319 | G86: 34848.28245 | H86: 14671.3928 | I86: =IFERROR(RPMTotalPayment(B86,D86,E86,F86),"Enable Macros") -> 49519.67524 | J86: 9278203.926
B87: 37 | C87: Jan 2025 | D87: =IFERROR(RPMLoanType(B87),"Enable Macros") -> Amortizing | E87: =IFERROR(RPMInterestRate(B87),"Enable Macros") -> 0.045 | F87: =RPMBeginningBalance(B87,D87,J86) -> 9278203.926 | G87: 34793.26472 | H87: 14726.41052 | I87: =IFERROR(RPMTotalPayment(B87,D87,E87,F87),"Enable Macros") -> 49519.67524 | J87: 9263477.515
B88: 38 | C88: Feb 2025 | D88: =IFERROR(RPMLoanType(B88),"Enable Macros") -> Amortizing | E88: =IFERROR(RPMInterestRate(B88),"Enable Macros") -> 0.045 | F88: =RPMBeginningBalance(B88,D88,J87) -> 9263477.515 | G88: 34738.04068 | H88: 14781.63456 | I88: =IFERROR(RPMTotalPayment(B88,D88,E88,F88),"Enable Macros") -> 49519.67524 | J88: 9248695.881
B89: 39 | C89: Mar 2025 | D89: =IFERROR(RPMLoanType(B89),"Enable Macros") -> Amortizing | E89: =IFERROR(RPMInterestRate(B89),"Enable Macros") -> 0.045 | F89: =RPMBeginningBalance(B89,D89,J88) -> 9248695.881 | G89: 34682.60955 | H89: 14837.06569 | I89: =IFERROR(RPMTotalPayment(B89,D89,E89,F89),"Enable Macros") -> 49519.67524 | J89: 9233858.815
B90: 40 | C90: Apr 2025 | D90: =IFERROR(RPMLoanType(B90),"Enable Macros") -> Amortizing | E90: =IFERROR(RPMInterestRate(B90),"Enable Macros") -> 0.045 | F90: =RPMBeginningBalance(B90,D90,J89) -> 9233858.815 | G90: 34626.97056 | H90: 14892.70469 | I90: =IFERROR(RPMTotalPayment(B90,D90,E90,F90),"Enable Macros") -> 49519.67524 | J90: 9218966.11
B91: 41 | C91: May 2025 | D91: =IFERROR(RPMLoanType(B91),"Enable Macros") -> Amortizing | E91: =IFERROR(RPMInterestRate(B91),"Enable Macros") -> 0.045 | F91: =RPMBeginningBalance(B91,D91,J90) -> 9218966.11 | G91: 34571.12291 | H91: 14948.55233 | I91: =IFERROR(RPMTotalPayment(B91,D91,E91,F91),"Enable Macros") -> 49519.67524 | J91: 9204017.558
B92: 42 | C92: Jun 2025 | D92: =IFERROR(RPMLoanType(B92),"Enable Macros") -> Amortizing | E92: =IFERROR(RPMInterestRate(B92),"Enable Macros") -> 0.045 | F92: =RPMBeginningBalance(B92,D92,J91) -> 9204017.558 | G92: 34515.06584 | H92: 15004.6094 | I92: =IFERROR(RPMTotalPayment(B92,D92,E92,F92),"Enable Macros") -> 49519.67524 | J92: 9189012.949
B93: 43 | C93: Jul 2025 | D93: =IFERROR(RPMLoanType(B93),"Enable Macros") -> Amortizing | E93: =IFERROR(RPMInterestRate(B93),"Enable Macros") -> 0.045 | F93: =RPMBeginningBalance(B93,D93,J92) -> 9189012.949 | G93: 34458.79856 | H93: 15060.87669 | I93: =IFERROR(RPMTotalPayment(B93,D93,E93,F93),"Enable Macros") -> 49519.67524 | J93: 9173952.072
B94: 44 | C94: Aug 2025 | D94: =IFERROR(RPMLoanType(B94),"Enable Macros") -> Amortizing | E94: =IFERROR(RPMInterestRate(B94),"Enable Macros") -> 0.045 | F94: =RPMBeginningBalance(B94,D94,J93) -> 9173952.072 | G94: 34402.32027 | H94: 15117.35497 | I94: =IFERROR(RPMTotalPayment(B94,D94,E94,F94),"Enable Macros") -> 49519.67524 | J94: 9158834.717
B95: 45 | C95: Sep 2025 | D95: =IFERROR(RPMLoanType(B95),"Enable Macros") -> Amortizing | E95: =IFERROR(RPMInterestRate(B95),"Enable Macros") -> 0.045 | F95: =RPMBeginningBalance(B95,D95,J94) -> 9158834.717 | G95: 34345.63019 | H95: 15174.04506 | I95: =IFERROR(RPMTotalPayment(B95,D95,E95,F95),"Enable Macros") -> 49519.67524 | J95: 9143660.672
B96: 46 | C96: Oct 2025 | D96: =IFERROR(RPMLoanType(B96),"Enable Macros") -> Amortizing | E96: =IFERROR(RPMInterestRate(B96),"Enable Macros") -> 0.045 | F96: =RPMBeginningBalance(B96,D96,J95) -> 9143660.672 | G96: 34288.72752 | H96: 15230.94772 | I96: =IFERROR(RPMTotalPayment(B96,D96,E96,F96),"Enable Macros") -> 49519.67524 | J96: 9128429.724
B97: 47 | C97: Nov 2025 | D97: =IFERROR(RPMLoanType(B97),"Enable Macros") -> Amortizing | E97: =IFERROR(RPMInterestRate(B97),"Enable Macros") -> 0.045 | F97: =RPMBeginningBalance(B97,D97,J96) -> 9128429.724 | G97: 34231.61147 | H97: 15288.06378 | I97: =IFERROR(RPMTotalPayment(B97,D97,E97,F97),"Enable Macros") -> 49519.67524 | J97: 9113141.66
B98: 48 | C98: Dec 2025 | D98: =IFERROR(RPMLoanType(B98),"Enable Macros") -> Amortizing | E98: =IFERROR(RPMInterestRate(B98),"Enable Macros") -> 0.045 | F98: =RPMBeginningBalance(B98,D98,J97) -> 9113141.66 | G98: 34174.28123 | H98: 15345.39402 | I98: =IFERROR(RPMTotalPayment(B98,D98,E98,F98),"Enable Macros") -> 49519.67524 | J98: 9097796.266
B99: 49 | C99: Jan 2026 | D99: =IFERROR(RPMLoanType(B99),"Enable Macros") -> Amortizing | E99: =IFERROR(RPMInterestRate(B99),"Enable Macros") -> 0.045 | F99: =RPMBeginningBalance(B99,D99,J98) -> 9097796.266 | G99: 34116.736 | H99: 15402.93925 | I99: =IFERROR(RPMTotalPayment(B99,D99,E99,F99),"Enable Macros") -> 49519.67524 | J99: 9082393.327
B100: 50 | C100: Feb 2026 | D100: =IFERROR(RPMLoanType(B100),"Enable Macros") -> Amortizing | E100: =IFERROR(RPMInterestRate(B100),"Enable Macros") -> 0.045 | F100: =RPMBeginningBalance(B100,D100,J99) -> 9082393.327 | G100: 34058.97498 | H100: 15460.70027 | I100: =IFERROR(RPMTotalPayment(B100,D100,E100,F100),"Enable Macros") -> 49519.67524 | J100: 9066932.627
B101: 51 | C101: Mar 2026 | D101: =IFERROR(RPMLoanType(B101),"Enable Macros") -> Amortizing | E101: =IFERROR(RPMInterestRate(B101),"Enable Macros") -> 0.045 | F101: =RPMBeginningBalance(B101,D101,J100) -> 9066932.627 | G101: 34000.99735 | H101: 15518.67789 | I101: =IFERROR(RPMTotalPayment(B101,D101,E101,F101),"Enable Macros") -> 49519.67524 | J101: 9051413.949
B102: 52 | C102: Apr 2026 | D102: =IFERROR(RPMLoanType(B102),"Enable Macros") -> Amortizing | E102: =IFERROR(RPMInterestRate(B102),"Enable Macros") -> 0.045 | F102: =RPMBeginningBalance(B102,D102,J101) -> 9051413.949 | G102: 33942.80231 | H102: 15576.87294 | I102: =IFERROR(RPMTotalPayment(B102,D102,E102,F102),"Enable Macros") -> 49519.67524 | J102: 9035837.076
B103: 53 | C103: May 2026 | D103: =IFERROR(RPMLoanType(B103),"Enable Macros") -> Amortizing | E103: =IFERROR(RPMInterestRate(B103),"Enable Macros") -> 0.045 | F103: =RPMBeginningBalance(B103,D103,J102) -> 9035837.076 | G103: 33884.38904 | H103: 15635.28621 | I103: =IFERROR(RPMTotalPayment(B103,D103,E103,F103),"Enable Macros") -> 49519.67524 | J103: 9020201.79
B104: 54 | C104: Jun 2026 | D104: =IFERROR(RPMLoanType(B104),"Enable Macros") -> Amortizing | E104: =IFERROR(RPMInterestRate(B104),"Enable Macros") -> 0.045 | F104: =RPMBeginningBalance(B104,D104,J103) -> 9020201.79 | G104: 33825.75671 | H104: 15693.91853 | I104: =IFERROR(RPMTotalPayment(B104,D104,E104,F104),"Enable Macros") -> 49519.67524 | J104: 9004507.871
B105: 55 | C105: Jul 2026 | D105: =IFERROR(RPMLoanType(B105),"Enable Macros") -> Amortizing | E105: =IFERROR(RPMInterestRate(B105),"Enable Macros") -> 0.045 | F105: =RPMBeginningBalance(B105,D105,J104) -> 9004507.871 | G105: 33766.90452 | H105: 15752.77073 | I105: =IFERROR(RPMTotalPayment(B105,D105,E105,F105),"Enable Macros") -> 49519.67524 | J105: 8988755.101
B106: 56 | C106: Aug 2026 | D106: =IFERROR(RPMLoanType(B106),"Enable Macros") -> Amortizing | E106: =IFERROR(RPMInterestRate(B106),"Enable Macros") -> 0.045 | F106: =RPMBeginningBalance(B106,D106,J105) -> 8988755.101 | G106: 33707.83163 | H106: 15811.84362 | I106: =IFERROR(RPMTotalPayment(B106,D106,E106,F106),"Enable Macros") -> 49519.67524 | J106: 8972943.257
B107: 57 | C107: Sep 2026 | D107: =IFERROR(RPMLoanType(B107),"Enable Macros") -> Amortizing | E107: =IFERROR(RPMInterestRate(B107),"Enable Macros") -> 0.045 | F107: =RPMBeginningBalance(B107,D107,J106) -> 8972943.257 | G107: 33648.53721 | H107: 15871.13803 | I107: =IFERROR(RPMTotalPayment(B107,D107,E107,F107),"Enable Macros") -> 49519.67524 | J107: 8957072.119
B108: 58 | C108: Oct 2026 | D108: =IFERROR(RPMLoanType(B108),"Enable Macros") -> Amortizing | E108: =IFERROR(RPMInterestRate(B108),"Enable Macros") -> 0.045 | F108: =RPMBeginningBalance(B108,D108,J107) -> 8957072.119 | G108: 33589.02045 | H108: 15930.6548 | I108: =IFERROR(RPMTotalPayment(B108,D108,E108,F108),"Enable Macros") -> 49519.67524 | J108: 8941141.464
B109: 59 | C109: Nov 2026 | D109: =IFERROR(RPMLoanType(B109),"Enable Macros") -> Amortizing | E109: =IFERROR(RPMInterestRate(B109),"Enable Macros") -> 0.045 | F109: =RPMBeginningBalance(B109,D109,J108) -> 8941141.464 | G109: 33529.28049 | H109: 15990.39475 | I109: =IFERROR(RPMTotalPayment(B109,D109,E109,F109),"Enable Macros") -> 49519.67524 | J109: 8925151.069
B110: 60 | C110: Dec 2026 | D110: =IFERROR(RPMLoanType(B110),"Enable Macros") -> Amortizing | E110: =IFERROR(RPMInterestRate(B110),"Enable Macros") -> 0.045 | F110: =RPMBeginningBalance(B110,D110,J109) -> 8925151.069 | G110: 33469.31651 | H110: 16050.35873 | I110: =IFERROR(RPMTotalPayment(B110,D110,E110,F110),"Enable Macros") -> 49519.67524 | J110: 8909100.711
B111: 61 | C111: Jan 2027 | D111: =IFERROR(RPMLoanType(B111),"Enable Macros") -> Amortizing | E111: =IFERROR(RPMInterestRate(B111),"Enable Macros") -> 0.045 | F111: =RPMBeginningBalance(B111,D111,J110) -> 8909100.711 | G111: 33409.12767 | H111: 16110.54758 | I111: =IFERROR(RPMTotalPayment(B111,D111,E111,F111),"Enable Macros") -> 49519.67524 | J111: 8892990.163
B112: 62 | C112: Feb 2027 | D112: =IFERROR(RPMLoanType(B112),"Enable Macros") -> Amortizing | E112: =IFERROR(RPMInterestRate(B112),"Enable Macros") -> 0.045 | F112: =RPMBeginningBalance(B112,D112,J111) -> 8892990.163 | G112: 33348.71311 | H112: 16170.96213 | I112: =IFERROR(RPMTotalPayment(B112,D112,E112,F112),"Enable Macros") -> 49519.67524 | J112: 8876819.201
B113: 63 | C113: Mar 2027 | D113: =IFERROR(RPMLoanType(B113),"Enable Macros") -> Amortizing | E113: =IFERROR(RPMInterestRate(B113),"Enable Macros") -> 0.045 | F113: =RPMBeginningBalance(B113,D113,J112) -> 8876819.201 | G113: 33288.072 | H113: 16231.60324 | I113: =IFERROR(RPMTotalPayment(B113,D113,E113,F113),"Enable Macros") -> 49519.67524 | J113: 8860587.598
B114: 64 | C114: Apr 2027 | D114: =IFERROR(RPMLoanType(B114),"Enable Macros") -> Amortizing | E114: =IFERROR(RPMInterestRate(B114),"Enable Macros") -> 0.045 | F114: =RPMBeginningBalance(B114,D114,J113) -> 8860587.598 | G114: 33227.20349 | H114: 16292.47175 | I114: =IFERROR(RPMTotalPayment(B114,D114,E114,F114),"Enable Macros") -> 49519.67524 | J114: 8844295.126
B115: 65 | C115: May 2027 | D115: =IFERROR(RPMLoanType(B115),"Enable Macros") -> Amortizing | E115: =IFERROR(RPMInterestRate(B115),"Enable Macros") -> 0.045 | F115: =RPMBeginningBalance(B115,D115,J114) -> 8844295.126 | G115: 33166.10672 | H115: 16353.56852 | I115: =IFERROR(RPMTotalPayment(B115,D115,E115,F115),"Enable Macros") -> 49519.67524 | J115: =IF(B115<=SUM(Loan_Amortization,Loan_IO_Term),F115-H115,0) -> 8827941.557
B116: 66 | C116: =RPMDateSpan(B116,3) -> Jun 2027 | D116: =IFERROR(RPMLoanType(B116),"Enable Macros") -> Amortizing | E116: =IFERROR(RPMInterestRate(B116),"Enable Macros") -> 0.045 | F116: =RPMBeginningBalance(B116,D116,J115) -> 8827941.557 | G116: =F116*(RPMCanadian(D116,E116)/12) -> 33104.78084 | H116: =I116-G116 -> 16414.8944 | I116: =IFERROR(RPMTotalPayment(B116,D116,E116,F116),"Enable Macros") -> 49519.67524 | J116: 8811526.663
B117: 67 | C117: Jul 2027 | D117: =IFERROR(RPMLoanType(B117),"Enable Macros") -> Amortizing | E117: =IFERROR(RPMInterestRate(B117),"Enable Macros") -> 0.045 | F117: =RPMBeginningBalance(B117,D117,J116) -> 8811526.663 | G117: 33043.22499 | H117: 16476.45026 | I117: =IFERROR(RPMTotalPayment(B117,D117,E117,F117),"Enable Macros") -> 49519.67524 | J117: 8795050.213
B118: 68 | C118: Aug 2027 | D118: =IFERROR(RPMLoanType(B118),"Enable Macros") -> Amortizing | E118: =IFERROR(RPMInterestRate(B118),"Enable Macros") -> 0.045 | F118: =RPMBeginningBalance(B118,D118,J117) -> 8795050.213 | G118: 32981.4383 | H118: 16538.23695 | I118: =IFERROR(RPMTotalPayment(B118,D118,E118,F118),"Enable Macros") -> 49519.67524 | J118: 8778511.976
B119: 69 | C119: Sep 2027 | D119: =IFERROR(RPMLoanType(B119),"Enable Macros") -> Amortizing | E119: =IFERROR(RPMInterestRate(B119),"Enable Macros") -> 0.045 | F119: =RPMBeginningBalance(B119,D119,J118) -> 8778511.976 | G119: 32919.41991 | H119: 16600.25533 | I119: =IFERROR(RPMTotalPayment(B119,D119,E119,F119),"Enable Macros") -> 49519.67524 | J119: 8761911.721
B120: 70 | C120: Oct 2027 | D120: =IFERROR(RPMLoanType(B120),"Enable Macros") -> Amortizing | E120: =IFERROR(RPMInterestRate(B120),"Enable Macros") -> 0.045 | F120: =RPMBeginningBalance(B120,D120,J119) -> 8761911.721 | G120: 32857.16895 | H120: 16662.50629 | I120: =IFERROR(RPMTotalPayment(B120,D120,E120,F120),"Enable Macros") -> 49519.67524 | J120: 8745249.214
B121: 71 | C121: Nov 2027 | D121: =IFERROR(RPMLoanType(B121),"Enable Macros") -> Amortizing | E121: =IFERROR(RPMInterestRate(B121),"Enable Macros") -> 0.045 | F121: =RPMBeginningBalance(B121,D121,J120) -> 8745249.214 | G121: 32794.68455 | H121: 16724.99069 | I121: =IFERROR(RPMTotalPayment(B121,D121,E121,F121),"Enable Macros") -> 49519.67524 | J121: 8728524.224
B122: 72 | C122: Dec 2027 | D122: =IFERROR(RPMLoanType(B122),"Enable Macros") -> Amortizing | E122: =IFERROR(RPMInterestRate(B122),"Enable Macros") -> 0.045 | F122: =RPMBeginningBalance(B122,D122,J121) -> 8728524.224 | G122: 32731.96584 | H122: 16787.70941 | I122: =IFERROR(RPMTotalPayment(B122,D122,E122,F122),"Enable Macros") -> 49519.67524 | J122: 8711736.514
B123: 73 | C123: Jan 2028 | D123: =IFERROR(RPMLoanType(B123),"Enable Macros") -> Amortizing | E123: =IFERROR(RPMInterestRate(B123),"Enable Macros") -> 0.045 | F123: =RPMBeginningBalance(B123,D123,J122) -> 8711736.514 | G123: 32669.01193 | H123: 16850.66332 | I123: =IFERROR(RPMTotalPayment(B123,D123,E123,F123),"Enable Macros") -> 49519.67524 | J123: 8694885.851
B124: 74 | C124: Feb 2028 | D124: =IFERROR(RPMLoanType(B124),"Enable Macros") -> Amortizing | E124: =IFERROR(RPMInterestRate(B124),"Enable Macros") -> 0.045 | F124: =RPMBeginningBalance(B124,D124,J123) -> 8694885.851 | G124: 32605.82194 | H124: 16913.8533 | I124: =IFERROR(RPMTotalPayment(B124,D124,E124,F124),"Enable Macros") -> 49519.67524 | J124: 8677971.998
B125: 75 | C125: Mar 2028 | D125: =IFERROR(RPMLoanType(B125),"Enable Macros") -> Amortizing | E125: =IFERROR(RPMInterestRate(B125),"Enable Macros") -> 0.045 | F125: =RPMBeginningBalance(B125,D125,J124) -> 8677971.998 | G125: 32542.39499 | H125: 16977.28025 | I125: =IFERROR(RPMTotalPayment(B125,D125,E125,F125),"Enable Macros") -> 49519.67524 | J125: 8660994.717
B126: 76 | C126: Apr 2028 | D126: =IFERROR(RPMLoanType(B126),"Enable Macros") -> Amortizing | E126: =IFERROR(RPMInterestRate(B126),"Enable Macros") -> 0.045 | F126: =RPMBeginningBalance(B126,D126,J125) -> 8660994.717 | G126: 32478.73019 | H126: 17040.94505 | I126: =IFERROR(RPMTotalPayment(B126,D126,E126,F126),"Enable Macros") -> 49519.67524 | J126: 8643953.772
B127: 77 | C127: May 2028 | D127: =IFERROR(RPMLoanType(B127),"Enable Macros") -> Amortizing | E127: =IFERROR(RPMInterestRate(B127),"Enable Macros") -> 0.045 | F127: =RPMBeginningBalance(B127,D127,J126) -> 8643953.772 | G127: 32414.82665 | H127: 17104.8486 | I127: =IFERROR(RPMTotalPayment(B127,D127,E127,F127),"Enable Macros") -> 49519.67524 | J127: 8626848.924
B128: 78 | C128: Jun 2028 | D128: =IFERROR(RPMLoanType(B128),"Enable Macros") -> Amortizing | E128: =IFERROR(RPMInterestRate(B128),"Enable Macros") -> 0.045 | F128: =RPMBeginningBalance(B128,D128,J127) -> 8626848.924 | G128: 32350.68346 | H128: 17168.99178 | I128: =IFERROR(RPMTotalPayment(B128,D128,E128,F128),"Enable Macros") -> 49519.67524 | J128: 8609679.932
B129: 79 | C129: Jul 2028 | D129: =IFERROR(RPMLoanType(B129),"Enable Macros") -> Amortizing | E129: =IFERROR(RPMInterestRate(B129),"Enable Macros") -> 0.045 | F129: =RPMBeginningBalance(B129,D129,J128) -> 8609679.932 | G129: 32286.29974 | H129: 17233.3755 | I129: =IFERROR(RPMTotalPayment(B129,D129,E129,F129),"Enable Macros") -> 49519.67524 | J129: 8592446.556
B130: 80 | C130: Aug 2028 | D130: =IFERROR(RPMLoanType(B130),"Enable Macros") -> Amortizing | E130: =IFERROR(RPMInterestRate(B130),"Enable Macros") -> 0.045 | F130: =RPMBeginningBalance(B130,D130,J129) -> 8592446.556 | G130: 32221.67459 | H130: 17298.00066 | I130: =IFERROR(RPMTotalPayment(B130,D130,E130,F130),"Enable Macros") -> 49519.67524 | J130: 8575148.556
B131: 81 | C131: Sep 2028 | D131: =IFERROR(RPMLoanType(B131),"Enable Macros") -> Amortizing | E131: =IFERROR(RPMInterestRate(B131),"Enable Macros") -> 0.045 | F131: =RPMBeginningBalance(B131,D131,J130) -> 8575148.556 | G131: 32156.80708 | H131: 17362.86816 | I131: =IFERROR(RPMTotalPayment(B131,D131,E131,F131),"Enable Macros") -> 49519.67524 | J131: 8557785.688
B132: 82 | C132: Oct 2028 | D132: =IFERROR(RPMLoanType(B132),"Enable Macros") -> Amortizing | E132: =IFERROR(RPMInterestRate(B132),"Enable Macros") -> 0.045 | F132: =RPMBeginningBalance(B132,D132,J131) -> 8557785.688 | G132: 32091.69633 | H132: 17427.97892 | I132: =IFERROR(RPMTotalPayment(B132,D132,E132,F132),"Enable Macros") -> 49519.67524 | J132: 8540357.709
B133: 83 | C133: Nov 2028 | D133: =IFERROR(RPMLoanType(B133),"Enable Macros") -> Amortizing | E133: =IFERROR(RPMInterestRate(B133),"Enable Macros") -> 0.045 | F133: =RPMBeginningBalance(B133,D133,J132) -> 8540357.709 | G133: 32026.34141 | H133: 17493.33384 | I133: =IFERROR(RPMTotalPayment(B133,D133,E133,F133),"Enable Macros") -> 49519.67524 | J133: 8522864.375
B134: 84 | C134: Dec 2028 | D134: =IFERROR(RPMLoanType(B134),"Enable Macros") -> Amortizing | E134: =IFERROR(RPMInterestRate(B134),"Enable Macros") -> 0.045 | F134: =RPMBeginningBalance(B134,D134,J133) -> 8522864.375 | G134: 31960.74141 | H134: 17558.93384 | I134: =IFERROR(RPMTotalPayment(B134,D134,E134,F134),"Enable Macros") -> 49519.67524 | J134: 8505305.441
B135: 85 | C135: Jan 2029 | D135: =IFERROR(RPMLoanType(B135),"Enable Macros") -> Amortizing | E135: =IFERROR(RPMInterestRate(B135),"Enable Macros") -> 0.045 | F135: =RPMBeginningBalance(B135,D135,J134) -> 8505305.441 | G135: 31894.8954 | H135: 17624.77984 | I135: =IFERROR(RPMTotalPayment(B135,D135,E135,F135),"Enable Macros") -> 49519.67524 | J135: 8487680.661
B136: 86 | C136: Feb 2029 | D136: =IFERROR(RPMLoanType(B136),"Enable Macros") -> Amortizing | E136: =IFERROR(RPMInterestRate(B136),"Enable Macros") -> 0.045 | F136: =RPMBeginningBalance(B136,D136,J135) -> 8487680.661 | G136: 31828.80248 | H136: 17690.87277 | I136: =IFERROR(RPMTotalPayment(B136,D136,E136,F136),"Enable Macros") -> 49519.67524 | J136: 8469989.788
B137: 87 | C137: Mar 2029 | D137: =IFERROR(RPMLoanType(B137),"Enable Macros") -> Amortizing | E137: =IFERROR(RPMInterestRate(B137),"Enable Macros") -> 0.045 | F137: =RPMBeginningBalance(B137,D137,J136) -> 8469989.788 | G137: 31762.46171 | H137: 17757.21354 | I137: =IFERROR(RPMTotalPayment(B137,D137,E137,F137),"Enable Macros") -> 49519.67524 | J137: 8452232.575
B138: 88 | C138: Apr 2029 | D138: =IFERROR(RPMLoanType(B138),"Enable Macros") -> Amortizing | E138: =IFERROR(RPMInterestRate(B138),"Enable Macros") -> 0.045 | F138: =RPMBeginningBalance(B138,D138,J137) -> 8452232.575 | G138: 31695.87216 | H138: 17823.80309 | I138: =IFERROR(RPMTotalPayment(B138,D138,E138,F138),"Enable Macros") -> 49519.67524 | J138: 8434408.772
B139: 89 | C139: May 2029 | D139: =IFERROR(RPMLoanType(B139),"Enable Macros") -> Amortizing | E139: =IFERROR(RPMInterestRate(B139),"Enable Macros") -> 0.045 | F139: =RPMBeginningBalance(B139,D139,J138) -> 8434408.772 | G139: 31629.03289 | H139: 17890.64235 | I139: =IFERROR(RPMTotalPayment(B139,D139,E139,F139),"Enable Macros") -> 49519.67524 | J139: 8416518.129
B140: 90 | C140: Jun 2029 | D140: =IFERROR(RPMLoanType(B140),"Enable Macros") -> Amortizing | E140: =IFERROR(RPMInterestRate(B140),"Enable Macros") -> 0.045 | F140: =RPMBeginningBalance(B140,D140,J139) -> 8416518.129 | G140: 31561.94299 | H140: 17957.73226 | I140: =IFERROR(RPMTotalPayment(B140,D140,E140,F140),"Enable Macros") -> 49519.67524 | J140: 8398560.397
B141: 91 | C141: Jul 2029 | D141: =IFERROR(RPMLoanType(B141),"Enable Macros") -> Amortizing | E141: =IFERROR(RPMInterestRate(B141),"Enable Macros") -> 0.045 | F141: =RPMBeginningBalance(B141,D141,J140) -> 8398560.397 | G141: 31494.60149 | H141: 18025.07376 | I141: =IFERROR(RPMTotalPayment(B141,D141,E141,F141),"Enable Macros") -> 49519.67524 | J141: 8380535.323
B142: 92 | C142: Aug 2029 | D142: =IFERROR(RPMLoanType(B142),"Enable Macros") -> Amortizing | E142: =IFERROR(RPMInterestRate(B142),"Enable Macros") -> 0.045 | F142: =RPMBeginningBalance(B142,D142,J141) -> 8380535.323 | G142: 31427.00746 | H142: 18092.66778 | I142: =IFERROR(RPMTotalPayment(B142,D142,E142,F142),"Enable Macros") -> 49519.67524 | J142: 8362442.656
B143: 93 | C143: Sep 2029 | D143: =IFERROR(RPMLoanType(B143),"Enable Macros") -> Amortizing | E143: =IFERROR(RPMInterestRate(B143),"Enable Macros") -> 0.045 | F143: =RPMBeginningBalance(B143,D143,J142) -> 8362442.656 | G143: 31359.15996 | H143: 18160.51529 | I143: =IFERROR(RPMTotalPayment(B143,D143,E143,F143),"Enable Macros") -> 49519.67524 | J143: 8344282.14
B144: 94 | C144: Oct 2029 | D144: =IFERROR(RPMLoanType(B144),"Enable Macros") -> Amortizing | E144: =IFERROR(RPMInterestRate(B144),"Enable Macros") -> 0.045 | F144: =RPMBeginningBalance(B144,D144,J143) -> 8344282.14 | G144: 31291.05803 | H144: 18228.61722 | I144: =IFERROR(RPMTotalPayment(B144,D144,E144,F144),"Enable Macros") -> 49519.67524 | J144: 8326053.523
B145: 95 | C145: Nov 2029 | D145: =IFERROR(RPMLoanType(B145),"Enable Macros") -> Amortizing | E145: =IFERROR(RPMInterestRate(B145),"Enable Macros") -> 0.045 | F145: =RPMBeginningBalance(B145,D145,J144) -> 8326053.523 | G145: 31222.70071 | H145: 18296.97453 | I145: =IFERROR(RPMTotalPayment(B145,D145,E145,F145),"Enable Macros") -> 49519.67524 | J145: 8307756.549
B146: 96 | C146: Dec 2029 | D146: =IFERROR(RPMLoanType(B146),"Enable Macros") -> Amortizing | E146: =IFERROR(RPMInterestRate(B146),"Enable Macros") -> 0.045 | F146: =RPMBeginningBalance(B146,D146,J145) -> 8307756.549 | G146: 31154.08706 | H146: 18365.58819 | I146: =IFERROR(RPMTotalPayment(B146,D146,E146,F146),"Enable Macros") -> 49519.67524 | J146: 8289390.96
B147: 97 | C147: Jan 2030 | D147: =IFERROR(RPMLoanType(B147),"Enable Macros") -> Amortizing | E147: =IFERROR(RPMInterestRate(B147),"Enable Macros") -> 0.045 | F147: =RPMBeginningBalance(B147,D147,J146) -> 8289390.96 | G147: 31085.2161 | H147: 18434.45914 | I147: =IFERROR(RPMTotalPayment(B147,D147,E147,F147),"Enable Macros") -> 49519.67524 | J147: =IF(B147<=SUM(Loan_Amortization,Loan_IO_Term),F147-H147,0) -> 8270956.501
B148: 98 | C148: Feb 2030 | D148: =IFERROR(RPMLoanType(B148),"Enable Macros") -> Amortizing | E148: =IFERROR(RPMInterestRate(B148),"Enable Macros") -> 0.045 | F148: =RPMBeginningBalance(B148,D148,J147) -> 8270956.501 | G148: 31016.08688 | H148: 18503.58837 | I148: =IFERROR(RPMTotalPayment(B148,D148,E148,F148),"Enable Macros") -> 49519.67524 | J148: 8252452.913
B149: 99 | C149: Mar 2030 | D149: =IFERROR(RPMLoanType(B149),"Enable Macros") -> Amortizing | E149: =IFERROR(RPMInterestRate(B149),"Enable Macros") -> 0.045 | F149: =RPMBeginningBalance(B149,D149,J148) -> 8252452.913 | G149: 30946.69842 | H149: 18572.97682 | I149: =IFERROR(RPMTotalPayment(B149,D149,E149,F149),"Enable Macros") -> 49519.67524 | J149: 8233879.936
B150: 100 | C150: Apr 2030 | D150: =IFERROR(RPMLoanType(B150),"Enable Macros") -> Amortizing | E150: =IFERROR(RPMInterestRate(B150),"Enable Macros") -> 0.045 | F150: =RPMBeginningBalance(B150,D150,J149) -> 8233879.936 | G150: 30877.04976 | H150: 18642.62548 | I150: =IFERROR(RPMTotalPayment(B150,D150,E150,F150),"Enable Macros") -> 49519.67524 | J150: 8215237.311
B151: 101 | C151: May 2030 | D151: =IFERROR(RPMLoanType(B151),"Enable Macros") -> Amortizing | E151: =IFERROR(RPMInterestRate(B151),"Enable Macros") -> 0.045 | F151: =RPMBeginningBalance(B151,D151,J150) -> 8215237.311 | G151: 30807.13991 | H151: 18712.53533 | I151: =IFERROR(RPMTotalPayment(B151,D151,E151,F151),"Enable Macros") -> 49519.67524 | J151: 8196524.775
B152: 102 | C152: Jun 2030 | D152: =IFERROR(RPMLoanType(B152),"Enable Macros") -> Amortizing | E152: =IFERROR(RPMInterestRate(B152),"Enable Macros") -> 0.045 | F152: =RPMBeginningBalance(B152,D152,J151) -> 8196524.775 | G152: 30736.96791 | H152: 18782.70734 | I152: =IFERROR(RPMTotalPayment(B152,D152,E152,F152),"Enable Macros") -> 49519.67524 | J152: 8177742.068
B153: 103 | C153: Jul 2030 | D153: =IFERROR(RPMLoanType(B153),"Enable Macros") -> Amortizing | E153: =IFERROR(RPMInterestRate(B153),"Enable Macros") -> 0.045 | F153: =RPMBeginningBalance(B153,D153,J152) -> 8177742.068 | G153: 30666.53275 | H153: 18853.14249 | I153: =IFERROR(RPMTotalPayment(B153,D153,E153,F153),"Enable Macros") -> 49519.67524 | J153: 8158888.925
B154: 104 | C154: Aug 2030 | D154: =IFERROR(RPMLoanType(B154),"Enable Macros") -> Amortizing | E154: =IFERROR(RPMInterestRate(B154),"Enable Macros") -> 0.045 | F154: =RPMBeginningBalance(B154,D154,J153) -> 8158888.925 | G154: 30595.83347 | H154: 18923.84177 | I154: =IFERROR(RPMTotalPayment(B154,D154,E154,F154),"Enable Macros") -> 49519.67524 | J154: 8139965.084
B155: 105 | C155: Sep 2030 | D155: =IFERROR(RPMLoanType(B155),"Enable Macros") -> Amortizing | E155: =IFERROR(RPMInterestRate(B155),"Enable Macros") -> 0.045 | F155: =RPMBeginningBalance(B155,D155,J154) -> 8139965.084 | G155: 30524.86906 | H155: 18994.80618 | I155: =IFERROR(RPMTotalPayment(B155,D155,E155,F155),"Enable Macros") -> 49519.67524 | J155: 8120970.277
B156: 106 | C156: Oct 2030 | D156: =IFERROR(RPMLoanType(B156),"Enable Macros") -> Amortizing | E156: =IFERROR(RPMInterestRate(B156),"Enable Macros") -> 0.045 | F156: =RPMBeginningBalance(B156,D156,J155) -> 8120970.277 | G156: 30453.63854 | H156: 19066.0367 | I156: =IFERROR(RPMTotalPayment(B156,D156,E156,F156),"Enable Macros") -> 49519.67524 | J156: 8101904.241
B157: 107 | C157: Nov 2030 | D157: =IFERROR(RPMLoanType(B157),"Enable Macros") -> Amortizing | E157: =IFERROR(RPMInterestRate(B157),"Enable Macros") -> 0.045 | F157: =RPMBeginningBalance(B157,D157,J156) -> 8101904.241 | G157: 30382.1409 | H157: 19137.53434 | I157: =IFERROR(RPMTotalPayment(B157,D157,E157,F157),"Enable Macros") -> 49519.67524 | J157: 8082766.706
B158: 108 | C158: Dec 2030 | D158: =IFERROR(RPMLoanType(B158),"Enable Macros") -> Amortizing | E158: =IFERROR(RPMInterestRate(B158),"Enable Macros") -> 0.045 | F158: =RPMBeginningBalance(B158,D158,J157) -> 8082766.706 | G158: 30310.37515 | H158: 19209.3001 | I158: =IFERROR(RPMTotalPayment(B158,D158,E158,F158),"Enable Macros") -> 49519.67524 | J158: 8063557.406
B159: 109 | C159: Jan 2031 | D159: =IFERROR(RPMLoanType(B159),"Enable Macros") -> Amortizing | E159: =IFERROR(RPMInterestRate(B159),"Enable Macros") -> 0.045 | F159: =RPMBeginningBalance(B159,D159,J158) -> 8063557.406 | G159: 30238.34027 | H159: 19281.33497 | I159: =IFERROR(RPMTotalPayment(B159,D159,E159,F159),"Enable Macros") -> 49519.67524 | J159: 8044276.071
B160: 110 | C160: Feb 2031 | D160: =IFERROR(RPMLoanType(B160),"Enable Macros") -> Amortizing | E160: =IFERROR(RPMInterestRate(B160),"Enable Macros") -> 0.045 | F160: =RPMBeginningBalance(B160,D160,J159) -> 8044276.071 | G160: 30166.03527 | H160: 19353.63998 | I160: =IFERROR(RPMTotalPayment(B160,D160,E160,F160),"Enable Macros") -> 49519.67524 | J160: 8024922.431
B161: 111 | C161: Mar 2031 | D161: =IFERROR(RPMLoanType(B161),"Enable Macros") -> Amortizing | E161: =IFERROR(RPMInterestRate(B161),"Enable Macros") -> 0.045 | F161: =RPMBeginningBalance(B161,D161,J160) -> 8024922.431 | G161: 30093.45912 | H161: 19426.21613 | I161: =IFERROR(RPMTotalPayment(B161,D161,E161,F161),"Enable Macros") -> 49519.67524 | J161: 8005496.215
B162: 112 | C162: Apr 2031 | D162: =IFERROR(RPMLoanType(B162),"Enable Macros") -> Amortizing | E162: =IFERROR(RPMInterestRate(B162),"Enable Macros") -> 0.045 | F162: =RPMBeginningBalance(B162,D162,J161) -> 8005496.215 | G162: 30020.61081 | H162: 19499.06444 | I162: =IFERROR(RPMTotalPayment(B162,D162,E162,F162),"Enable Macros") -> 49519.67524 | J162: 7985997.151
B163: 113 | C163: May 2031 | D163: =IFERROR(RPMLoanType(B163),"Enable Macros") -> Amortizing | E163: =IFERROR(RPMInterestRate(B163),"Enable Macros") -> 0.045 | F163: =RPMBeginningBalance(B163,D163,J162) -> 7985997.151 | G163: 29947.48932 | H163: 19572.18593 | I163: =IFERROR(RPMTotalPayment(B163,D163,E163,F163),"Enable Macros") -> 49519.67524 | J163: 7966424.965
B164: 114 | C164: Jun 2031 | D164: =IFERROR(RPMLoanType(B164),"Enable Macros") -> Amortizing | E164: =IFERROR(RPMInterestRate(B164),"Enable Macros") -> 0.045 | F164: =RPMBeginningBalance(B164,D164,J163) -> 7966424.965 | G164: 29874.09362 | H164: 19645.58163 | I164: =IFERROR(RPMTotalPayment(B164,D164,E164,F164),"Enable Macros") -> 49519.67524 | J164: 7946779.383
B165: 115 | C165: Jul 2031 | D165: =IFERROR(RPMLoanType(B165),"Enable Macros") -> Amortizing | E165: =IFERROR(RPMInterestRate(B165),"Enable Macros") -> 0.045 | F165: =RPMBeginningBalance(B165,D165,J164) -> 7946779.383 | G165: 29800.42269 | H165: 19719.25256 | I165: =IFERROR(RPMTotalPayment(B165,D165,E165,F165),"Enable Macros") -> 49519.67524 | J165: 7927060.131
B166: 116 | C166: Aug 2031 | D166: =IFERROR(RPMLoanType(B166),"Enable Macros") -> Amortizing | E166: =IFERROR(RPMInterestRate(B166),"Enable Macros") -> 0.045 | F166: =RPMBeginningBalance(B166,D166,J165) -> 7927060.131 | G166: 29726.47549 | H166: 19793.19975 | I166: =IFERROR(RPMTotalPayment(B166,D166,E166,F166),"Enable Macros") -> 49519.67524 | J166: 7907266.931
B167: 117 | C167: Sep 2031 | D167: =IFERROR(RPMLoanType(B167),"Enable Macros") -> Amortizing | E167: =IFERROR(RPMInterestRate(B167),"Enable Macros") -> 0.045 | F167: =RPMBeginningBalance(B167,D167,J166) -> 7907266.931 | G167: 29652.25099 | H167: 19867.42425 | I167: =IFERROR(RPMTotalPayment(B167,D167,E167,F167),"Enable Macros") -> 49519.67524 | J167: 7887399.507
B168: 118 | C168: Oct 2031 | D168: =IFERROR(RPMLoanType(B168),"Enable Macros") -> Amortizing | E168: =IFERROR(RPMInterestRate(B168),"Enable Macros") -> 0.045 | F168: =RPMBeginningBalance(B168,D168,J167) -> 7887399.507 | G168: 29577.74815 | H168: 19941.92709 | I168: =IFERROR(RPMTotalPayment(B168,D168,E168,F168),"Enable Macros") -> 49519.67524 | J168: 7867457.58
B169: 119 | C169: Nov 2031 | D169: =IFERROR(RPMLoanType(B169),"Enable Macros") -> Amortizing | E169: =IFERROR(RPMInterestRate(B169),"Enable Macros") -> 0.045 | F169: =RPMBeginningBalance(B169,D169,J168) -> 7867457.58 | G169: 29502.96592 | H169: 20016.70932 | I169: =IFERROR(RPMTotalPayment(B169,D169,E169,F169),"Enable Macros") -> 49519.67524 | J169: 7847440.87
B170: 120 | C170: Dec 2031 | D170: =IFERROR(RPMLoanType(B170),"Enable Macros") -> Amortizing | E170: =IFERROR(RPMInterestRate(B170),"Enable Macros") -> 0.045 | F170: =RPMBeginningBalance(B170,D170,J169) -> 7847440.87 | G170: 29427.90326 | H170: 20091.77198 | I170: =IFERROR(RPMTotalPayment(B170,D170,E170,F170),"Enable Macros") -> 49519.67524 | J170: 7827349.098

Sheet Sources & Uses
B2: Sources & Uses
B4: Period | C4: 0 | D4: 1 | E4: 2 | F4: 3 | G4: 4 | H4: 5 | I4: 6 | J4: 7 | K4: 8 | L4: 9 | M4: 10 | N4: Total
D5: =RPMDateSpan(D4,1) -> Jan 22 - Dec 22 | E5: =RPMDateSpan(E4,1) -> Jan 23 - Dec 23 | F5: Jan 24 - Dec 24 | G5: Jan 25 - Dec 25 | H5: Jan 26 - Dec 26 | I5: Jan 27 - Dec 27 | J5: Jan 28 - Dec 28 | K5: Jan 29 - Dec 29 | L5: Jan 30 - Dec 30 | M5: Jan 31 - Dec 31
B7: Sources Of Capital
B8: Debt Proceeds | C8: =IF(AND(Loan_IO_Status="Fund Up",Loan_IO_Term>0,Loan_IO_Approval="Yes"),0,Loan_Amount) -> 9773260.5 | D8: =IF(OR(Loan_IO_Status<>"Fund Up",Loan_IO_Approval="No"),0,IF(D4*12<=Loan_IO_MonthFunded,VLOOKUP(D4,Amortization_Schedule_Annual,9,FALSE)-SUM($C$8:C8),IF(AND(Loan_IO_MonthFunded>C4*12,Loan_IO_MonthFunded<=D4*12),Loan_Amount-SUM($C$8:C8),0))) -> 0 | E8: =IF(OR(Loan_IO_Status<>"Fund Up",Loan_IO_Approval="No"),0,IF(E4*12<=Loan_IO_MonthFunded,VLOOKUP(E4,Amortization_Schedule_Annual,9,FALSE)-SUM($C$8:D8),IF(AND(Loan_IO_MonthFunded>D4*12,Loan_IO_MonthFunded<=E4*12),Loan_Amount-SUM($C$8:D8),0))) -> 0 | F8: =IF(OR(Loan_IO_Status<>"Fund Up",Loan_IO_Approval="No"),0,IF(F4*12<=Loan_IO_MonthFunded,VLOOKUP(F4,Amortization_Schedule_Annual,9,FALSE)-SUM($C$8:E8),IF(AND(Loan_IO_MonthFunded>E4*12,Loan_IO_MonthFunded<=F4*12),Loan_Amount-SUM($C$8:E8),0))) -> 0 | G8: =IF(OR(Loan_IO_Status<>"Fund Up",Loan_IO_Approval="No"),0,IF(G4*12<=Loan_IO_MonthFunded,VLOOKUP(G4,Amortization_Schedule_Annual,9,FALSE)-SUM($C$8:F8),IF(AND(Loan_IO_MonthFunded>F4*12,Loan_IO_MonthFunded<=G4*12),Loan_Amount-SUM($C$8:F8),0))) -> 0 | H8: =IF(OR(Loan_IO_Status<>"Fund Up",Loan_IO_Approval="No"),0,IF(H4*12<=Loan_IO_MonthFunded,VLOOKUP(H4,Amortization_Schedule_Annual,9,FALSE)-SUM($C$8:G8),IF(AND(Loan_IO_MonthFunded>G4*12,Loan_IO_MonthFunded<=H4*12),Loan_Amount-SUM($C$8:G8),0))) -> 0 | I8: =IF(OR(Loan_IO_Status<>"Fund Up",Loan_IO_Approval="No"),0,IF(I4*12<=Loan_IO_MonthFunded,VLOOKUP(I4,Amortization_Schedule_Annual,9,FALSE)-SUM($C$8:H8),IF(AND(Loan_IO_MonthFunded>H4*12,Loan_IO_MonthFunded<=I4*12),Loan_Amount-SUM($C$8:H8),0))) -> 0 | J8: =IF(OR(Loan_IO_Status<>"Fund Up",Loan_IO_Approval="No"),0,IF(J4*12<=Loan_IO_MonthFunded,VLOOKUP(J4,Amortization_Schedule_Annual,9,FALSE)-SUM($C$8:I8),IF(AND(Loan_IO_MonthFunded>I4*12,Loan_IO_MonthFunded<=J4*12),Loan_Amount-SUM($C$8:I8),0))) -> 0 | K8: =IF(OR(Loan_IO_Status<>"Fund Up",Loan_IO_Approval="No"),0,IF(K4*12<=Loan_IO_MonthFunded,VLOOKUP(K4,Amortization_Schedule_Annual,9,FALSE)-SUM($C$8:J8),IF(AND(Loan_IO_MonthFunded>J4*12,Loan_IO_MonthFunded<=K4*12),Loan_Amount-SUM($C$8:J8),0))) -> 0 | L8: =IF(OR(Loan_IO_Status<>"Fund Up",Loan_IO_Approval="No"),0,IF(L4*12<=Loan_IO_MonthFunded,VLOOKUP(L4,Amortization_Schedule_Annual,9,FALSE)-SUM($C$8:K8),IF(AND(Loan_IO_MonthFunded>K4*12,Loan_IO_MonthFunded<=L4*12),Loan_Amount-SUM($C$8:K8),0))) -> 0 | M8: =IF(OR(Loan_IO_Status<>"Fund Up",Loan_IO_Approval="No"),0,IF(M4*12<=Loan_IO_MonthFunded,VLOOKUP(M4,Amortization_Schedule_Annual,9,FALSE)-SUM($C$8:L8),IF(AND(Loan_IO_MonthFunded>L4*12,Loan_IO_MonthFunded<=M4*12),Loan_Amount-SUM($C$8:L8),0))) -> 0 | N8: =SUM(C8:M8) -> 9773260.5
B9: Refinance Proceeds | C9: 0 | D9: =IF(Hold<D4,0,IF(ROUNDUP((Loan_IO_Term+1)/12,0)=D4,Loan_Amount_Amortizing-Loan_Amount,0)) -> 0 | E9: 0 | F9: 0 | G9: 0 | H9: 0 | I9: 0 | J9: 0 | K9: 0 | L9: 0 | M9: 0 | N9: 0
B10: Equity Contributions | C10: =Equity_Amount -> 3355486.105 | D10: =IF('Return Detail'!F85<0,-'Return Detail'!F85,0) -> 0 | E10: =IF('Return Detail'!G85<0,-'Return Detail'!G85,0) -> 0 | F10: =IF('Return Detail'!H85<0,-'Return Detail'!H85,0) -> 0 | G10: =IF('Return Detail'!I85<0,-'Return Detail'!I85,0) -> 0 | H10: =IF('Return Detail'!J85<0,-'Return Detail'!J85,0) -> 0 | I10: =IF('Return Detail'!K85<0,-'Return Detail'!K85,0) -> 0 | J10: =IF('Return Detail'!L85<0,-'Return Detail'!L85,0) -> 0 | K10: =IF('Return Detail'!M85<0,-'Return Detail'!M85,0) -> 0 | L10: =IF('Return Detail'!N85<0,-'Return Detail'!N85,0) -> 0 | M10: =IF('Return Detail'!O85<0,-'Return Detail'!O85,0) -> 0 | N10: 3355486.105
B11: Net Operating Income | C11: 0 | D11: =IF('Return Detail'!F$6>0,'Return Detail'!F$6,0) -> 888625.808 | E11: =IF('Return Detail'!G$6>0,'Return Detail'!G$6,0) -> 916934.5822 | F11: =IF('Return Detail'!H$6>0,'Return Detail'!H$6,0) -> 946092.6197 | G11: =IF('Return Detail'!I$6>0,'Return Detail'!I$6,0) -> 976125.3983 | H11: =IF('Return Detail'!J$6>0,'Return Detail'!J$6,0) -> 1007059.16 | I11: =IF('Return Detail'!K$6>0,'Return Detail'!K$6,0) -> 1038920.935 | J11: =IF('Return Detail'!L$6>0,'Return Detail'!L$6,0) -> 1071738.563 | K11: =IF('Return Detail'!M$6>0,'Return Detail'!M$6,0) -> 1105540.72 | L11: =IF('Return Detail'!N$6>0,'Return Detail'!N$6,0) -> 1140356.942 | M11: =IF('Return Detail'!O$6>0,'Return Detail'!O$6,0) -> 1176217.65 | N11: 10267612.38
B12: Non-Regular Income | C12: 0 | D12: ='Return Detail'!F$8 -> 0 | E12: ='Return Detail'!G$8 -> 0 | F12: ='Return Detail'!H$8 -> 0 | G12: ='Return Detail'!I$8 -> 0 | H12: ='Return Detail'!J$8 -> 0 | I12: ='Return Detail'!K$8 -> 0 | J12: ='Return Detail'!L$8 -> 0 | K12: ='Return Detail'!M$8 -> 0 | L12: ='Return Detail'!N$8 -> 0 | M12: ='Return Detail'!O$8 -> 550000 | N12: 550000
B13: Reserve Draw for Taxes | C13: 0 | D13: ='Return Detail'!F$82 -> 0 | E13: ='Return Detail'!G$82 -> 0 | F13: ='Return Detail'!H$82 -> 0 | G13: ='Return Detail'!I$82 -> 0 | H13: ='Return Detail'!J$82 -> 0 | I13: ='Return Detail'!K$82 -> 0 | J13: ='Return Detail'!L$82 -> 0 | K13: ='Return Detail'!M$82 -> 0 | L13: ='Return Detail'!N$82 -> 0 | M13: ='Return Detail'!O$82 -> 0 | N13: 0
B14: Gross Proceeds from Sale | C14: 0 | D14: ='Return Detail'!F$10 -> 0 | E14: ='Return Detail'!G$10 -> 0 | F14: ='Return Detail'!H$10 -> 0 | G14: ='Return Detail'!I$10 -> 0 | H14: ='Return Detail'!J$10 -> 0 | I14: ='Return Detail'!K$10 -> 0 | J14: ='Return Detail'!L$10 -> 0 | K14: ='Return Detail'!M$10 -> 0 | L14: ='Return Detail'!N$10 -> 0 | M14: ='Return Detail'!O$10 -> 19510064.3 | N14: 19510064.3
B15: Total Sources Of Capital | C15: =SUM(C8:C14) -> 13128746.61 | D15: 888625.808 | E15: 916934.5822 | F15: 946092.6197 | G15: 976125.3983 | H15: 1007059.16 | I15: 1038920.935 | J15: 1071738.563 | K15: 1105540.72 | L15: 1140356.942 | M15: 21236281.95 | N15: 43456423.28
B17: Uses Of Capital
B18: =IF(Project_Type="Acquisition","Acquisition Price","Development Costs") -> Acquisition Price | C18: =IF(AND(Loan_IO_Status="Fund Up",Loan_IO_Term>0,Loan_IO_Approval="yes"),Equity_Amount-SUM(C19:C33),Acquisition_Gross) -> 13031014 | D18: =D8 -> 0 | E18: =E8 -> 0 | F18: 0 | G18: 0 | H18: 0 | I18: 0 | J18: 0 | K18: 0 | L18: 0 | M18: 0 | N18: =SUM(C18:M18) -> 13031014
B19: Costs and Fees | C19: =SUM(Due_Diligence_Cost,Loan_Fee) -> 97732.605 | D19: =-SUM('Return Detail'!F34,'Return Detail'!F28) -> 0 | E19: =-SUM('Return Detail'!G34,'Return Detail'!G28) -> 0 | F19: =-SUM('Return Detail'!H34,'Return Detail'!H28) -> 0 | G19: =-SUM('Return Detail'!I34,'Return Detail'!I28) -> 0 | H19: =-SUM('Return Detail'!J34,'Return Detail'!J28) -> 0 | I19: =-SUM('Return Detail'!K34,'Return Detail'!K28) -> 0 | J19: =-SUM('Return Detail'!L34,'Return Detail'!L28) -> 0 | K19: =-SUM('Return Detail'!M34,'Return Detail'!M28) -> 0 | L19: =-SUM('Return Detail'!N34,'Return Detail'!N28) -> 0 | M19: =-SUM('Return Detail'!O34,'Return Detail'!O28) -> 97550.32149 | N19: =SUM(C19:M19) -> 195282.9265
B20: Initial Reserve Accounts | C20: =SUM(Reserve_CapEx,Reserve_Operating,Reserve_Replacement) -> 0 | D20: 0 | E20: 0 | F20: 0 | G20: 0 | H20: 0 | I20: 0 | J20: 0 | K20: 0 | L20: 0 | M20: 0 | N20: 0
B21: Operating Requirements | C21: 0 | D21: =IF('Return Detail'!F$6<0,-'Return Detail'!F$6,0) -> 0 | E21: =IF('Return Detail'!G$6<0,-'Return Detail'!G$6,0) -> 0 | F21: =IF('Return Detail'!H$6<0,-'Return Detail'!H$6,0) -> 0 | G21: =IF('Return Detail'!I$6<0,-'Return Detail'!I$6,0) -> 0 | H21: =IF('Return Detail'!J$6<0,-'Return Detail'!J$6,0) -> 0 | I21: =IF('Return Detail'!K$6<0,-'Return Detail'!K$6,0) -> 0 | J21: =IF('Return Detail'!L$6<0,-'Return Detail'!L$6,0) -> 0 | K21: =IF('Return Detail'!M$6<0,-'Return Detail'!M$6,0) -> 0 | L21: =IF('Return Detail'!N$6<0,-'Return Detail'!N$6,0) -> 0 | M21: =IF('Return Detail'!O$6<0,-'Return Detail'!O$6,0) -> 0 | N21: =SUM(C21:M21) -> 0
B22: Mortgage Balance | C22: 0 | D22: =-'Return Detail'!F$35 -> 0 | E22: =-'Return Detail'!G$35 -> 0 | F22: =-'Return Detail'!H$35 -> 0 | G22: =-'Return Detail'!I$35 -> 0 | H22: =-'Return Detail'!J$35 -> 0 | I22: =-'Return Detail'!K$35 -> 0 | J22: =-'Return Detail'!L$35 -> 0 | K22: =-'Return Detail'!M$35 -> 0 | L22: =-'Return Detail'!N$35 -> 0 | M22: =-'Return Detail'!O$35 -> 7827349.098 | N22: =SUM(C22:M22) -> 7827349.098
B23: Mortgage Exit Fee | C23: 0 | D23: =-'Return Detail'!F36 -> 0 | E23: =-'Return Detail'!G36 -> 0 | F23: =-'Return Detail'!H36 -> 0 | G23: =-'Return Detail'!I36 -> 0 | H23: =-'Return Detail'!J36 -> 0 | I23: =-'Return Detail'!K36 -> 0 | J23: =-'Return Detail'!L36 -> 0 | K23: =-'Return Detail'!M36 -> 0 | L23: =-'Return Detail'!N36 -> 0 | M23: =-'Return Detail'!O36 -> 0 | N23: =SUM(C23:M23) -> 0
B24: Annual Interest Expense | C24: 0 | D24: =IF(D4>Hold,0,VLOOKUP(D$4,Amortization_Schedule_Annual,6,FALSE)) -> 436571.2559 | E24: 429328.1604 | F24: 421752.3184 | G24: 413828.4435 | H24: 405540.5472 | I24: 396871.9064 | J24: 387805.0297 | K24: 378321.6223 | L24: 368402.5489 | M24: 358027.7949 | N24: 3996449.628
B25: Less: Budgeted Interest | C25: 0 | D25: =IF(D4>Hold,0,'Cash Flows'!F89) -> 0 | E25: =IF(E4>Hold,0,'Cash Flows'!G89) -> 0 | F25: =IF(F4>Hold,0,'Cash Flows'!H89) -> 0 | G25: =IF(G4>Hold,0,'Cash Flows'!I89) -> 0 | H25: =IF(H4>Hold,0,'Cash Flows'!J89) -> 0 | I25: =IF(I4>Hold,0,'Cash Flows'!K89) -> 0 | J25: =IF(J4>Hold,0,'Cash Flows'!L89) -> 0 | K25: =IF(K4>Hold,0,'Cash Flows'!M89) -> 0 | L25: =IF(L4>Hold,0,'Cash Flows'!N89) -> 0 | M25: =IF(M4>Hold,0,'Cash Flows'!O89) -> 0 | N25: 0
B26: Annual Principal Paydown | C26: 0 | D26: =IF(D4>Hold,0,VLOOKUP(D$4,Amortization_Schedule_Annual,7,FALSE)) -> 157664.847 | E26: 164907.9425 | F26: 172483.7845 | G26: 180407.6594 | H26: 188695.5557 | I26: 197364.1966 | J26: 206431.0732 | K26: 215914.4806 | L26: 225833.5541 | M26: 236208.308 | N26: 1945911.402
B27: Capital Expenses | C27: 0 | D27: =-'Return Detail'!F$7 -> 0 | E27: =-'Return Detail'!G$7 -> 0 | F27: =-'Return Detail'!H$7 -> 0 | G27: =-'Return Detail'!I$7 -> 0 | H27: =-'Return Detail'!J$7 -> 0 | I27: =-'Return Detail'!K$7 -> 0 | J27: =-'Return Detail'!L$7 -> 0 | K27: =-'Return Detail'!M$7 -> 0 | L27: =-'Return Detail'!N$7 -> 0 | M27: =-'Return Detail'!O$7 -> 0 | N27: 0
B28: Operating Tax Liability | C28: 0 | D28: =-'Return Detail'!F81 -> 164893.3 | E28: =-'Return Detail'!G81 -> 173370.9223 | F28: =-'Return Detail'!H81 -> 186227.7801 | G28: =-'Return Detail'!I81 -> 199512.6088 | H28: =-'Return Detail'!J81 -> 213240.1892 | I28: =-'Return Detail'!K81 -> 227425.8347 | J28: =-'Return Detail'!L81 -> 242085.4113 | K28: =-'Return Detail'!M81 -> 257235.3588 | L28: =-'Return Detail'!N81 -> 272892.7121 | M28: =-'Return Detail'!O81 -> 289620.0148 | N28: 2226504.132
B29: Ordinary Income Tax Liability | C29: 0 | D29: =-'Return Detail'!F74 -> 0 | E29: =-'Return Detail'!G74 -> 0 | F29: =-'Return Detail'!H74 -> 0 | G29: =-'Return Detail'!I74 -> 0 | H29: =-'Return Detail'!J74 -> 0 | I29: =-'Return Detail'!K74 -> 0 | J29: =-'Return Detail'!L74 -> 0 | K29: =-'Return Detail'!M74 -> 0 | L29: =-'Return Detail'!N74 -> 0 | M29: =-'Return Detail'!O74 -> 0 | N29: 0
B30: Cost Recovery Tax Liability | C30: 0 | D30: =-'Return Detail'!F75 -> 0 | E30: =-'Return Detail'!G75 -> 0 | F30: =-'Return Detail'!H75 -> 0 | G30: =-'Return Detail'!I75 -> 0 | H30: =-'Return Detail'!J75 -> 0 | I30: =-'Return Detail'!K75 -> 0 | J30: =-'Return Detail'!L75 -> 0 | K30: =-'Return Detail'!M75 -> 0 | L30: =-'Return Detail'!N75 -> 0 | M30: =-'Return Detail'!O75 -> 92940.75703 | N30: 92940.75703
B31: Capital Gains Tax Liability | C31: 0 | D31: =-'Return Detail'!F76 -> 0 | E31: =-'Return Detail'!G76 -> 0 | F31: =-'Return Detail'!H76 -> 0 | G31: =-'Return Detail'!I76 -> 0 | H31: =-'Return Detail'!J76 -> 0 | I31: =-'Return Detail'!K76 -> 0 | J31: =-'Return Detail'!L76 -> 0 | K31: =-'Return Detail'!M76 -> 0 | L31: =-'Return Detail'!N76 -> 0 | M31: =-'Return Detail'!O76 -> 1276299.995 | N31: 1276299.995
B32: Operating Reserve Draw for Taxes | C32: 0 | D32: =-'Return Detail'!F82 -> 0 | E32: =-'Return Detail'!G82 -> 0 | F32: =-'Return Detail'!H82 -> 0 | G32: =-'Return Detail'!I82 -> 0 | H32: =-'Return Detail'!J82 -> 0 | I32: =-'Return Detail'!K82 -> 0 | J32: =-'Return Detail'!L82 -> 0 | K32: =-'Return Detail'!M82 -> 0 | L32: =-'Return Detail'!N82 -> 0 | M32: =-'Return Detail'!O82 -> 0 | N32: 0
B33: Equity Returns | C33: 0 | D33: =IF('Return Detail'!F$85>0,'Return Detail'!F$85,0) -> 129496.4051 | E33: =IF('Return Detail'!G$85>0,'Return Detail'!G$85,0) -> 149327.557 | F33: =IF('Return Detail'!H$85>0,'Return Detail'!H$85,0) -> 165628.7366 | G33: =IF('Return Detail'!I$85>0,'Return Detail'!I$85,0) -> 182376.6865 | H33: =IF('Return Detail'!J$85>0,'Return Detail'!J$85,0) -> 199582.8681 | I33: =IF('Return Detail'!K$85>0,'Return Detail'!K$85,0) -> 217258.9974 | J33: =IF('Return Detail'!L$85>0,'Return Detail'!L$85,0) -> 235417.0488 | K33: =IF('Return Detail'!M$85>0,'Return Detail'!M$85,0) -> 254069.2582 | L33: =IF('Return Detail'!N$85>0,'Return Detail'!N$85,0) -> 273228.1265 | M33: =IF('Return Detail'!O$85>0,'Return Detail'!O$85,0) -> 11058285.66 | N33: 12864671.34
B34: Total Uses Of Capital | C34: =SUM(C18:C33) -> 13128746.61 | D34: =SUM(D18:D33) -> 888625.808 | E34: 916934.5822 | F34: 946092.6197 | G34: 976125.3983 | H34: 1007059.16 | I34: 1038920.935 | J34: 1071738.563 | K34: 1105540.72 | L34: 1140356.942 | M34: 21236281.95 | N34: 43456423.28
B38: www.realpropmetrics.com
B39: ="Version: "&Version -> Version: 9.42 M | © 2022
B40: =TODAY() -> 2022-02-23

Sheet Equity Investor Returns
B2: =IF(LEFT(B21,3)="Pre","Pre-Tax Equity Investor Returns","Post-Tax Equity Investor Returns") -> Pre-Tax Equity Investor Returns
Q3: Year | R3: 1 | S3: 2 | T3: 3 | U3: 4 | V3: 5 | W3: 6 | X3: 7 | Y3: 8 | Z3: 9 | AA3: 10
Q4: =Name_Partner -> JV Partner | R4: =E32 -> 294389.7051 | S4: =F32 -> 321388.4108 | T4: 346870.24 | U4: 372621.1584 | V4: 397368.168 | W4: 422849.2955 | X4: 445821.6351 | Y4: 469483.1449 | Z4: 492330.9999 | AA4: 6636429.864
Q5: =Name_Developer -> Developer | R5: =E47 -> 0 | S5: =F47 -> 1310.068547 | T5: 4986.276732 | U5: 9268.136973 | V5: 15454.88936 | W5: 21835.53664 | X5: 31680.82506 | Y5: 41821.47213 | Z5: 53789.83874 | AA5: 6080716.561
E6: Cash Flow Distribution
C7: Method | D7: Basis | E7: Rate | F7: =Name_Partner&" Split" -> JV Partner Split | G7: =Name_Developer&" Split" -> Developer Split
B8: Initial Equity Contribution | F8: =Contribution_JV -> 0.9 | G8: =Contribution_Developer -> 0.1
B9: Preferred Return | C9: Cumulative | D9: Cash on Cash | E9: =Equity_Rate -> 0.1 | F9: 1 | G9: =1-Pref_Investor -> 0
B10: Hurdle 1 | D10: =D9 -> Cash on Cash | E10: =Preferred_Return_Rate+0.02 -> 0.12 | F10: =F8 -> 0.9 | G10: =1-F10 -> 0.1
B11: Hurdle 2 | D11: =D10 -> Cash on Cash | E11: =Hurdle1_Rate+0.02 -> 0.14 | F11: =Hurdle1_Investor-0.1 -> 0.8 | G11: =1-F11 -> 0.2
B12: Hurdle 3 | D12: =D11 -> Cash on Cash | E12: =Hurdle2_Rate+0.02 -> 0.16 | F12: =Hurdle2_Investor-0.1 -> 0.7 | G12: 0.3
B13: Final Split | F13: =Hurdle3_Investor-0.1 -> 0.6 | G13: 0.4
B14: Reversion (Sale) Proceeds | C14: Independent | F14: 0.5 | G14: =1-F14 -> 0.5
B19: Cash Flow Waterfall Summary
B20: Period | D20: 0 | E20: 1 | F20: 2 | G20: 3 | H20: 4 | I20: 5 | J20: 6 | K20: 7 | L20: 8 | M20: 9 | N20: 10
B21: Pre-Tax Net Cash Flow | D21: =IF(LEFT($B$21,3)="Pre",'Return Detail'!E37,'Return Detail'!E85) -> -3355486.105 | E21: =IF(LEFT($B$21,3)="Pre",'Return Detail'!F$32,'Return Detail'!F$83) -> 294389.7051 | F21: =IF(LEFT($B$21,3)="Pre",'Return Detail'!G$32,'Return Detail'!G$83) -> 322698.4793 | G21: =IF(LEFT($B$21,3)="Pre",'Return Detail'!H$32,'Return Detail'!H$83) -> 351856.5168 | H21: =IF(LEFT($B$21,3)="Pre",'Return Detail'!I$32,'Return Detail'!I$83) -> 381889.2954 | I21: =IF(LEFT($B$21,3)="Pre",'Return Detail'!J$32,'Return Detail'!J$83) -> 412823.0573 | J21: =IF(LEFT($B$21,3)="Pre",'Return Detail'!K$32,'Return Detail'!K$83) -> 444684.8321 | K21: =IF(LEFT($B$21,3)="Pre",'Return Detail'!L$32,'Return Detail'!L$83) -> 477502.4602 | L21: =IF(LEFT($B$21,3)="Pre",'Return Detail'!M$32,'Return Detail'!M$83) -> 511304.6171 | M21: =IF(LEFT($B$21,3)="Pre",'Return Detail'!N$32,'Return Detail'!N$83) -> 546120.8387 | N21: =IF(LEFT($B$21,3)="Pre",'Return Detail'!O$32,'Return Detail'!O$83) -> 1131981.547
B22: =IF(LEFT($B$21,3)="Pre","Pre-Tax Sale Proceeds","Post-Tax Sale Proceeds") -> Pre-Tax Sale Proceeds | D22: 0 | E22: =IF(LEFT($B$21,3)="Pre",'Return Detail'!F$73,'Return Detail'!F$77) -> 0 | F22: =IF(LEFT($B$21,3)="Pre",'Return Detail'!G$73,'Return Detail'!G$77) -> 0 | G22: =IF(LEFT($B$21,3)="Pre",'Return Detail'!H$73,'Return Detail'!H$77) -> 0 | H22: =IF(LEFT($B$21,3)="Pre",'Return Detail'!I$73,'Return Detail'!I$77) -> 0 | I22: =IF(LEFT($B$21,3)="Pre",'Return Detail'!J$73,'Return Detail'!J$77) -> 0 | J22: =IF(LEFT($B$21,3)="Pre",'Return Detail'!K$73,'Return Detail'!K$77) -> 0 | K22: =IF(LEFT($B$21,3)="Pre",'Return Detail'!L$73,'Return Detail'!L$77) -> 0 | L22: =IF(LEFT($B$21,3)="Pre",'Return Detail'!M$73,'Return Detail'!M$77) -> 0 | M22: =IF(LEFT($B$21,3)="Pre",'Return Detail'!N$73,'Return Detail'!N$77) -> 0 | N22: =IF(LEFT($B$21,3)="Pre",'Return Detail'!O$73,'Return Detail'!O$77) -> 11585164.88
B23: Total Cash Flow | D23: =SUM(D21:D22) -> -3355486.105 | E23: =SUM(E21:E22) -> 294389.7051 | F23: 322698.4793 | G23: 351856.5168 | H23: 381889.2954 | I23: 412823.0573 | J23: 444684.8321 | K23: 477502.4602 | L23: 511304.6171 | M23: 546120.8387 | N23: 12717146.42
B25: =Name_Partner -> JV Partner
B26: Cash Flow Paid at Preferred Return | D26: =D80 -> -3019937.495 | E26: =SUM(E76:E77,E87) -> 294389.7051 | F26: 309597.7938 | G26: 301993.7495 | H26: 301993.7495 | I26: 301993.7495 | J26: 301993.7495 | K26: 301993.7495 | L26: 301993.7495 | M26: 301993.7495 | N26: 301993.7495
B27: Cash Flow Paid at Hurdle 1 | D27: =D113 -> 0 | E27: =SUM(E113:E114) -> 0 | F27: =SUM(F113:F114) -> 11790.61692 | G27: 44876.49059 | H27: 60398.74989 | I27: 60398.74989 | J27: 60398.74989 | K27: 60398.74989 | L27: 60398.74989 | M27: 60398.74989 | N27: 60398.74989
B28: Cash Flow Paid at Hurdle 2 | D28: =D134 -> 0 | E28: =SUM(E134:E135) -> 0 | F28: =SUM(F134:F135) -> 0 | G28: 0 | H28: 10228.65905 | I28: 34975.66861 | J28: 60398.74989 | K28: 60398.74989 | L28: 60398.74989 | M28: 60398.74989 | N28: 60398.74989
B29: Cash Flow Paid at Hurdle 3 | D29: =D155 -> 0 | E29: =SUM(E155:E156) -> 0 | F29: =SUM(F155:F156) -> 0 | G29: 0 | H29: 0 | I29: 0 | J29: 58.04624567 | K29: 23030.38588 | L29: 46691.89571 | M29: 60398.74989 | N29: 60398.74989
B30: Cash Flow Paid at Final Split | D30: =D175 -> 0 | E30: =E175 -> 0 | F30: 0 | G30: 0 | H30: 0 | I30: 0 | J30: 0 | K30: 0 | L30: 0 | M30: 9141.000803 | N30: 360657.4258
B31: Cash Flow Paid at Reversion (Sale) | D31: 0 | E31: =IF(Reversion_Method="Independent",E$22*Reversion_Split_Equity,0) -> 0 | F31: 0 | G31: 0 | H31: 0 | I31: 0 | J31: 0 | K31: 0 | L31: 0 | M31: 0 | N31: 5792582.439
B32: ="Total Cash Flow to "&Name_Partner -> Total Cash Flow to JV Partner | D32: =SUM(D26:D31) -> -3019937.495 | E32: =SUM(E26:E31) -> 294389.7051 | F32: 321388.4108 | G32: 346870.24 | H32: 372621.1584 | I32: 397368.168 | J32: 422849.2955 | K32: 445821.6351 | L32: 469483.1449 | M32: 492330.9999 | N32: 6636429.864
B33: Annual Cash on Cash | E33: =IFERROR(E32/(Equity_Amount*Contribution_JV),"-") -> 0.09748205239 | F33: 0.1064222062 | G33: 0.1148600727 | H33: 0.1233870433 | I33: 0.1315815869 | J33: 0.140019221 | K33: 0.1476261134 | L33: 0.1554612126 | M33: 0.1630268841 | N33: 2.197538815
B35: Net Cash Flow | C35: =SUM(D32:N32) -> 7179615.127
B36: IRR | C36: =IFERROR(IRR(D32:N32),"-") -> 0.1705946209
B37: Equity Multiple | C37: =IFERROR(SUM(E32:N32)/(Equity_Amount*Contribution_JV),"-") -> 3.377405208
B38: Average Annual Cash on Cash Return | C38: =IFERROR((SUM(E32:N32)/Hold)/(Equity_Amount*Contribution_JV),"-") -> 0.3377405208
B40: =Name_Developer -> Developer
B41: Cash Flow Paid at Preferred Return | D41: =D96 -> -335548.6105 | E41: =E96 -> 0 | F41: 0 | G41: 0 | H41: 0 | I41: 0 | J41: 0 | K41: 0 | L41: 0 | M41: 0 | N41: 0
B42: Cash Flow Paid at Hurdle 1 | D42: =D122 -> 0 | E42: =E122 -> 0 | F42: 1310.068547 | G42: 4986.276732 | H42: 6710.97221 | I42: 6710.97221 | J42: 6710.97221 | K42: 6710.97221 | L42: 6710.97221 | M42: 6710.97221 | N42: 6710.97221
B43: Cash Flow Paid at Hurdle 2 | D43: =D143 -> 0 | E43: =E143 -> 0 | F43: 0 | G43: 0 | H43: 2557.164763 | I43: 8743.917153 | J43: 15099.68747 | K43: 15099.68747 | L43: 15099.68747 | M43: 15099.68747 | N43: 15099.68747
B44: Cash Flow Paid at Hurdle 3 | D44: =D164 -> 0 | E44: =E164 -> 0 | F44: 0 | G44: 0 | H44: 0 | I44: 0 | J44: 24.87696243 | K44: 9870.165378 | L44: 20010.81245 | M44: 25885.17852 | N44: 25885.17852
B45: Cash Flow Paid at Final Split | D45: =D180 -> 0 | E45: =E180 -> 0 | F45: 0 | G45: 0 | H45: 0 | I45: 0 | J45: 0 | K45: 0 | L45: 0 | M45: 6094.000535 | N45: 240438.2838
B46: Cash Flow Paid at Reversion (Sale) | D46: 0 | E46: =IF(Reversion_Method="Independent",E$22*Reversion_Split_Dev,0) -> 0 | F46: 0 | G46: 0 | H46: 0 | I46: 0 | J46: 0 | K46: 0 | L46: 0 | M46: 0 | N46: 5792582.439
B47: ="Total Cash Flow to "&Name_Developer -> Total Cash Flow to Developer | D47: =SUM(D41:D46) -> -335548.6105 | E47: =SUM(E41:E46) -> 0 | F47: 1310.068547 | G47: 4986.276732 | H47: 9268.136973 | I47: 15454.88936 | J47: 21835.53664 | K47: 31680.82506 | L47: 41821.47213 | M47: 53789.83874 | N47: 6080716.561
B48: Annual Cash on Cash | E48: =IFERROR(E47/(Equity_Amount*Contribution_Developer),"-") -> 0 | F48: 0.003904258597 | G48: 0.01486007266 | H48: 0.02762084742 | I48: 0.04605857059 | J48: 0.06507413818 | K48: 0.09441500894 | L48: 0.1246361058 | M48: 0.1603041618 | N48: 18.12171581
B50: Net Cash Flow | C50: =SUM(D47:N47) -> 5925314.995
B51: IRR | C51: =IFERROR(IRR(D47:N47),"-") -> 0.3461217646
B52: Equity Multiple | C52: =IFERROR(SUM(E47:N47)/(Equity_Amount*Contribution_Developer),"-") -> 18.65858898
B53: Average Annual Cash on Cash Return | C53: =IFERROR((SUM(E47:N47)/Hold)/(Equity_Amount*Contribution_Developer),"-") -> 1.865858898
B59: www.realpropmetrics.com
B60: ="Version: "&Version -> Version: 9.42 M | © 2022
B61: =TODAY() -> 2022-02-23
B62: This pro forma does not constitute tax advice. Please consult a professional tax advisor.
B66: =B2 -> Pre-Tax Equity Investor Returns
B68: Cash Flow Waterfall Detail Analysis
B70: =B20 -> Period | D70: =D20 -> 0 | E70: 1 | F70: 2 | G70: 3 | H70: 4 | I70: 5 | J70: 6 | K70: 7 | L70: 8 | M70: 9 | N70: 10
B71: =B21 -> Pre-Tax Net Cash Flow | D71: =IF(Reversion_Method="Independent",D$21,D$23) -> -3355486.105 | E71: 294389.7051 | F71: 322698.4793 | G71: 351856.5168 | H71: 381889.2954 | I71: 412823.0573 | J71: 444684.8321 | K71: 477502.4602 | L71: 511304.6171 | M71: 546120.8387 | N71: 1131981.547
B73: Preferred Return
B74: =Name_Partner -> JV Partner
B75: ="CF Allocation at "&ROUND(Pref_Investor*100,1)&"%" -> CF Allocation at 100% | D75: =D$71*Contribution_JV -> -3019937.495 | E75: =E$71*Pref_Investor -> 294389.7051 | F75: 322698.4793 | G75: 351856.5168 | H75: 381889.2954 | I75: 412823.0573 | J75: 444684.8321 | K75: 477502.4602 | L75: 511304.6171 | M75: 546120.8387 | N75: 1131981.547
B76: Amount Paid at Preferred Return (IRR) | D76: =IF($D$9="IRR",$D$21*Contribution_JV,0) -> 0 | E76: =IF(OR(E$20>Hold,Preferred_Return_Rate=0,$D$9<>"IRR"),0,IF(NPV(Preferred_Return_Rate,$E$75:E$75)+$D$75<0,E75,FV(Preferred_Return_Rate,E$20,,D75))) -> 0 | F76: =IF(OR(F$20>Hold,Preferred_Return_Rate=0,$D$9<>"IRR",SUM(NPV(Preferred_Return_Rate,$E$75:E$75),$D$75)>0),0,IF(NPV(Preferred_Return_Rate,$E$75:F$75)+$D$75<0,F75,FV(Preferred_Return_Rate,F$20,,NPV(Preferred_Return_Rate,$E$75:E$75)+$D75))) -> 0 | G76: =IF(OR(G$20>Hold,Preferred_Return_Rate=0,$D$9<>"IRR",SUM(NPV(Preferred_Return_Rate,$E$75:F$75),$D$75)>0),0,IF(NPV(Preferred_Return_Rate,$E$75:G$75)+$D$75<0,G75,FV(Preferred_Return_Rate,G$20,,NPV(Preferred_Return_Rate,$E$75:F$75)+$D75))) -> 0 | H76: =IF(OR(H$20>Hold,Preferred_Return_Rate=0,$D$9<>"IRR",SUM(NPV(Preferred_Return_Rate,$E$75:G$75),$D$75)>0),0,IF(NPV(Preferred_Return_Rate,$E$75:H$75)+$D$75<0,H75,FV(Preferred_Return_Rate,H$20,,NPV(Preferred_Return_Rate,$E$75:G$75)+$D75))) -> 0 | I76: =IF(OR(I$20>Hold,Preferred_Return_Rate=0,$D$9<>"IRR",SUM(NPV(Preferred_Return_Rate,$E$75:H$75),$D$75)>0),0,IF(NPV(Preferred_Return_Rate,$E$75:I$75)+$D$75<0,I75,FV(Preferred_Return_Rate,I$20,,NPV(Preferred_Return_Rate,$E$75:H$75)+$D75))) -> 0 | J76: =IF(OR(J$20>Hold,Preferred_Return_Rate=0,$D$9<>"IRR",SUM(NPV(Preferred_Return_Rate,$E$75:I$75),$D$75)>0),0,IF(NPV(Preferred_Return_Rate,$E$75:J$75)+$D$75<0,J75,FV(Preferred_Return_Rate,J$20,,NPV(Preferred_Return_Rate,$E$75:I$75)+$D75))) -> 0 | K76: =IF(OR(K$20>Hold,Preferred_Return_Rate=0,$D$9<>"IRR",SUM(NPV(Preferred_Return_Rate,$E$75:J$75),$D$75)>0),0,IF(NPV(Preferred_Return_Rate,$E$75:K$75)+$D$75<0,K75,FV(Preferred_Return_Rate,K$20,,NPV(Preferred_Return_Rate,$E$75:J$75)+$D75))) -> 0 | L76: =IF(OR(L$20>Hold,Preferred_Return_Rate=0,$D$9<>"IRR",SUM(NPV(Preferred_Return_Rate,$E$75:K$75),$D$75)>0),0,IF(NPV(Preferred_Return_Rate,$E$75:L$75)+$D$75<0,L75,FV(Preferred_Return_Rate,L$20,,NPV(Preferred_Return_Rate,$E$75:K$75)+$D75))) -> 0 | M76: =IF(OR(M$20>Hold,Preferred_Return_Rate=0,$D$9<>"IRR",SUM(NPV(Preferred_Return_Rate,$E$75:L$75),$D$75)>0),0,IF(NPV(Preferred_Return_Rate,$E$75:M$75)+$D$75<0,M75,FV(Preferred_Return_Rate,M$20,,NPV(Preferred_Return_Rate,$E$75:L$75)+$D75))) -> 0 | N76: =IF(OR(N$20>Hold,Preferred_Return_Rate=0,$D$9<>"IRR",SUM(NPV(Preferred_Return_Rate,$E$75:M$75),$D$75)>0),0,IF(NPV(Preferred_Return_Rate,$E$75:N$75)+$D$75<0,N75,FV(Preferred_Return_Rate,N$20,,NPV(Preferred_Return_Rate,$E$75:M$75)+$D75))) -> 0
B77: Amount Paid at Preferred Return (COC) | D77: =IF($D$9="Cash on Cash",$D$21*Contribution_JV,0) -> -3019937.495 | E77: =IF(OR(E$70>Hold,Preferred_Return_Rate=0,$D$9<>"Cash on Cash"),0,MIN(-$D$75*Preferred_Return_Rate,E75)) -> 294389.7051 | F77: 301993.7495 | G77: 301993.7495 | H77: 301993.7495 | I77: 301993.7495 | J77: 301993.7495 | K77: 301993.7495 | L77: 301993.7495 | M77: 301993.7495 | N77: 301993.7495
B78: CF Remaining for Next Hurdle | D78: =D75-SUM(D76:D77) -> 0 | E78: 0 | F78: 20704.72986 | G78: 49862.76732 | H78: 79895.54591 | I78: 110829.3079 | J78: 142691.0827 | K78: 175508.7107 | L78: 209310.8676 | M78: 244127.0892 | N78: 829987.7975
B80: ="Cash Flow Received by "&Name_Partner -> Cash Flow Received by JV Partner | D80: =SUM(D76:D77) -> -3019937.495 | E80: 294389.7051 | F80: 301993.7495 | G80: 301993.7495 | H80: 301993.7495 | I80: 301993.7495 | J80: 301993.7495 | K80: 301993.7495 | L80: 301993.7495 | M80: 301993.7495 | N80: 301993.7495
B81: =Name_Partner&" IRR at "&B73 -> JV Partner IRR at Preferred Return | C81: =IFERROR(IRR(D80:N80),"-") -> -0.0004571807519
B83: Cumulative Preferred Return Catchup
B84: Cumulative Amount Due as Preferred Return | E84: =IF(OR(Hold<E70,$D$9<>"Cash on Cash",Preferred_Return_Method<>"Cumulative"),0,(Equity_Amount*Contribution_JV)*Preferred_Return_Rate*E$70) -> 301993.7495 | F84: 603987.4989 | G84: 905981.2484 | H84: 1207974.998 | I84: 1509968.747 | J84: 1811962.497 | K84: 2113956.246 | L84: 2415949.996 | M84: 2717943.745 | N84: 3019937.495
B85: Cumulative Amount Paid as Preferred Return | E85: =IF(OR(Hold<E70,Preferred_Return_Method<>"Cumulative",$D$9<>"Cash on Cash"),0,SUM($E$77:E77,$D$87:D87)) -> 294389.7051 | F85: =IF(OR(Hold<F70,Preferred_Return_Method<>"Cumulative",$D$9<>"Cash on Cash"),0,SUM($E$77:F77,$D$87:E87)) -> 596383.4545 | G85: =IF(OR(Hold<G70,Preferred_Return_Method<>"Cumulative",$D$9<>"Cash on Cash"),0,SUM($E$77:G77,$D$87:F87)) -> 905981.2484 | H85: =IF(OR(Hold<H70,Preferred_Return_Method<>"Cumulative",$D$9<>"Cash on Cash"),0,SUM($E$77:H77,$D$87:G87)) -> 1207974.998 | I85: =IF(OR(Hold<I70,Preferred_Return_Method<>"Cumulative",$D$9<>"Cash on Cash"),0,SUM($E$77:I77,$D$87:H87)) -> 1509968.747 | J85: =IF(OR(Hold<J70,Preferred_Return_Method<>"Cumulative",$D$9<>"Cash on Cash"),0,SUM($E$77:J77,$D$87:I87)) -> 1811962.497 | K85: =IF(OR(Hold<K70,Preferred_Return_Method<>"Cumulative",$D$9<>"Cash on Cash"),0,SUM($E$77:K77,$D$87:J87)) -> 2113956.246 | L85: =IF(OR(Hold<L70,Preferred_Return_Method<>"Cumulative",$D$9<>"Cash on Cash"),0,SUM($E$77:L77,$D$87:K87)) -> 2415949.996 | M85: =IF(OR(Hold<M70,Preferred_Return_Method<>"Cumulative",$D$9<>"Cash on Cash"),0,SUM($E$77:M77,$D$87:L87)) -> 2717943.745 | N85: =IF(OR(Hold<N70,Preferred_Return_Method<>"Cumulative",$D$9<>"Cash on Cash"),0,SUM($E$77:N77,$D$87:M87)) -> 3019937.495
B86: Balance Remaining | E86: =E84-E85 -> 7604.044384 | F86: =F84-F85 -> 7604.044384 | G86: 0 | H86: 0 | I86: 0 | J86: 0 | K86: 0 | L86: 0 | M86: 0 | N86: 0
B87: Catch Up Paid | E87: =IF(AND(E86>0,E75>(Equity_Amount*Contribution_JV*Preferred_Return_Rate)),MIN(E78,E86),0) -> 0 | F87: 7604.044384 | G87: 0 | H87: 0 | I87: 0 | J87: 0 | K87: 0 | L87: 0 | M87: 0 | N87: 0
B88: ="Total Annual Cash Flow to "&Name_Partner -> Total Annual Cash Flow to JV Partner | E88: =SUM(E80,E87) -> 294389.7051 | F88: =SUM(F80,F87) -> 309597.7938 | G88: 301993.7495 | H88: 301993.7495 | I88: 301993.7495 | J88: 301993.7495 | K88: 301993.7495 | L88: 301993.7495 | M88: 301993.7495 | N88: 301993.7495
B90: =Name_Developer -> Developer
B91: ="CF Allocation at "&ROUND(Pref_Developer*100,1)&"%" -> CF Allocation at 0% | D91: =D$71*Contribution_Developer -> -335548.6105 | E91: =E$71*Pref_Developer -> 0 | F91: 0 | G91: 0 | H91: 0 | I91: 0 | J91: 0 | K91: 0 | L91: 0 | M91: 0 | N91: 0
B92: Amount Paid at Preferred Return (IRR) | D92: =IF($D$9="IRR",$D$21*Contribution_Developer,0) -> 0 | E92: =IF(OR(E$20>Hold,Preferred_Return_Rate=0,$D$9<>"IRR"),0,IF(NPV(Preferred_Return_Rate,$E$91:E$91)+$D$91<0,E91,FV(Preferred_Return_Rate,E$20,,D91))) -> 0 | F92: =IF(OR(F$20>Hold,Preferred_Return_Rate=0,$D$9<>"IRR",SUM(NPV(Preferred_Return_Rate,$E$91:E$91),$D$91)>0),0,IF(NPV(Preferred_Return_Rate,$E$91:F$91)+$D$91<0,F91,FV(Preferred_Return_Rate,F$20,,NPV(Preferred_Return_Rate,$E$91:E$91)+$D91))) -> 0 | G92: =IF(OR(G$20>Hold,Preferred_Return_Rate=0,$D$9<>"IRR",SUM(NPV(Preferred_Return_Rate,$E$91:F$91),$D$91)>0),0,IF(NPV(Preferred_Return_Rate,$E$91:G$91)+$D$91<0,G91,FV(Preferred_Return_Rate,G$20,,NPV(Preferred_Return_Rate,$E$91:F$91)+$D91))) -> 0 | H92: =IF(OR(H$20>Hold,Preferred_Return_Rate=0,$D$9<>"IRR",SUM(NPV(Preferred_Return_Rate,$E$91:G$91),$D$91)>0),0,IF(NPV(Preferred_Return_Rate,$E$91:H$91)+$D$91<0,H91,FV(Preferred_Return_Rate,H$20,,NPV(Preferred_Return_Rate,$E$91:G$91)+$D91))) -> 0 | I92: =IF(OR(I$20>Hold,Preferred_Return_Rate=0,$D$9<>"IRR",SUM(NPV(Preferred_Return_Rate,$E$91:H$91),$D$91)>0),0,IF(NPV(Preferred_Return_Rate,$E$91:I$91)+$D$91<0,I91,FV(Preferred_Return_Rate,I$20,,NPV(Preferred_Return_Rate,$E$91:H$91)+$D91))) -> 0 | J92: =IF(OR(J$20>Hold,Preferred_Return_Rate=0,$D$9<>"IRR",SUM(NPV(Preferred_Return_Rate,$E$91:I$91),$D$91)>0),0,IF(NPV(Preferred_Return_Rate,$E$91:J$91)+$D$91<0,J91,FV(Preferred_Return_Rate,J$20,,NPV(Preferred_Return_Rate,$E$91:I$91)+$D91))) -> 0 | K92: =IF(OR(K$20>Hold,Preferred_Return_Rate=0,$D$9<>"IRR",SUM(NPV(Preferred_Return_Rate,$E$91:J$91),$D$91)>0),0,IF(NPV(Preferred_Return_Rate,$E$91:K$91)+$D$91<0,K91,FV(Preferred_Return_Rate,K$20,,NPV(Preferred_Return_Rate,$E$91:J$91)+$D91))) -> 0 | L92: =IF(OR(L$20>Hold,Preferred_Return_Rate=0,$D$9<>"IRR",SUM(NPV(Preferred_Return_Rate,$E$91:K$91),$D$91)>0),0,IF(NPV(Preferred_Return_Rate,$E$91:L$91)+$D$91<0,L91,FV(Preferred_Return_Rate,L$20,,NPV(Preferred_Return_Rate,$E$91:K$91)+$D91))) -> 0 | M92: =IF(OR(M$20>Hold,Preferred_Return_Rate=0,$D$9<>"IRR",SUM(NPV(Preferred_Return_Rate,$E$91:L$91),$D$91)>0),0,IF(NPV(Preferred_Return_Rate,$E$91:M$91)+$D$91<0,M91,FV(Preferred_Return_Rate,M$20,,NPV(Preferred_Return_Rate,$E$91:L$91)+$D91))) -> 0 | N92: =IF(OR(N$20>Hold,Preferred_Return_Rate=0,$D$9<>"IRR",SUM(NPV(Preferred_Return_Rate,$E$91:M$91),$D$91)>0),0,IF(NPV(Preferred_Return_Rate,$E$91:N$91)+$D$91<0,N91,FV(Preferred_Return_Rate,N$20,,NPV(Preferred_Return_Rate,$E$91:M$91)+$D91))) -> 0
B93: Amount Paid at Preferred Return (COC) | D93: =IF($D$9="Cash on Cash",$D$21*Contribution_Developer,0) -> -335548.6105 | E93: =IF(OR(E$70>Hold,Preferred_Return_Rate=0,$D$9<>"Cash on Cash"),0,MIN(-$D$91*Preferred_Return_Rate,E91)) -> 0 | F93: 0 | G93: 0 | H93: 0 | I93: 0 | J93: 0 | K93: 0 | L93: 0 | M93: 0 | N93: 0
B94: CF Remaining for Next Hurdle | D94: =D91-SUM(D92:D93) -> 0 | E94: =E91-SUM(E92:E93) -> 0 | F94: 0 | G94: 0 | H94: 0 | I94: 0 | J94: 0 | K94: 0 | L94: 0 | M94: 0 | N94: 0
B96: ="Total CF Received by "&Name_Developer -> Total CF Received by Developer | D96: =SUM(D92:D93) -> -335548.6105 | E96: =SUM(E92:E93) -> 0 | F96: =SUM(F92:F93) -> 0 | G96: 0 | H96: 0 | I96: 0 | J96: 0 | K96: 0 | L96: 0 | M96: 0 | N96: 0
B97: =Name_Developer&" IRR at Preferred Return" -> Developer IRR at Preferred Return | C97: =IFERROR(IRR(D96:N96),"-") -> -
B99: Cumulative Preferred Return Catchup
B100: Cumulative Amount Due as Preferred Return | E100: =IF(OR(Hold<E70,$D$9<>"Cash on Cash",Preferred_Return_Method<>"Cumulative"),0,(Equity_Amount*Contribution_Developer)*Preferred_Return_Rate*E$70) -> 33554.86105 | F100: 67109.7221 | G100: 100664.5832 | H100: 134219.4442 | I100: 167774.3053 | J100: 201329.1663 | K100: 234884.0274 | L100: 268438.8884 | M100: 301993.7495 | N100: 335548.6105
B101: Cumulative Amount Paid as Preferred Return | E101: =IF(OR(Hold<E70,Preferred_Return_Method<>"Cumulative",$D$9<>"Cash on Cash"),0,SUM($E$93:E93,$D$103:D103)) -> 0 | F101: =IF(OR(Hold<F70,Preferred_Return_Method<>"Cumulative",$D$9<>"Cash on Cash"),0,SUM($E$93:F93,$D$103:E103)) -> 0 | G101: =IF(OR(Hold<G70,Preferred_Return_Method<>"Cumulative",$D$9<>"Cash on Cash"),0,SUM($E$93:G93,$D$103:F103)) -> 0 | H101: =IF(OR(Hold<H70,Preferred_Return_Method<>"Cumulative",$D$9<>"Cash on Cash"),0,SUM($E$93:H93,$D$103:G103)) -> 0 | I101: =IF(OR(Hold<I70,Preferred_Return_Method<>"Cumulative",$D$9<>"Cash on Cash"),0,SUM($E$93:I93,$D$103:H103)) -> 0 | J101: =IF(OR(Hold<J70,Preferred_Return_Method<>"Cumulative",$D$9<>"Cash on Cash"),0,SUM($E$93:J93,$D$103:I103)) -> 0 | K101: =IF(OR(Hold<K70,Preferred_Return_Method<>"Cumulative",$D$9<>"Cash on Cash"),0,SUM($E$93:K93,$D$103:J103)) -> 0 | L101: =IF(OR(Hold<L70,Preferred_Return_Method<>"Cumulative",$D$9<>"Cash on Cash"),0,SUM($E$93:L93,$D$103:K103)) -> 0 | M101: =IF(OR(Hold<M70,Preferred_Return_Method<>"Cumulative",$D$9<>"Cash on Cash"),0,SUM($E$93:M93,$D$103:L103)) -> 0 | N101: =IF(OR(Hold<N70,Preferred_Return_Method<>"Cumulative",$D$9<>"Cash on Cash"),0,SUM($E$93:N93,$D$103:M103)) -> 0
B102: Balance Remaining | E102: =E100-E101 -> 33554.86105 | F102: =F100-F101 -> 67109.7221 | G102: 100664.5832 | H102: 134219.4442 | I102: 167774.3053 | J102: 201329.1663 | K102: 234884.0274 | L102: 268438.8884 | M102: 301993.7495 | N102: 335548.6105
B103: Catch Up Paid | E103: =IF(AND(E102>0,E91>(Equity_Amount*Contribution_Developer*Preferred_Return_Rate)),MIN(E94,E102),0) -> 0 | F103: 0 | G103: 0 | H103: 0 | I103: 0 | J103: 0 | K103: 0 | L103: 0 | M103: 0 | N103: 0
B104: ="Total Annual Cash Flow to "&Name_Partner -> Total Annual Cash Flow to JV Partner | E104: =SUM(E96,E103) -> 0 | F104: =SUM(F96,F103) -> 0 | G104: 0 | H104: 0 | I104: 0 | J104: 0 | K104: 0 | L104: 0 | M104: 0 | N104: 0
B107: Total CF Paid at Preferred Return | D107: =SUM(D80,D96) -> -3355486.105 | E107: =SUM(E88,E104) -> 294389.7051 | F107: =SUM(F88,F104) -> 309597.7938 | G107: 301993.7495 | H107: 301993.7495 | I107: 301993.7495 | J107: 301993.7495 | K107: 301993.7495 | L107: 301993.7495 | M107: 301993.7495 | N107: 301993.7495
B108: CF Remaining for Next Hurdle | D108: =SUM(D78,D94) -> 0 | E108: =E$71-E$107 -> 0 | F108: =F$71-F$107 -> 13100.68547 | G108: 49862.76732 | H108: 79895.54591 | I108: 110829.3079 | J108: 142691.0827 | K108: 175508.7107 | L108: 209310.8676 | M108: 244127.0892 | N108: 829987.7975
B110: Hurdle 1
B111: =Name_Partner -> JV Partner
B112: ="CF Allocation at "&ROUND(Hurdle1_Investor*100,1)&"%" -> CF Allocation at 90% | D112: =D108*Hurdle1_Investor -> 0 | E112: 0 | F112: 11790.61692 | G112: 44876.49059 | H112: 71905.99132 | I112: 99746.37708 | J112: 128421.9744 | K112: 157957.8397 | L112: 188379.7809 | M112: 219714.3803 | N112: 746989.0177
B113: Amount Paid at Hurdle 1 (IRR) | D113: 0 | E113: =IF(OR(E$20>Hold,Hurdle1_Rate=0,$D$10<>"IRR"),0,MAX(0,MIN(E112,FV(Hurdle1_Rate,E$20,,NPV(Hurdle1_Rate,$E$80:E$80)+$D$80)))) -> 0 | F113: =IF(OR(F$20>Hold,Hurdle1_Rate=0,$D$10<>"IRR",SUM(NPV(Hurdle1_Rate,$E$117:E$117),$D$117)>=0),0,MAX(0,MIN(F112,FV(Hurdle1_Rate,F$20,,SUM(NPV(Hurdle1_Rate,$E$117:E$117,F80),$D$117))))) -> 0 | G113: =IF(OR(G$20>Hold,Hurdle1_Rate=0,$D$10<>"IRR",SUM(NPV(Hurdle1_Rate,$E$117:F$117),$D$117)>=0),0,MAX(0,MIN(G112,FV(Hurdle1_Rate,G$20,,SUM(NPV(Hurdle1_Rate,$E$117:F$117,G80),$D$117))))) -> 0 | H113: =IF(OR(H$20>Hold,Hurdle1_Rate=0,$D$10<>"IRR",SUM(NPV(Hurdle1_Rate,$E$117:G$117),$D$117)>=0),0,MAX(0,MIN(H112,FV(Hurdle1_Rate,H$20,,SUM(NPV(Hurdle1_Rate,$E$117:G$117,H80),$D$117))))) -> 0 | I113: =IF(OR(I$20>Hold,Hurdle1_Rate=0,$D$10<>"IRR",SUM(NPV(Hurdle1_Rate,$E$117:H$117),$D$117)>=0),0,MAX(0,MIN(I112,FV(Hurdle1_Rate,I$20,,SUM(NPV(Hurdle1_Rate,$E$117:H$117,I80),$D$117))))) -> 0 | J113: =IF(OR(J$20>Hold,Hurdle1_Rate=0,$D$10<>"IRR",SUM(NPV(Hurdle1_Rate,$E$117:I$117),$D$117)>=0),0,MAX(0,MIN(J112,FV(Hurdle1_Rate,J$20,,SUM(NPV(Hurdle1_Rate,$E$117:I$117,J80),$D$117))))) -> 0 | K113: =IF(OR(K$20>Hold,Hurdle1_Rate=0,$D$10<>"IRR",SUM(NPV(Hurdle1_Rate,$E$117:J$117),$D$117)>=0),0,MAX(0,MIN(K112,FV(Hurdle1_Rate,K$20,,SUM(NPV(Hurdle1_Rate,$E$117:J$117,K80),$D$117))))) -> 0 | L113: =IF(OR(L$20>Hold,Hurdle1_Rate=0,$D$10<>"IRR",SUM(NPV(Hurdle1_Rate,$E$117:K$117),$D$117)>=0),0,MAX(0,MIN(L112,FV(Hurdle1_Rate,L$20,,SUM(NPV(Hurdle1_Rate,$E$117:K$117,L80),$D$117))))) -> 0 | M113: =IF(OR(M$20>Hold,Hurdle1_Rate=0,$D$10<>"IRR",SUM(NPV(Hurdle1_Rate,$E$117:L$117),$D$117)>=0),0,MAX(0,MIN(M112,FV(Hurdle1_Rate,M$20,,SUM(NPV(Hurdle1_Rate,$E$117:L$117,M80),$D$117))))) -> 0 | N113: =IF(OR(N$20>Hold,Hurdle1_Rate=0,$D$10<>"IRR",SUM(NPV(Hurdle1_Rate,$E$117:M$117),$D$117)>=0),0,MAX(0,MIN(N112,FV(Hurdle1_Rate,N$20,,SUM(NPV(Hurdle1_Rate,$E$117:M$117,N80),$D$117))))) -> 0
B114: Amount Paid at Hurdle 1 (COC) | D114: 0 | E114: =IF(OR(E$70>Hold,Hurdle1_Rate=0,$D$10<>"Cash on Cash"),0,MIN(-$D$80*Hurdle1_Rate-E80,E112)) -> 0 | F114: 11790.61692 | G114: 44876.49059 | H114: 60398.74989 | I114: 60398.74989 | J114: 60398.74989 | K114: 60398.74989 | L114: 60398.74989 | M114: 60398.74989 | N114: 60398.74989
B115: CF Remaining for Next Hurdle | D115: =D112-SUM(D113:D114) -> 0 | E115: =E112-SUM(E113:E114) -> 0 | F115: 0 | G115: 0 | H115: 11507.24143 | I115: 39347.62719 | J115: 68023.22451 | K115: 97559.08976 | L115: 127981.031 | M115: 159315.6304 | N115: 686590.2678
B117: ="Cash Flow Received by "&Name_Partner -> Cash Flow Received by JV Partner | D117: =SUM(D80,D113:D114) -> -3019937.495 | E117: 294389.7051 | F117: 313784.3664 | G117: 346870.24 | H117: 362392.4993 | I117: 362392.4993 | J117: 362392.4993 | K117: 362392.4993 | L117: 362392.4993 | M117: 362392.4993 | N117: 362392.4993
B118: =Name_Partner&" IRR at "&B110 -> JV Partner IRR at Hurdle 1 | C118: =IFERROR(IRR(D117:N117),"-") -> 0.02653579455
B120: =Name_Developer -> Developer
B121: ="CF Allocation at "&ROUND(Hurdle1_Developer*100,1)&"%" -> CF Allocation at 10% | D121: =D108*Hurdle1_Developer -> 0 | E121: 0 | F121: 1310.068547 | G121: 4986.276732 | H121: 7989.554591 | I121: 11082.93079 | J121: 14269.10827 | K121: 17550.87107 | L121: 20931.08676 | M121: 24412.70892 | N121: 82998.77975
B122: Amount Paid at Hurdle 1 | D122: 0 | E122: =IF(OR(E$20>Hold,Hurdle1_Investor=0),0,(SUM(E113:E114)/Hurdle1_Investor)*Hurdle1_Developer) -> 0 | F122: 1310.068547 | G122: 4986.276732 | H122: 6710.97221 | I122: 6710.97221 | J122: 6710.97221 | K122: 6710.97221 | L122: 6710.97221 | M122: 6710.97221 | N122: 6710.97221
B123: CF Remaining for Next Hurdle | D123: =D121-D122 -> 0 | E123: =E121-E122 -> 0 | F123: 0 | G123: 0 | H123: 1278.582381 | I123: 4371.958576 | J123: 7558.136057 | K123: 10839.89886 | L123: 14220.11455 | M123: 17701.73671 | N123: 76287.80754
B125: ="Total CF Received by "&Name_Developer -> Total CF Received by Developer | D125: =SUM(D92,D122) -> 0 | E125: =SUM(E92,E122) -> 0 | F125: 1310.068547 | G125: 4986.276732 | H125: 6710.97221 | I125: 6710.97221 | J125: 6710.97221 | K125: 6710.97221 | L125: 6710.97221 | M125: 6710.97221 | N125: 6710.97221
B126: =Name_Developer&" IRR at "&B110 -> Developer IRR at Hurdle 1 | C126: =IFERROR(IRR(D125:N125),"-") -> -
B128: Total CF Paid at Hurdle 1 | D128: =SUM(D113,D122) -> 0 | E128: =SUM(E113:E114,E122) -> 0 | F128: =SUM(F113:F114,F122) -> 13100.68547 | G128: 49862.76732 | H128: 67109.7221 | I128: 67109.7221 | J128: 67109.7221 | K128: 67109.7221 | L128: 67109.7221 | M128: 67109.7221 | N128: 67109.7221
B129: CF Remaining for Next Hurdle | D129: =D108-D128 -> 0 | E129: =E108-E128 -> 0 | F129: 0 | G129: 0 | H129: 12785.82381 | I129: 43719.58576 | J129: 75581.36057 | K129: 108398.9886 | L129: 142201.1455 | M129: 177017.3671 | N129: 762878.0754
B131: Hurdle 2
B132: =Name_Partner -> JV Partner
B133: ="CF Allocation at "&ROUND(Hurdle2_Investor*100,1)&"%" -> CF Allocation at 80% | D133: =D129*Hurdle2_Investor -> 0 | E133: 0 | F133: 0 | G133: 0 | H133: 10228.65905 | I133: 34975.66861 | J133: 60465.08846 | K133: 86719.1909 | L133: 113760.9164 | M133: 141613.8937 | N133: 610302.4603
B134: Amount Paid at Hurdle 2 (IRR) | D134: 0 | E134: =IF(OR(E$20>Hold,Hurdle2_Rate=0,$D$11<>"IRR"),0,MAX(0,MIN(E133,FV(Hurdle2_Rate,E$20,,NPV(Hurdle2_Rate,$E$117:E$117)+$D$117)))) -> 0 | F134: =IF(OR(F$20>Hold,$D$11<>"IRR",Hurdle2_Rate=0,SUM(NPV(Hurdle2_Rate,$E$138:E$138),$D$138)>=0),0,MAX(0,MIN(F133,FV(Hurdle2_Rate,F$20,,SUM(NPV(Hurdle2_Rate,$E$138:E$138,F117),$D$138))))) -> 0 | G134: =IF(OR(G$20>Hold,$D$11<>"IRR",Hurdle2_Rate=0,SUM(NPV(Hurdle2_Rate,$E$138:F$138),$D$138)>=0),0,MAX(0,MIN(G133,FV(Hurdle2_Rate,G$20,,SUM(NPV(Hurdle2_Rate,$E$138:F$138,G117),$D$138))))) -> 0 | H134: =IF(OR(H$20>Hold,$D$11<>"IRR",Hurdle2_Rate=0,SUM(NPV(Hurdle2_Rate,$E$138:G$138),$D$138)>=0),0,MAX(0,MIN(H133,FV(Hurdle2_Rate,H$20,,SUM(NPV(Hurdle2_Rate,$E$138:G$138,H117),$D$138))))) -> 0 | I134: =IF(OR(I$20>Hold,$D$11<>"IRR",Hurdle2_Rate=0,SUM(NPV(Hurdle2_Rate,$E$138:H$138),$D$138)>=0),0,MAX(0,MIN(I133,FV(Hurdle2_Rate,I$20,,SUM(NPV(Hurdle2_Rate,$E$138:H$138,I117),$D$138))))) -> 0 | J134: =IF(OR(J$20>Hold,$D$11<>"IRR",Hurdle2_Rate=0,SUM(NPV(Hurdle2_Rate,$E$138:I$138),$D$138)>=0),0,MAX(0,MIN(J133,FV(Hurdle2_Rate,J$20,,SUM(NPV(Hurdle2_Rate,$E$138:I$138,J117),$D$138))))) -> 0 | K134: =IF(OR(K$20>Hold,$D$11<>"IRR",Hurdle2_Rate=0,SUM(NPV(Hurdle2_Rate,$E$138:J$138),$D$138)>=0),0,MAX(0,MIN(K133,FV(Hurdle2_Rate,K$20,,SUM(NPV(Hurdle2_Rate,$E$138:J$138,K117),$D$138))))) -> 0 | L134: =IF(OR(L$20>Hold,$D$11<>"IRR",Hurdle2_Rate=0,SUM(NPV(Hurdle2_Rate,$E$138:K$138),$D$138)>=0),0,MAX(0,MIN(L133,FV(Hurdle2_Rate,L$20,,SUM(NPV(Hurdle2_Rate,$E$138:K$138,L117),$D$138))))) -> 0 | M134: =IF(OR(M$20>Hold,$D$11<>"IRR",Hurdle2_Rate=0,SUM(NPV(Hurdle2_Rate,$E$138:L$138),$D$138)>=0),0,MAX(0,MIN(M133,FV(Hurdle2_Rate,M$20,,SUM(NPV(Hurdle2_Rate,$E$138:L$138,M117),$D$138))))) -> 0 | N134: =IF(OR(N$20>Hold,$D$11<>"IRR",Hurdle2_Rate=0,SUM(NPV(Hurdle2_Rate,$E$138:M$138),$D$138)>=0),0,MAX(0,MIN(N133,FV(Hurdle2_Rate,N$20,,SUM(NPV(Hurdle2_Rate,$E$138:M$138,N117),$D$138))))) -> 0
B135: Amount Paid at Hurdle 2 (COC) | D135: 0 | E135: =IF(OR(E$70>Hold,Hurdle2_Rate=0,$D$11<>"Cash on Cash"),0,MIN(-$D$80*Hurdle2_Rate-E117,E133)) -> 0 | F135: 0 | G135: 0 | H135: 10228.65905 | I135: 34975.66861 | J135: 60398.74989 | K135: 60398.74989 | L135: 60398.74989 | M135: 60398.74989 | N135: 60398.74989
B136: CF Remaining for Next Hurdle | D136: =D133-SUM(D134:D135) -> 0 | E136: =E133-SUM(E134:E135) -> 0 | F136: 0 | G136: 0 | H136: 0 | I136: 0 | J136: 66.33856648 | K136: 26320.44101 | L136: 53362.16652 | M136: 81215.1438 | N136: 549903.7104
B138: ="Cash Flow Received by "&Name_Partner -> Cash Flow Received by JV Partner | D138: =SUM(D117,D134:D135) -> -3019937.495 | E138: =SUM(E117,E134:E135) -> 294389.7051 | F138: 313784.3664 | G138: 346870.24 | H138: 372621.1584 | I138: 397368.168 | J138: 422791.2492 | K138: 422791.2492 | L138: 422791.2492 | M138: 422791.2492 | N138: 422791.2492
B139: =Name_Partner&" IRR at "&B131 -> JV Partner IRR at Hurdle 2 | C139: =IFERROR(IRR(D138:N138),"-") -> 0.0433404584
B141: =Name_Developer -> Developer
B142: ="CF Allocation at "&ROUND(Hurdle2_Developer*100,1)&"%" -> CF Allocation at 20% | D142: =D129*Hurdle2_Developer -> 0 | E142: 0 | F142: 0 | G142: 0 | H142: 2557.164763 | I142: 8743.917153 | J142: 15116.27211 | K142: 21679.79772 | L142: 28440.2291 | M142: 35403.47342 | N142: 152575.6151
B143: Amount Paid at Hurdle 2 | D143: 0 | E143: =IF(OR(E$20>Hold,Hurdle2_Investor=0),0,(SUM(E134:E135)/Hurdle2_Investor)*Hurdle2_Developer) -> 0 | F143: 0 | G143: 0 | H143: 2557.164763 | I143: 8743.917153 | J143: 15099.68747 | K143: 15099.68747 | L143: 15099.68747 | M143: 15099.68747 | N143: 15099.68747
B144: CF Remaining for Next Hurdle | D144: =D142-D143 -> 0 | E144: =E142-E143 -> 0 | F144: 0 | G144: 0 | H144: 0 | I144: 0 | J144: 16.58464162 | K144: 6580.110252 | L144: 13340.54163 | M144: 20303.78595 | N144: 137475.9276
B146: ="Total CF Received by "&Name_Developer -> Total CF Received by Developer | D146: =SUM(D125,D143) -> 0 | E146: =SUM(E125,E143) -> 0 | F146: 1310.068547 | G146: 4986.276732 | H146: 9268.136973 | I146: 15454.88936 | J146: 21810.65968 | K146: 21810.65968 | L146: 21810.65968 | M146: 21810.65968 | N146: 21810.65968
B147: =Name_Developer&" IRR at "&B131 -> Developer IRR at Hurdle 2 | C147: =IFERROR(IRR(D146:N146),"-") -> -
B149: Total CF Paid at Hurdle 2 | D149: =SUM(D134:D135,D143) -> 0 | E149: =SUM(E134:E135,E143) -> 0 | F149: 0 | G149: 0 | H149: 12785.82381 | I149: 43719.58576 | J149: 75498.43736 | K149: 75498.43736 | L149: 75498.43736 | M149: 75498.43736 | N149: 75498.43736
B150: CF Remaining for Next Hurdle | D150: =D129-D149 -> 0 | E150: =E129-E149 -> 0 | F150: 0 | G150: 0 | H150: 0 | I150: 0 | J150: 82.9232081 | K150: 32900.55126 | L150: 66702.70815 | M150: 101518.9298 | N150: 687379.638
B152: Hurdle 3
B153: =Name_Partner -> JV Partner
B154: ="CF Allocation at "&ROUND(Hurdle3_Investor*100,1)&"%" -> CF Allocation at 70% | D154: =D150*Hurdle3_Investor -> 0 | E154: 0 | F154: 0 | G154: 0 | H154: 0 | I154: 0 | J154: 58.04624567 | K154: 23030.38588 | L154: 46691.89571 | M154: 71063.25083 | N154: 481165.7466
B155: Amount Paid at Hurdle 3 (IRR) | D155: 0 | E155: =IF(OR(E$20>Hold,Hurdle3_Rate=0,$D$12<>"IRR"),0,MAX(0,MIN(E154,FV(Hurdle3_Rate,E$20,,NPV(Hurdle3_Rate,$E$138:E$138)+$D$138)))) -> 0 | F155: =IF(OR(F$20>Hold,$D$12<>"IRR",Hurdle3_Rate=0,SUM(NPV(Hurdle3_Rate,$E$159:E$159),$D$159)>=0),0,MAX(0,MIN(F154,FV(Hurdle3_Rate,F$20,,SUM(NPV(Hurdle3_Rate,$E$159:E$159,F138),$D$159))))) -> 0 | G155: =IF(OR(G$20>Hold,$D$12<>"IRR",Hurdle3_Rate=0,SUM(NPV(Hurdle3_Rate,$E$159:F$159),$D$159)>=0),0,MAX(0,MIN(G154,FV(Hurdle3_Rate,G$20,,SUM(NPV(Hurdle3_Rate,$E$159:F$159,G138),$D$159))))) -> 0 | H155: =IF(OR(H$20>Hold,$D$12<>"IRR",Hurdle3_Rate=0,SUM(NPV(Hurdle3_Rate,$E$159:G$159),$D$159)>=0),0,MAX(0,MIN(H154,FV(Hurdle3_Rate,H$20,,SUM(NPV(Hurdle3_Rate,$E$159:G$159,H138),$D$159))))) -> 0 | I155: =IF(OR(I$20>Hold,$D$12<>"IRR",Hurdle3_Rate=0,SUM(NPV(Hurdle3_Rate,$E$159:H$159),$D$159)>=0),0,MAX(0,MIN(I154,FV(Hurdle3_Rate,I$20,,SUM(NPV(Hurdle3_Rate,$E$159:H$159,I138),$D$159))))) -> 0 | J155: =IF(OR(J$20>Hold,$D$12<>"IRR",Hurdle3_Rate=0,SUM(NPV(Hurdle3_Rate,$E$159:I$159),$D$159)>=0),0,MAX(0,MIN(J154,FV(Hurdle3_Rate,J$20,,SUM(NPV(Hurdle3_Rate,$E$159:I$159,J138),$D$159))))) -> 0 | K155: =IF(OR(K$20>Hold,$D$12<>"IRR",Hurdle3_Rate=0,SUM(NPV(Hurdle3_Rate,$E$159:J$159),$D$159)>=0),0,MAX(0,MIN(K154,FV(Hurdle3_Rate,K$20,,SUM(NPV(Hurdle3_Rate,$E$159:J$159,K138),$D$159))))) -> 0 | L155: =IF(OR(L$20>Hold,$D$12<>"IRR",Hurdle3_Rate=0,SUM(NPV(Hurdle3_Rate,$E$159:K$159),$D$159)>=0),0,MAX(0,MIN(L154,FV(Hurdle3_Rate,L$20,,SUM(NPV(Hurdle3_Rate,$E$159:K$159,L138),$D$159))))) -> 0 | M155: =IF(OR(M$20>Hold,$D$12<>"IRR",Hurdle3_Rate=0,SUM(NPV(Hurdle3_Rate,$E$159:L$159),$D$159)>=0),0,MAX(0,MIN(M154,FV(Hurdle3_Rate,M$20,,SUM(NPV(Hurdle3_Rate,$E$159:L$159,M138),$D$159))))) -> 0 | N155: =IF(OR(N$20>Hold,$D$12<>"IRR",Hurdle3_Rate=0,SUM(NPV(Hurdle3_Rate,$E$159:M$159),$D$159)>=0),0,MAX(0,MIN(N154,FV(Hurdle3_Rate,N$20,,SUM(NPV(Hurdle3_Rate,$E$159:M$159,N138),$D$159))))) -> 0
B156: Amount Paid at Hurdle 3 (COC) | D156: 0 | E156: =IF(OR(E$70>Hold,Hurdle3_Rate=0,$D$12<>"Cash on Cash"),0,MIN(-$D$80*Hurdle3_Rate-E138,E154)) -> 0 | F156: 0 | G156: 0 | H156: 0 | I156: 0 | J156: 58.04624567 | K156: 23030.38588 | L156: 46691.89571 | M156: 60398.74989 | N156: 60398.74989
B157: CF Remaining for Next Hurdle | D157: =D154-D155 -> 0 | E157: =E154-E155 -> 0 | F157: 0 | G157: 0 | H157: 0 | I157: 0 | J157: 58.04624567 | K157: 23030.38588 | L157: 46691.89571 | M157: 71063.25083 | N157: 481165.7466
B159: ="Cash Flow Received by "&Name_Partner -> Cash Flow Received by JV Partner | D159: =SUM(D138,D155:D156) -> -3019937.495 | E159: =SUM(E138,E155:E156) -> 294389.7051 | F159: 313784.3664 | G159: 346870.24 | H159: 372621.1584 | I159: 397368.168 | J159: 422849.2955 | K159: 445821.6351 | L159: 469483.1449 | M159: 483189.9991 | N159: 483189.9991
B160: =Name_Partner&" IRR at "&B152 -> JV Partner IRR at Hurdle 3 | C160: =IFERROR(IRR(D159:N159),"-") -> 0.05129662748
B162: =Name_Developer -> Developer
B163: ="CF Allocation at "&ROUND(Hurdle3_Developer*100,1)&"%" -> CF Allocation at 30% | D163: =D150*Hurdle3_Developer -> 0 | E163: 0 | F163: 0 | G163: 0 | H163: 0 | I163: 0 | J163: 24.87696243 | K163: 9870.165378 | L163: 20010.81245 | M163: 30455.67893 | N163: 206213.8914
B164: Amount Paid at Hurdle 3 | D164: 0 | E164: =IF(OR(E$20>Hold,Hurdle3_Investor=0),0,(SUM(E155:E156)/Hurdle3_Investor)*Hurdle3_Developer) -> 0 | F164: 0 | G164: 0 | H164: 0 | I164: 0 | J164: 24.87696243 | K164: 9870.165378 | L164: 20010.81245 | M164: 25885.17852 | N164: 25885.17852
B165: CF Remaining for Next Hurdle | D165: =D163-D164 -> 0 | E165: =E163-E164 -> 0 | F165: 0 | G165: 0 | H165: 0 | I165: 0 | J165: 0 | K165: 0 | L165: 0 | M165: 4570.500402 | N165: 180328.7129
B167: ="Total CF Received by "&Name_Developer -> Total CF Received by Developer | D167: =SUM(D146,D164) -> 0 | E167: =SUM(E146,E164) -> 0 | F167: 1310.068547 | G167: 4986.276732 | H167: 9268.136973 | I167: 15454.88936 | J167: 21835.53664 | K167: 31680.82506 | L167: 41821.47213 | M167: 47695.83821 | N167: 47695.83821
B168: =Name_Developer&" IRR at "&B152 -> Developer IRR at Hurdle 3 | C168: =IFERROR(IRR(D167:N167),"-") -> -
B170: Total CF Paid at Hurdle 3 | D170: =SUM(D155:D156,D164) -> 0 | E170: =SUM(E155:E156,E164) -> 0 | F170: 0 | G170: 0 | H170: 0 | I170: 0 | J170: 82.9232081 | K170: 32900.55126 | L170: 66702.70815 | M170: 86283.92841 | N170: 86283.92841
B171: CF Remaining for Next Hurdle | D171: =D150-D170 -> 0 | E171: =E150-E170 -> 0 | F171: 0 | G171: 0 | H171: 0 | I171: 0 | J171: 0 | K171: 0 | L171: 0 | M171: 15235.00134 | N171: 601095.7096
B173: Final Split
B174: =Name_Partner -> JV Partner
B175: ="CF Paid at "&ROUND(Hurdle_Final_Investor*100,1)&"%" -> CF Paid at 60% | D175: =D171*Hurdle_Final_Investor -> 0 | E175: 0 | F175: 0 | G175: 0 | H175: 0 | I175: 0 | J175: 0 | K175: 0 | L175: 0 | M175: 9141.000803 | N175: 360657.4258
B176: ="Total CF Received by "&Name_Partner -> Total CF Received by JV Partner | D176: =SUM(D159,D175) -> -3019937.495 | E176: =SUM(E159,E175) -> 294389.7051 | F176: 313784.3664 | G176: 346870.24 | H176: 372621.1584 | I176: 397368.168 | J176: 422849.2955 | K176: 445821.6351 | L176: 469483.1449 | M176: 492330.9999 | N176: 843847.4249
B177: ="Final "&Name_Partner&" IRR" -> Final JV Partner IRR | C177: =IFERROR(IRR(D176:N176),"-") -> 0.06433745679
B179: =Name_Developer -> Developer
B180: ="CF Paid at "&ROUND(Hurdle_Final_Developer*100,1)&"%" -> CF Paid at 40% | D180: =D171*Hurdle_Final_Developer -> 0 | E180: 0 | F180: 0 | G180: 0 | H180: 0 | I180: 0 | J180: 0 | K180: 0 | L180: 0 | M180: 6094.000535 | N180: 240438.2838
B181: ="Total CF Received by "&Name_Developer -> Total CF Received by Developer | D181: =SUM(D167,D180) -> 0 | E181: =SUM(E167,E180) -> 0 | F181: 1310.068547 | G181: 4986.276732 | H181: 9268.136973 | I181: 15454.88936 | J181: 21835.53664 | K181: 31680.82506 | L181: 41821.47213 | M181: 53789.83874 | N181: 288134.122
B182: ="Final "&Name_Developer&" IRR" -> Final Developer IRR | C182: =IFERROR(IRR(D181:N181),"-") -> -
B185: www.realpropmetrics.com
B186: ="Version: "&Version -> Version: 9.42 M | © 2022
B187: =TODAY() -> 2022-02-23
B188: This pro forma does not constitute tax advice. Please consult a professional tax advisor.

Sheet Holding Period Sensitivity
B3: Holding Period Sensitivity Analysis
B4: These charts show the project's performance based on Disposition year. They assume continued financing regardless of term.
B47: Project Level IRR Sensitivity
B49: Period | D49: 1 | E49: =D49+1 -> 2 | F49: =E49+1 -> 3 | G49: 4 | H49: 5 | I49: 6 | J49: 7 | K49: 8 | L49: 9 | M49: 10 | N49: 11
B52: NOI (excluding Reserves) | D52: ='Cash Flows'!F59 -> 943625.808 | E52: ='Cash Flows'!G59 -> 971934.5822 | F52: ='Cash Flows'!H59 -> 1001092.62 | G52: ='Cash Flows'!I59 -> 1031125.398 | H52: ='Cash Flows'!J59 -> 1062059.16 | I52: ='Cash Flows'!K59 -> 1093920.935 | J52: ='Cash Flows'!L59 -> 1126738.563 | K52: ='Cash Flows'!M59 -> 1160540.72 | L52: ='Cash Flows'!N59 -> 1195356.942 | M52: ='Cash Flows'!O59 -> 1231217.65 | N52: ='Cash Flows'!P59 -> 1268154.179
B53: Refinance Proceeds | D53: ='Cash Flows'!F98 -> 0 | E53: ='Cash Flows'!G98 -> 0 | F53: ='Cash Flows'!H98 -> 0 | G53: ='Cash Flows'!I98 -> 0 | H53: ='Cash Flows'!J98 -> 0 | I53: ='Cash Flows'!K98 -> 0 | J53: ='Cash Flows'!L98 -> 0 | K53: ='Cash Flows'!M98 -> 0 | L53: ='Cash Flows'!N98 -> 0 | M53: ='Cash Flows'!O98 -> 0 | N53: ='Cash Flows'!P98 -> 0
B54: Less: Reserves | D54: =-'Cash Flows'!F65 -> -55000 | E54: =-'Cash Flows'!G65 -> -55000 | F54: =-'Cash Flows'!H65 -> -55000 | G54: =-'Cash Flows'!I65 -> -55000 | H54: =-'Cash Flows'!J65 -> -55000 | I54: =-'Cash Flows'!K65 -> -55000 | J54: =-'Cash Flows'!L65 -> -55000 | K54: =-'Cash Flows'!M65 -> -55000 | L54: =-'Cash Flows'!N65 -> -55000 | M54: =-'Cash Flows'!O65 -> -55000 | N54: =-'Cash Flows'!P65 -> -55000
B55: Less: Debt Service | D55: =-'Cash Flows'!F90 -> -594236.1029 | E55: =-'Cash Flows'!G90 -> -594236.1029 | F55: =-'Cash Flows'!H90 -> -594236.1029 | G55: =-'Cash Flows'!I90 -> -594236.1029 | H55: =-'Cash Flows'!J90 -> -594236.1029 | I55: =-'Cash Flows'!K90 -> -594236.1029 | J55: =-'Cash Flows'!L90 -> -594236.1029 | K55: =-'Cash Flows'!M90 -> -594236.1029 | L55: =-'Cash Flows'!N90 -> -594236.1029 | M55: =-'Cash Flows'!O90 -> -594236.1029 | N55: 0
B56: Cash Flow After Debt Service | D56: =SUM(D52:D55) -> 294389.7051 | E56: 322698.4793 | F56: 351856.5168 | G56: 381889.2954 | H56: 412823.0573 | I56: 444684.8321 | J56: 477502.4602 | K56: 511304.6171 | L56: 546120.8387 | M56: 581981.5469 | N56: 1213154.179
B57: Less: Mortgage Origination Fee | D57: ='Cash Flows'!F99 -> 0 | E57: ='Cash Flows'!G99 -> 0 | F57: ='Cash Flows'!H99 -> 0 | G57: ='Cash Flows'!I99 -> 0 | H57: ='Cash Flows'!J99 -> 0 | I57: ='Cash Flows'!K99 -> 0 | J57: ='Cash Flows'!L99 -> 0 | K57: ='Cash Flows'!M99 -> 0 | L57: ='Cash Flows'!N99 -> 0 | M57: ='Cash Flows'!O99 -> 0 | N57: 0
B58: Less: Capital Expenses | D58: =-'Cash Flows'!F112 -> 0 | E58: =-'Cash Flows'!G112 -> 0 | F58: =-'Cash Flows'!H112 -> 0 | G58: =-'Cash Flows'!I112 -> 0 | H58: =-'Cash Flows'!J112 -> 0 | I58: =-'Cash Flows'!K112 -> 0 | J58: =-'Cash Flows'!L112 -> 0 | K58: =-'Cash Flows'!M112 -> 0 | L58: =-'Cash Flows'!N112 -> 0 | M58: =-'Cash Flows'!O112 -> 0 | N58: 0
B59: Other Non-Regular Income | D59: =SUM('Cash Flows'!F115:F117) -> 0 | E59: =SUM('Cash Flows'!G115:G117) -> 0 | F59: =SUM('Cash Flows'!H115:H117) -> 0 | G59: =SUM('Cash Flows'!I115:I117) -> 0 | H59: =SUM('Cash Flows'!J115:J117) -> 0 | I59: =SUM('Cash Flows'!K115:K117) -> 0 | J59: =SUM('Cash Flows'!L115:L117) -> 0 | K59: =SUM('Cash Flows'!M115:M117) -> 0 | L59: =SUM('Cash Flows'!N115:N117) -> 0 | M59: =SUM('Cash Flows'!O115:O117) -> 0 | N59: 0
B60: Distributable Cash Flow | D60: =SUM(D56:D59) -> 294389.7051 | E60: =SUM(E56:E59) -> 322698.4793 | F60: 351856.5168 | G60: 381889.2954 | H60: 412823.0573 | I60: 444684.8321 | J60: 477502.4602 | K60: 511304.6171 | L60: 546120.8387 | M60: 581981.5469 | N60: 1213154.179
B62: Reversion Analysis (if sold in this year)
B63: Reversion Cash Flow | D63: =IF(Disposition="Cap Rate",E52/Exit_Rate,FV(Exit_Rate,D49,0,-Acquisition_Gross)) -> 14952839.73 | E63: 15401424.92 | F63: 15863467.67 | G63: 16339371.7 | H63: 16829552.85 | I63: 17334439.43 | J63: 17854472.62 | K63: 18390106.79 | L63: 18941810 | M63: 19510064.3
B64: Less: Cost of Sale | D64: =-D63*Sale_Cost -> -74764.19863 | E64: -77007.12459 | F64: -79317.33833 | G64: -81696.85848 | H64: -84147.76423 | I64: -86672.19716 | J64: -89272.36308 | K64: -91950.53397 | L64: -94709.04999 | M64: -97550.32149
B65: Less: Mortgage Exit Fee | D65: =D66*Loan_Exit_Fee -> 0 | E65: 0 | F65: 0 | G65: 0 | H65: 0 | I65: 0 | J65: 0 | K65: 0 | L65: 0 | M65: 0
B66: Less: Mortgage Balance | D66: =-VLOOKUP(D$49*12,Amortization_Schedule_Monthly,9,FALSE) -> -9615595.653 | E66: -9450687.71 | F66: -9278203.926 | G66: -9097796.266 | H66: -8909100.711 | I66: -8711736.514 | J66: -8505305.441 | K66: -8289390.96 | L66: -8063557.406 | M66: -7827349.098
B67: Return of Reserve Funds | D67: ='Cash Flows'!F160 -> 55000 | E67: ='Cash Flows'!G160 -> 110000 | F67: ='Cash Flows'!H160 -> 165000 | G67: ='Cash Flows'!I160 -> 220000 | H67: ='Cash Flows'!J160 -> 275000 | I67: ='Cash Flows'!K160 -> 330000 | J67: ='Cash Flows'!L160 -> 385000 | K67: ='Cash Flows'!M160 -> 440000 | L67: ='Cash Flows'!N160 -> 495000 | M67: ='Cash Flows'!O160 -> 550000
B68: Reversion Balance | D68: =SUM(D63:D67) -> 5317479.875 | E68: =SUM(E63:E67) -> 5983730.084 | F68: 6670946.402 | G68: 7379878.571 | H68: 8111304.372 | I68: 8866030.721 | J68: 9644894.811 | K68: 10448765.3 | L68: 11278543.54 | M68: 12135164.88
B71: Periods | C71: 0 | D71: =C71+1 -> 1 | E71: =D71+1 -> 2 | F71: 3 | G71: 4 | H71: 5 | I71: 6 | J71: 7 | K71: =J71+1 -> 8 | L71: 9 | M71: 10 | N71: IRR | O71: NPV
B72: 1 | C72: =-Equity_Amount -> -3355486.105 | D72: =IF($B72<D$49,0,IF($B72=D$49,SUM($D$60,D$68),D$60)) -> 5611869.58 | E72: 0 | F72: 0 | G72: 0 | H72: 0 | I72: 0 | J72: 0 | K72: 0 | L72: 0 | M72: 0 | N72: =IFERROR(IRR(C72:M72),"-") -> 0.6724460792 | O72: =SUM(C72,NPV(Equity_Rate,D72:M72)) -> 1746213.513
B73: 2 | C73: -3355486.105 | D73: =IF($B73<D$49,0,IF($B73=D$49,SUM(D$60,D$68),D$60)) -> 294389.7051 | E73: =IF($B73<E$49,0,IF($B73=E$49,SUM(E$60,E$68),E$60)) -> 6306428.563 | F73: 0 | G73: 0 | H73: 0 | I73: 0 | J73: 0 | K73: 0 | L73: 0 | M73: 0 | N73: =IFERROR(IRR(C73:M73),"-") -> 0.4154945868 | O73: 2124065.332
B74: 3 | C74: -3355486.105 | D74: =IF($B74<D$49,0,IF($B74=D$49,SUM(D$60,D$68),D$60)) -> 294389.7051 | E74: 322698.4793 | F74: 7022802.919 | G74: 0 | H74: 0 | I74: 0 | J74: 0 | K74: 0 | L74: 0 | M74: 0 | N74: 0.3346829889 | O74: 2455169.634
B75: 4 | C75: -3355486.105 | D75: 294389.7051 | E75: 322698.4793 | F75: 351856.5168 | G75: 7761767.867 | H75: 0 | I75: 0 | J75: 0 | K75: 0 | L75: 0 | M75: 0 | N75: 0.2935216487 | O75: 2744580.757
B76: 5 | C76: -3355486.105 | D76: 294389.7051 | E76: 322698.4793 | F76: 351856.5168 | G76: 381889.2954 | H76: 8524127.429 | I76: 0 | J76: 0 | K76: 0 | L76: 0 | M76: 0 | N76: 0.2678437573 | O76: 2996836.875
B77: 6 | C77: -3355486.105 | D77: 294389.7051 | E77: 322698.4793 | F77: 351856.5168 | G77: 381889.2954 | H77: 412823.0573 | I77: 9310715.553 | J77: 0 | K77: 0 | L77: 0 | M77: 0 | N77: 0.2499377972 | O77: 3216011.233
B78: 7 | C78: -3355486.105 | D78: 294389.7051 | E78: 322698.4793 | F78: 351856.5168 | G78: 381889.2954 | H78: 412823.0573 | I78: 444684.8321 | J78: 10122397.27 | K78: 0 | L78: 0 | M78: 0 | N78: 0.2365542879 | O78: 3405758.363
B79: 8 | C79: -3355486.105 | D79: 294389.7051 | E79: 322698.4793 | F79: 351856.5168 | G79: 381889.2954 | H79: 412823.0573 | I79: 444684.8321 | J79: 477502.4602 | K79: 10960069.92 | L79: 0 | M79: 0 | N79: 0.2260729279 | O79: 3569355.795
B80: 9 | C80: -3355486.105 | D80: 294389.7051 | E80: 322698.4793 | F80: 351856.5168 | G80: 381889.2954 | H80: 412823.0573 | I80: 444684.8321 | J80: 477502.4602 | K80: 511304.6171 | L80: 11824664.38 | M80: 0 | N80: 0.2175878739 | O80: 3709741.67
B81: 10 | C81: -3355486.105 | D81: 294389.7051 | E81: 322698.4793 | F81: 351856.5168 | G81: 381889.2954 | H81: 412823.0573 | I81: 444684.8321 | J81: 477502.4602 | K81: 511304.6171 | L81: 546120.8387 | M81: 12717146.42 | N81: 0.2105487731 | O81: 3829548.681
F86: www.realpropmetrics.com
F87: ="Version: "&Version -> Version: 9.42 M | © 2022
F88: =TODAY() -> 2022-02-23
